{"text_format":"1","workbook":"xlsx","n_sheets":11,"sheets":["COVER PAGE","Navigate","General Instructions","Repricing&Maturity","Maturity","Private Sector PDLs by Sector","Public Sector PDLs by Sector","Consumer PDLs by Purpose","ascii","Codes","SIGNATURE "],"not_rendered":{"charts":0,"images":5,"macros":1,"external_links":5,"defined_names":325,"comments":2,"pivot_tables":0},"unopened":[],"bounds":{"document_bytes":16777216,"sheet_cells":100000,"rows_first":2000,"rows_last":500,"rows_between":2000,"halvings":0,"cell_chars":16384,"cell_head_chars":4096},"cells_cut":0,"cells_raw":0,"read":"whole","date_system":"1900"}

{"sheet":"COVER PAGE","index":0,"n_rows":13,"n_cols":6,"rows_kept":13,"cut":false,"hidden":false,"merged":[[1,2,1,9],[8,2,8,4],[8,7,8,9],[4,2,4,9],[3,2,3,9],[2,2,2,9],[6,2,6,9],[5,2,5,9],[12,5,12,6],[8,5,8,6],[7,2,7,9],[9,2,9,4],[11,4,11,7],[9,5,9,6],[10,2,10,9]]}
[]
[null,null,"CENTRAL BANK OF TRINIDAD AND TOBAGO "]
[]
[null,null,"Stress Testing - Special Data Requirements"]
[null,null,"V1.1"]
[null,null,"FOR "]
[null,null,"        Select Institution"]
[null,null,"For the Quarter Ended:"]
[null,null,"Month",null,null,"Select Month"]
[null,null,"Year",null,null,"Select Year"]
[null,null,"Date Submitted:"]
[]
[null,null,null,null,null,"mm/dd/yyyy"]

{"sheet":"Navigate","index":1,"n_rows":25,"n_cols":7,"rows_kept":25,"cut":false,"hidden":true,"merged":[[20,2,20,6],[6,2,6,6],[5,2,5,6],[14,2,14,6],[22,2,22,6],[21,2,21,6],[17,2,17,6]]}
[]
[]
[]
[]
[]
[null,null,"Stress Testing the Commercial Banking System in Trinidad and Tobago"]
[null,null,"Special Data Requirements"]
[]
[null,null,null,"Month","Year"]
[null,null,"Period","Mar",2021]
[]
[null,null,"Bank Name",null,"JMMB Bank (T&T) Limited ",null,{"$f":"IF(E12=\"ANSA Bank Limited\",\"BBDA\",IF(E12=\"Citibank (Trinidad & Tobago) Limited\",\"CITI\",IF(E12=\"FirstCaribbean International Bank (Trinidad & Tobago) Limited \",\"FCIB\",IF(E12=\"First Citizens Bank Limited \",\"FCB\",IF(E12=\"JMMB Bank (T&T) Limited \",\"ICBL\",IF(E12=\"RBC Royal Bank (Trinidad and Tobago) Limited\",\"RBTT\",IF(E12=\"Republic Bank Limited \",\"RBL\",IF(E12=\"Scotiabank Trinidad and Tobago Limited \",\"BNS\",\"\"))))))))","v":"ICBL"}]
[]
[null,null,"Interest Rate Risk"]
[null,null,"Asset & Liability Repricing/Maturity Schedule"]
[]
[null,null,"Liquidity Risk"]
[null,null,"Asset & Liability Maturity Schedule"]
[]
[null,null,"Credit Risk"]
[null,null,"Private Sector Past Due Loans by Activity Sector"]
[null,null,"Public Sector Past Due Loans by Activity Sector"]
[null,null,"Consumer Past Due Loans by Purpose"]
[]
[null,null,"Please send all comments to ",null,"cbttreports@central-bank.org.tt "]

{"sheet":"General Instructions","index":2,"n_rows":17,"n_cols":2,"rows_kept":17,"cut":false,"hidden":false,"merged":[]}
[null,"Stress Testing - Special Data Requirements"]
[null,"Stress Testing Instructions"]
[]
[null,"GENERAL INSTRUCTIONS"]
[1,"Do not amend the structure/format."]
[2,"Do not remove the password protection."]
[3,"Do not manipulate the formulas."]
[4,"Complete Cover Page before submission. \nInstitution, reporting month, reporting year and date submitted must be populated. "]
[5,"No blank cells.  All cells must be populated with zero where there is no data."]
[6,"N/A, N/D, NA/ND CANNOT be used anywhere in this return."]
[7,"Do not use text except in the Assumption column for the tabs “Repricing&Maturity” and “Maturity”."]
[8,"Do not use symbols in cells (<, >, commas, full stops, apostrophe, tilde etc.)."]
[9,"Select the \"Break Links and Save\" button on the \"COVER PAGE\" tab to save the \".xlsx\" version for submission.  Ensure when links are broken the files are checked for text references which have to be deleted/amended (#Ref, FALSE! etc.) prior to submission."]
[]
[null,"FILE NAMING FOR SUBMISSION"]
[10,"Use the name file structure \"Company Code_STRESSTEST_V1.1_MMMYYYY\". Note all files sent to institutions will have the company code. "]
[11,"Resubmissions must have the same file name structure as listed"]

{"sheet":"Repricing&Maturity","index":3,"n_rows":51,"n_cols":13,"rows_kept":51,"cut":false,"hidden":false,"merged":[[1,0,1,12],[4,2,4,6],[3,2,3,6],[7,2,7,11],[5,2,5,6]]}
[]
["Asset and Liability Maturity/Repricing Schedule\n- Interest Rate Risk -"]
[]
[null,"Name of Institution:",{"$f":"'COVER PAGE'!C7","v":"        Select Institution"}]
[null,"Institution Code:",{"$f":"IF(C4=\"ANSA Bank Limited\",\"BBDA\",IF(C4=\"Citibank (Trinidad & Tobago) Limited\",\"CITI\",IF(C4=\"CIBC Caribbean Bank (Trinidad and Tobago) Limited \",\"FCIB\",IF(C4=\"First Citizens Bank Limited \",\"FCB\",IF(C4=\"JMMB Bank (T&T) Limited \",\"ICBL\",IF(C4=\"RBC Royal Bank (Trinidad and Tobago) Limited\",\"RBTT\",IF(C4=\"Republic Bank Limited \",\"RBL\",IF(C4=\"Scotiabank Trinidad and Tobago Limited \",\"BNS\",\"\"))))))))","v":""},{"$f":"IF(B5=\"ANSA Bank Limited\",\"BBDA\",IF(B5=\"Citibank (Trinidad & Tobago) Limited\",\"CITI\",IF(B5=\"FirstCaribbean International Bank (Trinidad & Tobago) Limited \",\"FCIB\",IF(B5=\"First Citizens Bank Limited \",\"FCB\",IF(B5=\"JMMB Bank (T&T) Limited \",\"ICBL\",IF(B5=\"RBC Royal Bank (Trinidad and Tobago) Limited\",\"RBTT\",IF(B5=\"Republic Bank Limited \",\"RBL\",IF(B5=\"Scotiabank Trinidad and Tobago Limited \",\"BNS\",\"\"))))))))","v":""},{"$f":"IF(C5=\"ANSA Bank Limited\",\"BBDA\",IF(C5=\"Citibank (Trinidad & Tobago) Limited\",\"CITI\",IF(C5=\"FirstCaribbean International Bank (Trinidad & Tobago) Limited \",\"FCIB\",IF(C5=\"First Citizens Bank Limited \",\"FCB\",IF(C5=\"JMMB Bank (T&T) Limited \",\"ICBL\",IF(C5=\"RBC Royal Bank (Trinidad and Tobago) Limited\",\"RBTT\",IF(C5=\"Republic Bank Limited \",\"RBL\",IF(C5=\"Scotiabank Trinidad and Tobago Limited \",\"BNS\",\"\"))))))))","v":""},{"$f":"IF(D5=\"ANSA Bank Limited\",\"BBDA\",IF(D5=\"Citibank (Trinidad & Tobago) Limited\",\"CITI\",IF(D5=\"FirstCaribbean International Bank (Trinidad & Tobago) Limited \",\"FCIB\",IF(D5=\"First Citizens Bank Limited \",\"FCB\",IF(D5=\"JMMB Bank (T&T) Limited \",\"ICBL\",IF(D5=\"RBC Royal Bank (Trinidad and Tobago) Limited\",\"RBTT\",IF(D5=\"Republic Bank Limited \",\"RBL\",IF(D5=\"Scotiabank Trinidad and Tobago Limited \",\"BNS\",\"\"))))))))","v":""},{"$f":"IF(E5=\"ANSA Bank Limited\",\"BBDA\",IF(E5=\"Citibank (Trinidad & Tobago) Limited\",\"CITI\",IF(E5=\"FirstCaribbean International Bank (Trinidad & Tobago) Limited \",\"FCIB\",IF(E5=\"First Citizens Bank Limited \",\"FCB\",IF(E5=\"JMMB Bank (T&T) Limited \",\"ICBL\",IF(E5=\"RBC Royal Bank (Trinidad and Tobago) Limited\",\"RBTT\",IF(E5=\"Republic Bank Limited \",\"RBL\",IF(E5=\"Scotiabank Trinidad and Tobago Limited \",\"BNS\",\"\"))))))))","v":""}]
[null,"Period:",{"$f":"CONCATENATE('COVER PAGE'!F9,\" \",'COVER PAGE'!F10)","v":"Select Month Select Year"}]
[]
[null,null,"(TT$'000s)"]
["  ","      ","0-1 Mth",">1-3 Mths",">3-6 Mths",">6-12 Mths",">1-3 Yrs",">3-5 Yrs",">5-10 Yrs",">10-15 Yrs",">15-20 Yrs",">20 Yrs","Assumptions"]
[null,"Assets"]
[11,"Liquid Funds"]
[11.1,"Cash"]
[11.2,"Reserves"]
[11.3,"Other Deposits at Central Bank"]
[11.4,"Other Liquid Funds"]
[12,"Interbank Funds Sold"]
[13,"Investments"]
[13.1,"Fixed Rate"]
[13.2,"Floating Rate"]
[14,"Loans"]
[14.1,"Fixed Rate"]
[14.2,"Floating Rate"]
[15,"Customers' Liabilities on Acceptances"]
[16,"Equity in Subsidiaries and Affiliates"]
[17,"Accounts Receivable "]
[18,"Fixed Assets"]
[19,"Prepaid Expenses and Other Assets"]
[20,"Other Off Balance Sheet Positions"]
[1,"Total Assets",{"$f":"C11+C16+C17+C20+C23+C24+C25+C26+C27+C28","v":0},{"$f":"D11+D16+D17+D20+D23+D24+D25+D26+D27+D28","v":0},0,0,0,0,0,0,0,0]
[null,"Liabilities"]
[21,"Deposits"]
[21.1,"Demand"]
[21.2,"Savings"]
[21.3,"Time"]
[22,"Interbank Funds Bought"]
[23,"Central Bank Funds"]
[24,"Borrowings (up to 1 Year)"]
[24.1,"Fixed"]
[24.2,"Floating"]
[25,"Acceptances Executed"]
[26,"Other Current Liabilities"]
[27,"Long Term Liabilities"]
[28,"Other Off Balance Sheet Positions"]
[2,"Total Liabilities",{"$f":"C31+C35+C36+C37+C40+C41+C42+C43","v":0},{"$f":"D31+D35+D36+D37+D40+D41+D42+D43","v":0},0,0,0,0,0,0,0,0]
[]
[]
[]
[]
[]
[]
[null,null,null," "]

{"sheet":"Maturity","index":4,"n_rows":51,"n_cols":12,"rows_kept":51,"cut":false,"hidden":false,"merged":[[4,2,4,6],[7,2,7,10],[1,0,1,11],[3,2,3,6],[5,2,5,6]]}
[]
["Asset and Liability Maturity Schedule\n- Interest Rate Risk -"]
[]
[null,"Name of Institution:",{"$f":"'COVER PAGE'!C7","v":"        Select Institution"}]
[null,"Institution Code:",{"$f":"IF(C4=\"ANSA Bank Limited\",\"BBDA\",IF(C4=\"Citibank (Trinidad & Tobago) Limited\",\"CITI\",IF(C4=\"CIBC Caribbean Bank (Trinidad and Tobago) Limited \",\"FCIB\",IF(C4=\"First Citizens Bank Limited \",\"FCB\",IF(C4=\"JMMB Bank (T&T) Limited \",\"ICBL\",IF(C4=\"RBC Royal Bank (Trinidad and Tobago) Limited\",\"RBTT\",IF(C4=\"Republic Bank Limited \",\"RBL\",IF(C4=\"Scotiabank Trinidad and Tobago Limited \",\"BNS\",\"\"))))))))","v":""},{"$f":"IF(B5=\"ANSA Bank Limited\",\"BBDA\",IF(B5=\"Citibank (Trinidad & Tobago) Limited\",\"CITI\",IF(B5=\"FirstCaribbean International Bank (Trinidad & Tobago) Limited \",\"FCIB\",IF(B5=\"First Citizens Bank Limited \",\"FCB\",IF(B5=\"JMMB Bank (T&T) Limited \",\"ICBL\",IF(B5=\"RBC Royal Bank (Trinidad and Tobago) Limited\",\"RBTT\",IF(B5=\"Republic Bank Limited \",\"RBL\",IF(B5=\"Scotiabank Trinidad and Tobago Limited \",\"BNS\",\"\"))))))))","v":""},{"$f":"IF(C5=\"ANSA Bank Limited\",\"BBDA\",IF(C5=\"Citibank (Trinidad & Tobago) Limited\",\"CITI\",IF(C5=\"FirstCaribbean International Bank (Trinidad & Tobago) Limited \",\"FCIB\",IF(C5=\"First Citizens Bank Limited \",\"FCB\",IF(C5=\"JMMB Bank (T&T) Limited \",\"ICBL\",IF(C5=\"RBC Royal Bank (Trinidad and Tobago) Limited\",\"RBTT\",IF(C5=\"Republic Bank Limited \",\"RBL\",IF(C5=\"Scotiabank Trinidad and Tobago Limited \",\"BNS\",\"\"))))))))","v":""},{"$f":"IF(D5=\"ANSA Bank Limited\",\"BBDA\",IF(D5=\"Citibank (Trinidad & Tobago) Limited\",\"CITI\",IF(D5=\"FirstCaribbean International Bank (Trinidad & Tobago) Limited \",\"FCIB\",IF(D5=\"First Citizens Bank Limited \",\"FCB\",IF(D5=\"JMMB Bank (T&T) Limited \",\"ICBL\",IF(D5=\"RBC Royal Bank (Trinidad and Tobago) Limited\",\"RBTT\",IF(D5=\"Republic Bank Limited \",\"RBL\",IF(D5=\"Scotiabank Trinidad and Tobago Limited \",\"BNS\",\"\"))))))))","v":""},{"$f":"IF(E5=\"ANSA Bank Limited\",\"BBDA\",IF(E5=\"Citibank (Trinidad & Tobago) Limited\",\"CITI\",IF(E5=\"FirstCaribbean International Bank (Trinidad & Tobago) Limited \",\"FCIB\",IF(E5=\"First Citizens Bank Limited \",\"FCB\",IF(E5=\"JMMB Bank (T&T) Limited \",\"ICBL\",IF(E5=\"RBC Royal Bank (Trinidad and Tobago) Limited\",\"RBTT\",IF(E5=\"Republic Bank Limited \",\"RBL\",IF(E5=\"Scotiabank Trinidad and Tobago Limited \",\"BNS\",\"\"))))))))","v":""}]
[null,"Period:",{"$f":"CONCATENATE('COVER PAGE'!F9,\" \",'COVER PAGE'!F10)","v":"Select Month Select Year"}]
[]
[null,null,"(TT$'000s)"]
["  ","      ","1-7 Days","8-14 Days","15-30 Days","31-60 Days","61-90 Days","91-180 Days","181-270 Days","271-365 Days","> 1 Year","Assumptions"]
[null,"Assets"]
[11,"Liquid Funds"]
[11.1,"Cash"]
[11.2,"Reserves"]
[11.3,"Other Deposits at Central Bank"]
[11.4,"Other Liquid Funds"]
[12,"Interbank Funds Sold"]
[13,"Investments"]
[13.1,"Fixed Rate"]
[13.2,"Floating Rate"]
[14,"Loans"]
[14.1,"Fixed Rate"]
[14.2,"Floating Rate"]
[15,"Customers' Liabilities on Acceptances"]
[16,"Equity in Subsidiaries and Affiliates"]
[17,"Accounts Receivable "]
[18,"Fixed Assets"]
[19,"Prepaid Expenses and Other Assets"]
[20,"Other Off Balance Sheet Positions"]
[1,"Total Assets",{"$f":"C11+C16+C17+C20+C23+C24+C25+C26+C27+C28","v":0},{"$f":"D11+D16+D17+D20+D23+D24+D25+D26+D27+D28","v":0},0,0,0,0,0,0,0]
[null,"Liabilities"]
[21,"Deposits"]
[21.1,"Demand"]
[21.2,"Savings"]
[21.3,"Time"]
[22,"Interbank Funds Bought"]
[23,"Central Bank Funds"]
[24,"Borrowings (up to 1 Year)"]
[24.1,"Fixed"]
[24.2,"Floating"]
[25,"Acceptances Executed"]
[26,"Other Current Liabilities"]
[27,"Long Term Liabilities"]
[28,"Other Off Balance Sheet Positions"]
[2,"Total Liabilities",{"$f":"C31+C35+C36+C37+C40+C41+C42+C43","v":0},{"$f":"D31+D35+D36+D37+D40+D41+D42+D43","v":0},0,0,0,0,0,0,0]
[]
[]
[]
[]
[]
[]
[null,null,null," "]

{"sheet":"Private Sector PDLs by Sector","index":5,"n_rows":86,"n_cols":9,"rows_kept":86,"cut":false,"hidden":false,"merged":[[3,2,3,6],[68,2,68,6],[1,0,1,8],[71,0,71,1],[4,2,4,6],[69,2,69,6],[5,2,5,6],[67,2,67,6],[7,2,7,8],[65,0,65,8],[71,2,71,8],[7,0,7,1]]}
[]
["                       Private Sector: Past Due Loans by Activity Sector"]
[]
[null,"Name of Institution:",{"$f":"'COVER PAGE'!C7","v":"        Select Institution"}]
[null,"Institution Code:",{"$f":"IF(C4=\"ANSA Bank Limited\",\"BBDA\",IF(C4=\"Citibank (Trinidad & Tobago) Limited\",\"CITI\",IF(C4=\"CIBC Caribbean Bank (Trinidad and Tobago) Limited \",\"FCIB\",IF(C4=\"First Citizens Bank Limited \",\"FCB\",IF(C4=\"JMMB Bank (T&T) Limited \",\"ICBL\",IF(C4=\"RBC Royal Bank (Trinidad and Tobago) Limited\",\"RBTT\",IF(C4=\"Republic Bank Limited \",\"RBL\",IF(C4=\"Scotiabank Trinidad and Tobago Limited \",\"BNS\",\"\"))))))))","v":""},{"$f":"IF(B5=\"ANSA Bank Limited\",\"BBDA\",IF(B5=\"Citibank (Trinidad & Tobago) Limited\",\"CITI\",IF(B5=\"FirstCaribbean International Bank (Trinidad & Tobago) Limited \",\"FCIB\",IF(B5=\"First Citizens Bank Limited \",\"FCB\",IF(B5=\"JMMB Bank (T&T) Limited \",\"ICBL\",IF(B5=\"RBC Royal Bank (Trinidad and Tobago) Limited\",\"RBTT\",IF(B5=\"Republic Bank Limited \",\"RBL\",IF(B5=\"Scotiabank Trinidad and Tobago Limited \",\"BNS\",\"\"))))))))","v":""},{"$f":"IF(C5=\"ANSA Bank Limited\",\"BBDA\",IF(C5=\"Citibank (Trinidad & Tobago) Limited\",\"CITI\",IF(C5=\"FirstCaribbean International Bank (Trinidad & Tobago) Limited \",\"FCIB\",IF(C5=\"First Citizens Bank Limited \",\"FCB\",IF(C5=\"JMMB Bank (T&T) Limited \",\"ICBL\",IF(C5=\"RBC Royal Bank (Trinidad and Tobago) Limited\",\"RBTT\",IF(C5=\"Republic Bank Limited \",\"RBL\",IF(C5=\"Scotiabank Trinidad and Tobago Limited \",\"BNS\",\"\"))))))))","v":""},{"$f":"IF(D5=\"ANSA Bank Limited\",\"BBDA\",IF(D5=\"Citibank (Trinidad & Tobago) Limited\",\"CITI\",IF(D5=\"FirstCaribbean International Bank (Trinidad & Tobago) Limited \",\"FCIB\",IF(D5=\"First Citizens Bank Limited \",\"FCB\",IF(D5=\"JMMB Bank (T&T) Limited \",\"ICBL\",IF(D5=\"RBC Royal Bank (Trinidad and Tobago) Limited\",\"RBTT\",IF(D5=\"Republic Bank Limited \",\"RBL\",IF(D5=\"Scotiabank Trinidad and Tobago Limited \",\"BNS\",\"\"))))))))","v":""},{"$f":"IF(E5=\"ANSA Bank Limited\",\"BBDA\",IF(E5=\"Citibank (Trinidad & Tobago) Limited\",\"CITI\",IF(E5=\"FirstCaribbean International Bank (Trinidad & Tobago) Limited \",\"FCIB\",IF(E5=\"First Citizens Bank Limited \",\"FCB\",IF(E5=\"JMMB Bank (T&T) Limited \",\"ICBL\",IF(E5=\"RBC Royal Bank (Trinidad and Tobago) Limited\",\"RBTT\",IF(E5=\"Republic Bank Limited \",\"RBL\",IF(E5=\"Scotiabank Trinidad and Tobago Limited \",\"BNS\",\"\"))))))))","v":""}]
[null,"Period:",{"$f":"CONCATENATE('COVER PAGE'!F9,\" \",'COVER PAGE'!F10)","v":"Select Month Select Year"}]
[]
[null,null,"(TT$000s)"]
["  ","Business Purpose","Current","1 Mth",">1-3 Mths",">3-6 Mths",">6-12 Mths",">12-24 Mths",">24 Mths"]
[1,"Cocoa, Coffee, Citrus Cultivation"]
[2,"Coconut Growing"]
[3,"Rootcrops, Pulses, Vegetables, Tobacco, Rice"]
[4,"Poultry and Eggs"]
[5,"Dairy, Beef, Pork and Other Meat"]
[6,"Forestry and Fishing"]
[7,"Other Domestic Agriculture"]
[8,"Sugar Industry"]
[9,"Petroleum (Including Petrochemicals and Asphalt"]
[10,"Food Processors"]
[11,"Drink and Tobacco Processors"]
[12,"Textiles and Garments"]
[13,"Footwear, Headwear, Zippers, etc."]
[14,"Printing, Publishing and Paper Converters"]
[15,"Wood and Related Products"]
[16,"Industrial Gases and Paints"]
[17,"Pharmaceuticals and Other Chemicals"]
[18,"Clay Bricks and Blocks and Tiles"]
[19,"Cement and Concrete Products"]
[20,"Other Chemicals and Non-metallic Minerals"]
[21,"Motor Vehicle Assembly and other Transport Equipment and Parts"]
[22,"Assembly of Appliances and Electronic Items"]
[23,"Metal Building Materials, Containers and Furniture"]
[24,"Manufacture of Iron and Steel"]
[25,"Other Assembly Type and Related Industries"]
[26,"Miscellaneous Manufacturing"]
[27,"Electricity and Water"]
[28,"Building Construction and Repair"]
[29,"Civil Engineering (Roads and Bridges)"]
[30,"Electrical Installation, Plumbing, Painting, etc."]
[31,"Other Construction (Including Quarrying)"]
[32,"Wholesale Trade"]
[33,"Retail Trade"]
[34,"Restaurants, Bars, Snackettes, Parlours, etc."]
[35,"Hotels and Guest Houses"]
[36,"Taxi Service and Car Rentals"]
[37,"Trucking"]
[38,"Storage and Communications"]
[39,"Other Transport and Ancillary Services"]
[40,"Banks (Commercial / Central Banks)"]
[41,"Life Insurance"]
[42,"Non - Life Insurance"]
[43,"Finance and Acceptance Services, etc."]
[44,"Real Estate"]
[45,"All Other Business Services"]
[46,"Education, Cultural and Community Services"]
[47,"Health Services"]
[48,"Recreational Services (Cinemas, Clubs, etc.)"]
[49,"All Other Personal Services"]
[50,"All Other Purposes"]
[51,"Leasing"]
[52,"Real Estate Mortgages"]
[null,"Total",{"$f":"SUBTOTAL(109,Table19[Current])","v":0},{"$f":"SUBTOTAL(109,Table19[1 Mth])","v":0},{"$f":"SUBTOTAL(109,Table19[>1-3 Mths])","v":0},{"$f":"SUBTOTAL(109,Table19[>3-6 Mths])","v":0},{"$f":"SUBTOTAL(109,Table19[>6-12 Mths])","v":0},{"$f":"SUBTOTAL(109,Table19[>12-24 Mths])","v":0},{"$f":"SUBTOTAL(109,Table19[>24 Mths])","v":0}]
[]
[]
[]
["                       Private Sector: Past Due Loans by Activity Sector"]
[]
[null,"Name of Institution:",{"$f":"C4","v":"        Select Institution"}]
[null,"Institution Code:",{"$f":"C5","v":""}]
[null,"Period:",{"$f":"C6","v":"Select Month Select Year"}]
[]
[null,null,"(TT$000s)"]
["  ","Business Purpose","Current","1 Mth",">1-3 Mths",">3-6 Mths",">6-12 Mths",">12-24 Mths",">24 Mths"]
[null,"Agriculture",{"$f":"SUM(C10:C17)","v":0},0,0,0,0,0,0]
[null,"Petroleum",{"$f":"SUM(C18:C18)","v":0},0,0,0,0,0,0]
[null,"Manufacturing",{"$f":"SUM(C19:C35)","v":0},0,0,0,0,0,0]
[null,"Construction",{"$f":"SUM(C37:C40)","v":0},0,0,0,0,0,0]
[null,"Distribution",{"$f":"SUM(C41:C43)","v":0},0,0,0,0,0,0]
[null,"Electricity and Water",{"$f":"C36","v":0},0,0,0,0,0,0]
[null,"Finance and Insurance ",{"$f":"SUM(C49:C52)","v":0},0,0,0,0,0,0]
[null,"Real Estate ",{"$f":"C$53","v":0},0,0,0,0,0,0]
[null,"Transport Storage and Communication",{"$f":"SUM(C45:C48)","v":0},0,0,0,0,0,0]
[null,"All Other Services",{"$f":"SUM(C44,C54:C59)","v":0},0,0,0,0,0,0]
[null,"Leasing",{"$f":"C60","v":0},0,0,0,0,0,0]
[null,"Real Estate Mortgages",0,0,0,0,0,0,0]
[null,"Total",{"$f":"SUBTOTAL(109,C74:C85)","v":0},0,0,0,0,0,0]

{"sheet":"Public Sector PDLs by Sector","index":6,"n_rows":86,"n_cols":9,"rows_kept":86,"cut":false,"hidden":false,"merged":[[4,2,4,6],[3,2,3,6],[1,0,1,8],[7,0,7,1],[69,2,69,6],[5,2,5,6],[7,2,7,8],[71,0,71,1],[71,2,71,8],[68,2,68,6],[67,2,67,6],[65,0,65,8]]}
[]
["                       Public Sector: Past Due Loans by Activity Sector"]
[]
[null,"Name of Institution:",{"$f":"'COVER PAGE'!C7","v":"        Select Institution"}]
[null,"Institution Code:",{"$f":"IF(C4=\"ANSA Bank Limited\",\"BBDA\",IF(C4=\"Citibank (Trinidad & Tobago) Limited\",\"CITI\",IF(C4=\"CIBC Caribbean Bank (Trinidad and Tobago) Limited \",\"FCIB\",IF(C4=\"First Citizens Bank Limited \",\"FCB\",IF(C4=\"JMMB Bank (T&T) Limited \",\"ICBL\",IF(C4=\"RBC Royal Bank (Trinidad and Tobago) Limited\",\"RBTT\",IF(C4=\"Republic Bank Limited \",\"RBL\",IF(C4=\"Scotiabank Trinidad and Tobago Limited \",\"BNS\",\"\"))))))))","v":""},{"$f":"IF(B5=\"ANSA Bank Limited\",\"BBDA\",IF(B5=\"Citibank (Trinidad & Tobago) Limited\",\"CITI\",IF(B5=\"FirstCaribbean International Bank (Trinidad & Tobago) Limited \",\"FCIB\",IF(B5=\"First Citizens Bank Limited \",\"FCB\",IF(B5=\"JMMB Bank (T&T) Limited \",\"ICBL\",IF(B5=\"RBC Royal Bank (Trinidad and Tobago) Limited\",\"RBTT\",IF(B5=\"Republic Bank Limited \",\"RBL\",IF(B5=\"Scotiabank Trinidad and Tobago Limited \",\"BNS\",\"\"))))))))","v":""},{"$f":"IF(C5=\"ANSA Bank Limited\",\"BBDA\",IF(C5=\"Citibank (Trinidad & Tobago) Limited\",\"CITI\",IF(C5=\"FirstCaribbean International Bank (Trinidad & Tobago) Limited \",\"FCIB\",IF(C5=\"First Citizens Bank Limited \",\"FCB\",IF(C5=\"JMMB Bank (T&T) Limited \",\"ICBL\",IF(C5=\"RBC Royal Bank (Trinidad and Tobago) Limited\",\"RBTT\",IF(C5=\"Republic Bank Limited \",\"RBL\",IF(C5=\"Scotiabank Trinidad and Tobago Limited \",\"BNS\",\"\"))))))))","v":""},{"$f":"IF(D5=\"ANSA Bank Limited\",\"BBDA\",IF(D5=\"Citibank (Trinidad & Tobago) Limited\",\"CITI\",IF(D5=\"FirstCaribbean International Bank (Trinidad & Tobago) Limited \",\"FCIB\",IF(D5=\"First Citizens Bank Limited \",\"FCB\",IF(D5=\"JMMB Bank (T&T) Limited \",\"ICBL\",IF(D5=\"RBC Royal Bank (Trinidad and Tobago) Limited\",\"RBTT\",IF(D5=\"Republic Bank Limited \",\"RBL\",IF(D5=\"Scotiabank Trinidad and Tobago Limited \",\"BNS\",\"\"))))))))","v":""},{"$f":"IF(E5=\"ANSA Bank Limited\",\"BBDA\",IF(E5=\"Citibank (Trinidad & Tobago) Limited\",\"CITI\",IF(E5=\"FirstCaribbean International Bank (Trinidad & Tobago) Limited \",\"FCIB\",IF(E5=\"First Citizens Bank Limited \",\"FCB\",IF(E5=\"JMMB Bank (T&T) Limited \",\"ICBL\",IF(E5=\"RBC Royal Bank (Trinidad and Tobago) Limited\",\"RBTT\",IF(E5=\"Republic Bank Limited \",\"RBL\",IF(E5=\"Scotiabank Trinidad and Tobago Limited \",\"BNS\",\"\"))))))))","v":""}]
[null,"Period:",{"$f":"CONCATENATE('COVER PAGE'!F9,\" \",'COVER PAGE'!F10)","v":"Select Month Select Year"}]
[]
[null,null,"(TT$000s)"]
["  ","Business Purpose","Current","1 Mth",">1-3 Mths",">3-6 Mths",">6-12 Mths",">12-24 Mths",">24 Mths"]
[1,"Cocoa, Coffee, Citrus Cultivation"]
[2,"Coconut Growing"]
[3,"Rootcrops, Pulses, Vegetables, Tobacco, Rice"]
[4,"Poultry and Eggs"]
[5,"Dairy, Beef, Pork and Other Meat"]
[6,"Forestry and Fishing"]
[7,"Other Domestic Agriculture"]
[8,"Sugar Industry"]
[9,"Petroleum (Including Petrochemicals and Asphalt"]
[10,"Food Processors"]
[11,"Drink and Tobacco Processors"]
[12,"Textiles and Garments"]
[13,"Footwear, Headwear, Zippers, etc."]
[14,"Printing, Publishing and Paper Converters"]
[15,"Wood and Related Products"]
[16,"Industrial Gases and Paints"]
[17,"Pharmaceuticals and Other Chemicals"]
[18,"Clay Bricks and Blocks and Tiles"]
[19,"Cement and Concrete Products"]
[20,"Other Chemicals and Non-metallic Minerals"]
[21,"Motor Vehicle Assembly and other Transport Equipment and Parts"]
[22,"Assembly of Appliances and Electronic Items"]
[23,"Metal Building Materials, Containers and Furniture"]
[24,"Manufacture of Iron and Steel"]
[25,"Other Assembly Type and Related Industries"]
[26,"Miscellaneous Manufacturing"]
[27,"Electricity and Water"]
[28,"Building Construction and Repair"]
[29,"Civil Engineering (Roads and Bridges)"]
[30,"Electrical Installation, Plumbing, Painting, etc."]
[31,"Other Construction (Including Quarrying)"]
[32,"Wholesale Trade"]
[33,"Retail Trade"]
[34,"Restaurants, Bars, Snackettes, Parlours, etc."]
[35,"Hotels and Guest Houses"]
[36,"Taxi Service and Car Rentals"]
[37,"Trucking"]
[38,"Storage and Communications"]
[39,"Other Transport and Ancillary Services"]
[40,"Banks (Commercial / Central Banks)"]
[41,"Life Insurance"]
[42,"Non - Life Insurance"]
[43,"Finance and Acceptance Services, etc."]
[44,"Real Estate"]
[45,"All Other Business Services"]
[46,"Education, Cultural and Community Services"]
[47,"Health Services"]
[48,"Recreational Services (Cinemas, Clubs, etc.)"]
[49,"All Other Personal Services"]
[50,"All Other Purposes"]
[51,"Leasing"]
[52,"Real Estate Mortgages",null,null,null,null,null,null,0]
[null,"Total",{"$f":"SUBTOTAL(109,Table1911[Current])","v":0},{"$f":"SUBTOTAL(109,Table1911[1 Mth])","v":0},{"$f":"SUBTOTAL(109,Table1911[>1-3 Mths])","v":0},{"$f":"SUBTOTAL(109,Table1911[>3-6 Mths])","v":0},{"$f":"SUBTOTAL(109,Table1911[>6-12 Mths])","v":0},{"$f":"SUBTOTAL(109,Table1911[>12-24 Mths])","v":0},{"$f":"SUBTOTAL(109,Table1911[>24 Mths])","v":0}]
[]
[]
[]
["                       Public Sector: Past Due Loans by Activity Sector"]
[]
[null,"Name of Institution:",{"$f":"C4","v":"        Select Institution"}]
[null,"Institution Code:",{"$f":"C5","v":""}]
[null,"Period:",{"$f":"C6","v":"Select Month Select Year"}]
[]
[null,null,"(TT$000s)"]
["  ","Business Purpose","Current","1 Mth",">1-3 Mths",">3-6 Mths",">6-12 Mths",">12-24 Mths",">24 Mths"]
[null,"Agriculture",{"$f":"SUM(C10:C17)","v":0},0,0,0,0,0,0]
[null,"Petroleum",{"$f":"SUM(C18:C18)","v":0},0,0,0,0,0,0]
[null,"Manufacturing",{"$f":"SUM(C19:C35)","v":0},0,0,0,0,0,0]
[null,"Construction",{"$f":"SUM(C37:C40)","v":0},0,0,0,0,0,0]
[null,"Distribution",{"$f":"SUM(C41:C43)","v":0},0,0,0,0,0,0]
[null,"Electricity and Water",{"$f":"C36","v":0},0,0,0,0,0,0]
[null,"Finance and Insurance ",{"$f":"SUM(C49:C52)","v":0},0,0,0,0,0,0]
[null,"Real Estate",{"$f":"C$53","v":0},0,0,0,0,0,0]
[null,"Transport Storage and Communication",{"$f":"SUM(C45:C48)","v":0},0,0,0,0,0,0]
[null,"All Other Services",{"$f":"SUM(C44,C54:C59)","v":0},0,0,0,0,0,0]
[null,"Leasing",{"$f":"C60","v":0},0,0,0,0,0,0]
[null,"Real Estate Mortgages",0,0,0,0,0,0,0]
[null,"Total",{"$f":"SUBTOTAL(109,Table31012[Current])","v":0},{"$f":"SUBTOTAL(109,Table31012[1 Mth])","v":0},{"$f":"SUBTOTAL(109,Table31012[>1-3 Mths])","v":0},{"$f":"SUBTOTAL(109,Table31012[>3-6 Mths])","v":0},{"$f":"SUBTOTAL(109,Table31012[>6-12 Mths])","v":0},{"$f":"SUBTOTAL(109,Table31012[>12-24 Mths])","v":0},{"$f":"SUBTOTAL(109,Table31012[>24 Mths])","v":0}]

{"sheet":"Consumer PDLs by Purpose","index":7,"n_rows":31,"n_cols":9,"rows_kept":31,"cut":false,"hidden":false,"merged":[[7,0,7,1],[3,2,3,6],[1,0,1,8],[5,2,5,6],[7,2,7,8],[4,2,4,6]]}
[]
["                       Consumers: Past Due Loans by Purpose"]
[]
[null,"Name of Institution:",{"$f":"'COVER PAGE'!C7","v":"        Select Institution"}]
[null,"Institution Code:",{"$f":"IF(C4=\"ANSA Bank Limited\",\"BBDA\",IF(C4=\"Citibank (Trinidad & Tobago) Limited\",\"CITI\",IF(C4=\"CIBC Caribbean Bank (Trinidad and Tobago) Limited \",\"FCIB\",IF(C4=\"First Citizens Bank Limited \",\"FCB\",IF(C4=\"JMMB Bank (T&T) Limited \",\"ICBL\",IF(C4=\"RBC Royal Bank (Trinidad and Tobago) Limited\",\"RBTT\",IF(C4=\"Republic Bank Limited \",\"RBL\",IF(C4=\"Scotiabank Trinidad and Tobago Limited \",\"BNS\",\"\"))))))))","v":""},{"$f":"IF(B5=\"ANSA Bank Limited\",\"BBDA\",IF(B5=\"Citibank (Trinidad & Tobago) Limited\",\"CITI\",IF(B5=\"FirstCaribbean International Bank (Trinidad & Tobago) Limited \",\"FCIB\",IF(B5=\"First Citizens Bank Limited \",\"FCB\",IF(B5=\"JMMB Bank (T&T) Limited \",\"ICBL\",IF(B5=\"RBC Royal Bank (Trinidad and Tobago) Limited\",\"RBTT\",IF(B5=\"Republic Bank Limited \",\"RBL\",IF(B5=\"Scotiabank Trinidad and Tobago Limited \",\"BNS\",\"\"))))))))","v":""},{"$f":"IF(C5=\"ANSA Bank Limited\",\"BBDA\",IF(C5=\"Citibank (Trinidad & Tobago) Limited\",\"CITI\",IF(C5=\"FirstCaribbean International Bank (Trinidad & Tobago) Limited \",\"FCIB\",IF(C5=\"First Citizens Bank Limited \",\"FCB\",IF(C5=\"JMMB Bank (T&T) Limited \",\"ICBL\",IF(C5=\"RBC Royal Bank (Trinidad and Tobago) Limited\",\"RBTT\",IF(C5=\"Republic Bank Limited \",\"RBL\",IF(C5=\"Scotiabank Trinidad and Tobago Limited \",\"BNS\",\"\"))))))))","v":""},{"$f":"IF(D5=\"ANSA Bank Limited\",\"BBDA\",IF(D5=\"Citibank (Trinidad & Tobago) Limited\",\"CITI\",IF(D5=\"FirstCaribbean International Bank (Trinidad & Tobago) Limited \",\"FCIB\",IF(D5=\"First Citizens Bank Limited \",\"FCB\",IF(D5=\"JMMB Bank (T&T) Limited \",\"ICBL\",IF(D5=\"RBC Royal Bank (Trinidad and Tobago) Limited\",\"RBTT\",IF(D5=\"Republic Bank Limited \",\"RBL\",IF(D5=\"Scotiabank Trinidad and Tobago Limited \",\"BNS\",\"\"))))))))","v":""},{"$f":"IF(E5=\"ANSA Bank Limited\",\"BBDA\",IF(E5=\"Citibank (Trinidad & Tobago) Limited\",\"CITI\",IF(E5=\"FirstCaribbean International Bank (Trinidad & Tobago) Limited \",\"FCIB\",IF(E5=\"First Citizens Bank Limited \",\"FCB\",IF(E5=\"JMMB Bank (T&T) Limited \",\"ICBL\",IF(E5=\"RBC Royal Bank (Trinidad and Tobago) Limited\",\"RBTT\",IF(E5=\"Republic Bank Limited \",\"RBL\",IF(E5=\"Scotiabank Trinidad and Tobago Limited \",\"BNS\",\"\"))))))))","v":""}]
[null,"Period:",{"$f":"CONCATENATE('COVER PAGE'!F9,\" \",'COVER PAGE'!F10)","v":"Select Month Select Year"}]
[]
[null,null,"(TT$000s)"]
["  ","Consumer Purpose","Current","1 Mth",">1-3 Mths",">3-6 Mths",">6-12 Mths",">12-24 Mths",">24 Mths"]
[1,"Bridging Finance"]
[2,"Land and Real Estate"]
[3,"Home Improvement/Renovation"]
[4,"Private Cars - New"]
[5,"Private Cars - Used"]
[6,"Other vehicles"]
[7,"Electrical/Non - Electrical Domestic Appliances"]
[8,"Radios, Musical Instruments, etc."]
[9,"Other Furniture, Furnishings"]
[10,"Purchase of New Shares"]
[11,"Purchase of Other Financial Assets"]
[12,"Education"]
[13,"Medical "]
[14,"Travel"]
[15,"Insurance ( Life and Non - Life )"]
[16,"Professional Services ( Legal, Funeral, etc)"]
[17,"Refinancing"]
[18,"Consolidation of Debts"]
[19,"Other Purposes "]
[20,"Leasing"]
[21,"Real Estate Mortgages"]
["22","Total",{"$f":"SUBTOTAL(109,C10:C30)","v":0},0,0,0,0,0,0]

{"sheet":"ascii","index":8,"n_rows":1505,"n_cols":4,"rows_kept":1505,"cut":false,"hidden":true,"merged":[]}
["DATE",{"$f":"TEXT(CONCATENATE('COVER PAGE'!F9,\" \",'COVER PAGE'!F10),\"mmmyy\")","v":"Select Month Select Year"},"FREQ","Q"]
["SERIESNAME",{"$f":"VLOOKUP('COVER PAGE'!C7,Codes!A1:B9,2,)","v":"xxx"}]
[".11.INTRATE.0_1MTH.ALL",{"$f":"'Repricing&Maturity'!$C$11","v":0}]
[".11.INTRATE.OVR1_3MTHS.ALL",{"$f":"'Repricing&Maturity'!$D$11","v":0}]
[".11.INTRATE.OVR3_6MTHS.ALL ",{"$f":"'Repricing&Maturity'!$E$11","v":0}]
[".11.INTRATE.OVR6_12MTHS.ALL ",{"$f":"'Repricing&Maturity'!$F$11","v":0}]
[".11.INTRATE.OVR1_3YRS.ALL ",{"$f":"'Repricing&Maturity'!$G$11","v":0}]
[".11.INTRATE.OVR3YRS_5YRS.ALL ",{"$f":"'Repricing&Maturity'!$H$11","v":0}]
[".11.INTRATE.OVR5YRS_10YRS.ALL ",{"$f":"'Repricing&Maturity'!$I$11","v":0}]
[".11.INTRATE.OVR10_15YRS.ALL ",{"$f":"'Repricing&Maturity'!$J$11","v":0}]
[".11.INTRATE.OVR15YRS_20YRS.ALL ",{"$f":"'Repricing&Maturity'!$K$11","v":0}]
[".11.INTRATE.OVR20YRS.ALL ",{"$f":"'Repricing&Maturity'!$L$11","v":0}]
[".1101.INTRATE.0_1MTH.ALL ",{"$f":"'Repricing&Maturity'!C12","v":0}]
[".1101.INTRATE.OVR1_3MTHS.ALL",{"$f":"'Repricing&Maturity'!$D$12","v":0}]
[".1101.INTRATE.OVR3_6MTHS.ALL ",{"$f":"'Repricing&Maturity'!$E$12","v":0}]
[".1101.INTRATE.OVR6_12MTHS.ALL ",{"$f":"'Repricing&Maturity'!$F$12","v":0}]
[".1101.INTRATE.OVR1_3YRS.ALL ",{"$f":"'Repricing&Maturity'!$G$12","v":0}]
[".1101.INTRATE.OVR3YRS_5YRS.ALL ",{"$f":"'Repricing&Maturity'!$H$12","v":0}]
[".1101.INTRATE.OVR5YRS_10YRS.ALL ",{"$f":"'Repricing&Maturity'!$I$12","v":0}]
[".1101.INTRATE.OVR10_15YRS.ALL ",{"$f":"'Repricing&Maturity'!$J$12","v":0}]
[".1101.INTRATE.OVR15YRS_20YRS.ALL ",{"$f":"'Repricing&Maturity'!$K$12","v":0}]
[".1101.INTRATE.OVR20YRS.ALL ",{"$f":"'Repricing&Maturity'!$L$12","v":0}]
[".1102.INTRATE.0_1MTH.ALL ",{"$f":"'Repricing&Maturity'!C13","v":0}]
[".1102.INTRATE.OVR1_3MTHS.ALL",{"$f":"'Repricing&Maturity'!$D$13","v":0}]
[".1102.INTRATE.OVR3_6MTHS.ALL ",{"$f":"'Repricing&Maturity'!$E$13","v":0}]
[".1102.INTRATE.OVR6_12MTHS.ALL ",{"$f":"'Repricing&Maturity'!$F$13","v":0}]
[".1102.INTRATE.OVR1_3YRS.ALL ",{"$f":"'Repricing&Maturity'!$G$13","v":0}]
[".1102.INTRATE.OVR3YRS_5YRS.ALL ",{"$f":"'Repricing&Maturity'!$H$13","v":0}]
[".1102.INTRATE.OVR5YRS_10YRS.ALL ",{"$f":"'Repricing&Maturity'!$I$13","v":0}]
[".1102.INTRATE.OVR10_15YRS.ALL ",{"$f":"'Repricing&Maturity'!$J$13","v":0}]
[".1102.INTRATE.OVR15YRS_20YRS.ALL ",{"$f":"'Repricing&Maturity'!$K$13","v":0}]
[".1102.INTRATE.OVR20YRS.ALL ",{"$f":"'Repricing&Maturity'!$L$13","v":0}]
[".1103.INTRATE.0_1MTH.ALL ",{"$f":"'Repricing&Maturity'!$C$14","v":0}]
[".1103.INTRATE.OVR1_3MTHS.ALL",{"$f":"'Repricing&Maturity'!$D$14","v":0}]
[".1103.INTRATE.OVR3_6MTHS.ALL ",{"$f":"'Repricing&Maturity'!$E$14","v":0}]
[".1103.INTRATE.OVR6_12MTHS.ALL ",{"$f":"'Repricing&Maturity'!$F$14","v":0}]
[".1103.INTRATE.OVR1_3YRS.ALL ",{"$f":"'Repricing&Maturity'!$G$14","v":0}]
[".1103.INTRATE.OVR3YRS_5YRS.ALL ",{"$f":"'Repricing&Maturity'!$H$14","v":0}]
[".1103.INTRATE.OVR5YRS_10YRS.ALL ",{"$f":"'Repricing&Maturity'!$I$14","v":0}]
[".1103.INTRATE.OVR10_15YRS.ALL ",{"$f":"'Repricing&Maturity'!$J$14","v":0}]
[".1103.INTRATE.OVR15YRS_20YRS.ALL ",{"$f":"'Repricing&Maturity'!$K$14","v":0}]
[".1103.INTRATE.OVR20YRS.ALL ",{"$f":"'Repricing&Maturity'!$L$14","v":0}]
[".1104.INTRATE.0_1MTH.ALL ",{"$f":"'Repricing&Maturity'!$C$15","v":0}]
[".1104.INTRATE.OVR1_3MTHS.ALL",{"$f":"'Repricing&Maturity'!$D$15","v":0}]
[".1104.INTRATE.OVR3_6MTHS.ALL ",{"$f":"'Repricing&Maturity'!$E$15","v":0}]
[".1104.INTRATE.OVR6_12MTHS.ALL ",{"$f":"'Repricing&Maturity'!$F$15","v":0}]
[".1104.INTRATE.OVR1_3YRS.ALL ",{"$f":"'Repricing&Maturity'!$G$15","v":0}]
[".1104.INTRATE.OVR3YRS_5YRS.ALL ",{"$f":"'Repricing&Maturity'!$H$15","v":0}]
[".1104.INTRATE.OVR5YRS_10YRS.ALL ",{"$f":"'Repricing&Maturity'!$I$15","v":0}]
[".1104.INTRATE.OVR10_15YRS.ALL ",{"$f":"'Repricing&Maturity'!$J$15","v":0}]
[".1104.INTRATE.OVR15YRS_20YRS.ALL ",{"$f":"'Repricing&Maturity'!$K$15","v":0}]
[".1104.INTRATE.OVR20YRS.ALL ",{"$f":"'Repricing&Maturity'!$L$15","v":0}]
[".12.INTRATE.0_1MTH.ALL ",{"$f":"'Repricing&Maturity'!$C$16","v":0}]
[".12.INTRATE.OVR1_3MTHS.ALL",{"$f":"'Repricing&Maturity'!$D$16","v":0}]
[".12.INTRATE.OVR3_6MTHS.ALL ",{"$f":"'Repricing&Maturity'!$E$16","v":0}]
[".12.INTRATE.OVR6_12MTHS.ALL ",{"$f":"'Repricing&Maturity'!$F$16","v":0}]
[".12.INTRATE.OVR1_3YRS.ALL ",{"$f":"'Repricing&Maturity'!$G$16","v":0}]
[".12.INTRATE.OVR3YRS_5YRS.ALL ",{"$f":"'Repricing&Maturity'!$H$16","v":0}]
[".12.INTRATE.OVR5YRS_10YRS.ALL ",{"$f":"'Repricing&Maturity'!$I$16","v":0}]
[".12.INTRATE.OVR10_15YRS.ALL ",{"$f":"'Repricing&Maturity'!$J$16","v":0}]
[".12.INTRATE.OVR15YRS_20YRS.ALL ",{"$f":"'Repricing&Maturity'!$K$16","v":0}]
[".12.INTRATE.OVR20YRS.ALL ",{"$f":"'Repricing&Maturity'!$L$16","v":0}]
[".13.INTRATE.0_1MTH.ALL ",{"$f":"'Repricing&Maturity'!$C$17","v":0}]
[".13.INTRATE.OVR1_3MTHS.ALL",{"$f":"'Repricing&Maturity'!$D$17","v":0}]
[".13.INTRATE.OVR3_6MTHS.ALL ",{"$f":"'Repricing&Maturity'!$E$17","v":0}]
[".13.INTRATE.OVR6_12MTHS.ALL ",{"$f":"'Repricing&Maturity'!$F$17","v":0}]
[".13.INTRATE.OVR1_3YRS.ALL ",{"$f":"'Repricing&Maturity'!$G$17","v":0}]
[".13.INTRATE.OVR3YRS_5YRS.ALL ",{"$f":"'Repricing&Maturity'!$H$17","v":0}]
[".13.INTRATE.OVR5YRS_10YRS.ALL ",{"$f":"'Repricing&Maturity'!$I$17","v":0}]
[".13.INTRATE.OVR10_15YRS.ALL ",{"$f":"'Repricing&Maturity'!$J$17","v":0}]
[".13.INTRATE.OVR15YRS_20YRS.ALL ",{"$f":"'Repricing&Maturity'!$K$17","v":0}]
[".13.INTRATE.OVR20YRS.ALL ",{"$f":"'Repricing&Maturity'!$L$17","v":0}]
[".1301.INTRATE.0_1MTH.ALL ",{"$f":"'Repricing&Maturity'!$C$18","v":0}]
[".1301.INTRATE.OVR1_3MTHS.ALL",{"$f":"'Repricing&Maturity'!$D$18","v":0}]
[".1301.INTRATE.OVR3_6MTHS.ALL ",{"$f":"'Repricing&Maturity'!$E$18","v":0}]
[".1301.INTRATE.OVR6_12MTHS.ALL ",{"$f":"'Repricing&Maturity'!$F$18","v":0}]
[".1301.INTRATE.OVR1_3YRS.ALL ",{"$f":"'Repricing&Maturity'!$G$18","v":0}]
[".1301.INTRATE.OVR3YRS_5YRS.ALL ",{"$f":"'Repricing&Maturity'!$H$18","v":0}]
[".1301.INTRATE.OVR5YRS_10YRS.ALL ",{"$f":"'Repricing&Maturity'!$I$18","v":0}]
[".1301.INTRATE.OVR10_15YRS.ALL ",{"$f":"'Repricing&Maturity'!$J$18","v":0}]
[".1301.INTRATE.OVR15YRS_20YRS.ALL ",{"$f":"'Repricing&Maturity'!$K$18","v":0}]
[".1301.INTRATE.OVR20YRS.ALL ",{"$f":"'Repricing&Maturity'!$L$18","v":0}]
[".1302.INTRATE.0_1MTH.ALL ",{"$f":"'Repricing&Maturity'!$C$19","v":0}]
[".1302.INTRATE.OVR1_3MTHS.ALL",{"$f":"'Repricing&Maturity'!$D$19","v":0}]
[".1302.INTRATE.OVR3_6MTHS.ALL ",{"$f":"'Repricing&Maturity'!$E$19","v":0}]
[".1302.INTRATE.OVR6_12MTHS.ALL ",{"$f":"'Repricing&Maturity'!$F$19","v":0}]
[".1302.INTRATE.OVR1_3YRS.ALL ",{"$f":"'Repricing&Maturity'!$G$19","v":0}]
[".1302.INTRATE.OVR3YRS_5YRS.ALL ",{"$f":"'Repricing&Maturity'!$H$19","v":0}]
[".1302.INTRATE.OVR5YRS_10YRS.ALL ",{"$f":"'Repricing&Maturity'!$I$19","v":0}]
[".1302.INTRATE.OVR10_15YRS.ALL ",{"$f":"'Repricing&Maturity'!$J$19","v":0}]
[".1302.INTRATE.OVR15YRS_20YRS.ALL ",{"$f":"'Repricing&Maturity'!$K$19","v":0}]
[".1302.INTRATE.OVR20YRS.ALL ",{"$f":"'Repricing&Maturity'!$L$19","v":0}]
[".14.INTRATE.0_1MTH.ALL ",{"$f":"'Repricing&Maturity'!$C$20","v":0}]
[".14.INTRATE.OVR1_3MTHS.ALL",{"$f":"'Repricing&Maturity'!$D$20","v":0}]
[".14.INTRATE.OVR3_6MTHS.ALL ",{"$f":"'Repricing&Maturity'!$E$20","v":0}]
[".14.INTRATE.OVR6_12MTHS.ALL ",{"$f":"'Repricing&Maturity'!$F$20","v":0}]
[".14.INTRATE.OVR1_3YRS.ALL ",{"$f":"'Repricing&Maturity'!$G$20","v":0}]
[".14.INTRATE.OVR3YRS_5YRS.ALL ",{"$f":"'Repricing&Maturity'!$H$20","v":0}]
[".14.INTRATE.OVR5YRS_10YRS.ALL ",{"$f":"'Repricing&Maturity'!$I$20","v":0}]
[".14.INTRATE.OVR10_15YRS.ALL ",{"$f":"'Repricing&Maturity'!$J$20","v":0}]
[".14.INTRATE.OVR15YRS_20YRS.ALL ",{"$f":"'Repricing&Maturity'!$K$20","v":0}]
[".14.INTRATE.OVR20YRS.ALL ",{"$f":"'Repricing&Maturity'!$L$20","v":0}]
[".1401.INTRATE.0_1MTH.ALL ",{"$f":"'Repricing&Maturity'!$C$21","v":0}]
[".1401.INTRATE.OVR1_3MTHS.ALL",{"$f":"'Repricing&Maturity'!$D$21","v":0}]
[".1401.INTRATE.OVR3_6MTHS.ALL ",{"$f":"'Repricing&Maturity'!$E$21","v":0}]
[".1401.INTRATE.OVR6_12MTHS.ALL ",{"$f":"'Repricing&Maturity'!$F$21","v":0}]
[".1401.INTRATE.OVR1_3YRS.ALL ",{"$f":"'Repricing&Maturity'!$G$21","v":0}]
[".1401.INTRATE.OVR3YRS_5YRS.ALL ",{"$f":"'Repricing&Maturity'!$H$21","v":0}]
[".1401.INTRATE.OVR5YRS_10YRS.ALL ",{"$f":"'Repricing&Maturity'!$I$21","v":0}]
[".1401.INTRATE.OVR10_15YRS.ALL ",{"$f":"'Repricing&Maturity'!$J$21","v":0}]
[".1401.INTRATE.OVR15YRS_20YRS.ALL ",{"$f":"'Repricing&Maturity'!$K$21","v":0}]
[".1401.INTRATE.OVR20YRS.ALL ",{"$f":"'Repricing&Maturity'!$L$21","v":0}]
[".1402.INTRATE.0_1MTH.ALL ",{"$f":"'Repricing&Maturity'!$C$22","v":0}]
[".1402.INTRATE.OVR1_3MTHS.ALL",{"$f":"'Repricing&Maturity'!$D$22","v":0}]
[".1402.INTRATE.OVR3_6MTHS.ALL ",{"$f":"'Repricing&Maturity'!$E$22","v":0}]
[".1402.INTRATE.OVR6_12MTHS.ALL ",{"$f":"'Repricing&Maturity'!$F$22","v":0}]
[".1402.INTRATE.OVR1_3YRS.ALL ",{"$f":"'Repricing&Maturity'!$G$22","v":0}]
[".1402.INTRATE.OVR3YRS_5YRS.ALL ",{"$f":"'Repricing&Maturity'!$H$22","v":0}]
[".1402.INTRATE.OVR5YRS_10YRS.ALL ",{"$f":"'Repricing&Maturity'!$I$22","v":0}]
[".1402.INTRATE.OVR10_15YRS.ALL ",{"$f":"'Repricing&Maturity'!$J$22","v":0}]
[".1402.INTRATE.OVR15YRS_20YRS.ALL ",{"$f":"'Repricing&Maturity'!$K$22","v":0}]
[".1402.INTRATE.OVR20YRS.ALL ",{"$f":"'Repricing&Maturity'!$L$22","v":0}]
[".15.INTRATE.0_1MTH.ALL ",{"$f":"'Repricing&Maturity'!$C$23","v":0}]
[".15.INTRATE.OVR1_3MTHS.ALL",{"$f":"'Repricing&Maturity'!$D$23","v":0}]
[".15.INTRATE.OVR3_6MTHS.ALL ",{"$f":"'Repricing&Maturity'!$E$23","v":0}]
[".15.INTRATE.OVR6_12MTHS.ALL ",{"$f":"'Repricing&Maturity'!$F$23","v":0}]
[".15.INTRATE.OVR1_3YRS.ALL ",{"$f":"'Repricing&Maturity'!$G$23","v":0}]
[".15.INTRATE.OVR3YRS_5YRS.ALL ",{"$f":"'Repricing&Maturity'!$H$23","v":0}]
[".15.INTRATE.OVR5YRS_10YRS.ALL ",{"$f":"'Repricing&Maturity'!$I$23","v":0}]
[".15.INTRATE.OVR10_15YRS.ALL ",{"$f":"'Repricing&Maturity'!$J$23","v":0}]
[".15.INTRATE.OVR15YRS_20YRS.ALL ",{"$f":"'Repricing&Maturity'!$K$23","v":0}]
[".15.INTRATE.OVR20YRS.ALL ",{"$f":"'Repricing&Maturity'!$L$23","v":0}]
[".16.INTRATE.0_1MTH.ALL ",{"$f":"'Repricing&Maturity'!$C$24","v":0}]
[".16.INTRATE.OVR1_3MTHS.ALL",{"$f":"'Repricing&Maturity'!$D$24","v":0}]
[".16.INTRATE.OVR3_6MTHS.ALL ",{"$f":"'Repricing&Maturity'!$E$24","v":0}]
[".16.INTRATE.OVR6_12MTHS.ALL ",{"$f":"'Repricing&Maturity'!$F$24","v":0}]
[".16.INTRATE.OVR1_3YRS.ALL ",{"$f":"'Repricing&Maturity'!$G$24","v":0}]
[".16.INTRATE.OVR3YRS_5YRS.ALL ",{"$f":"'Repricing&Maturity'!$H$24","v":0}]
[".16.INTRATE.OVR5YRS_10YRS.ALL ",{"$f":"'Repricing&Maturity'!$I$24","v":0}]
[".16.INTRATE.OVR10_15YRS.ALL ",{"$f":"'Repricing&Maturity'!$J$24","v":0}]
[".16.INTRATE.OVR15YRS_20YRS.ALL ",{"$f":"'Repricing&Maturity'!$K$24","v":0}]
[".16.INTRATE.OVR20YRS.ALL ",{"$f":"'Repricing&Maturity'!$L$24","v":0}]
[".17.INTRATE.0_1MTH.ALL ",{"$f":"'Repricing&Maturity'!$C$25","v":0}]
[".17.INTRATE.OVR1_3MTHS.ALL",{"$f":"'Repricing&Maturity'!$D$25","v":0}]
[".17.INTRATE.OVR3_6MTHS.ALL ",{"$f":"'Repricing&Maturity'!$E$25","v":0}]
[".17.INTRATE.OVR6_12MTHS.ALL ",{"$f":"'Repricing&Maturity'!$F$25","v":0}]
[".17.INTRATE.OVR1_3YRS.ALL ",{"$f":"'Repricing&Maturity'!$G$25","v":0}]
[".17.INTRATE.OVR3YRS_5YRS.ALL ",{"$f":"'Repricing&Maturity'!$H$25","v":0}]
[".17.INTRATE.OVR5YRS_10YRS.ALL ",{"$f":"'Repricing&Maturity'!$I$25","v":0}]
[".17.INTRATE.OVR10_15YRS.ALL ",{"$f":"'Repricing&Maturity'!$J$25","v":0}]
[".17.INTRATE.OVR15YRS_20YRS.ALL ",{"$f":"'Repricing&Maturity'!$K$25","v":0}]
[".17.INTRATE.OVR20YRS.ALL ",{"$f":"'Repricing&Maturity'!$L$25","v":0}]
[".18.INTRATE.0_1MTH.ALL ",{"$f":"'Repricing&Maturity'!$C$26","v":0}]
[".18.INTRATE.OVR1_3MTHS.ALL",{"$f":"'Repricing&Maturity'!$D$26","v":0}]
[".18.INTRATE.OVR3_6MTHS.ALL ",{"$f":"'Repricing&Maturity'!$E$26","v":0}]
[".18.INTRATE.OVR6_12MTHS.ALL ",{"$f":"'Repricing&Maturity'!$F$26","v":0}]
[".18.INTRATE.OVR1_3YRS.ALL ",{"$f":"'Repricing&Maturity'!$G$26","v":0}]
[".18.INTRATE.OVR3YRS_5YRS.ALL ",{"$f":"'Repricing&Maturity'!$H$26","v":0}]
[".18.INTRATE.OVR5YRS_10YRS.ALL ",{"$f":"'Repricing&Maturity'!$I$26","v":0}]
[".18.INTRATE.OVR10_15YRS.ALL ",{"$f":"'Repricing&Maturity'!$J$26","v":0}]
[".18.INTRATE.OVR15YRS_20YRS.ALL ",{"$f":"'Repricing&Maturity'!$K$26","v":0}]
[".18.INTRATE.OVR20YRS.ALL ",{"$f":"'Repricing&Maturity'!$L$26","v":0}]
[".19.INTRATE.0_1MTH.ALL ",{"$f":"'Repricing&Maturity'!$C$27","v":0}]
[".19.INTRATE.OVR1_3MTHS.ALL",{"$f":"'Repricing&Maturity'!$D$27","v":0}]
[".19.INTRATE.OVR3_6MTHS.ALL ",{"$f":"'Repricing&Maturity'!$E$27","v":0}]
[".19.INTRATE.OVR6_12MTHS.ALL ",{"$f":"'Repricing&Maturity'!$F$27","v":0}]
[".19.INTRATE.OVR1_3YRS.ALL ",{"$f":"'Repricing&Maturity'!$G$27","v":0}]
[".19.INTRATE.OVR3YRS_5YRS.ALL ",{"$f":"'Repricing&Maturity'!$H$27","v":0}]
[".19.INTRATE.OVR5YRS_10YRS.ALL ",{"$f":"'Repricing&Maturity'!$I$27","v":0}]
[".19.INTRATE.OVR10_15YRS.ALL ",{"$f":"'Repricing&Maturity'!$J$27","v":0}]
[".19.INTRATE.OVR15YRS_20YRS.ALL ",{"$f":"'Repricing&Maturity'!$K$27","v":0}]
[".19.INTRATE.OVR20YRS.ALL ",{"$f":"'Repricing&Maturity'!$L$27","v":0}]
[".20.INTRATE.0_1MTH.ALL ",{"$f":"'Repricing&Maturity'!$C$28","v":0}]
[".20.INTRATE.OVR1_3MTHS.ALL",{"$f":"'Repricing&Maturity'!$D$28","v":0}]
[".20.INTRATE.OVR3_6MTHS.ALL ",{"$f":"'Repricing&Maturity'!$E$28","v":0}]
[".20.INTRATE.OVR6_12MTHS.ALL ",{"$f":"'Repricing&Maturity'!$F$28","v":0}]
[".20.INTRATE.OVR1_3YRS.ALL ",{"$f":"'Repricing&Maturity'!$G$28","v":0}]
[".20.INTRATE.OVR3YRS_5YRS.ALL ",{"$f":"'Repricing&Maturity'!$H$28","v":0}]
[".20.INTRATE.OVR5YRS_10YRS.ALL ",{"$f":"'Repricing&Maturity'!$I$28","v":0}]
[".20.INTRATE.OVR10_15YRS.ALL ",{"$f":"'Repricing&Maturity'!$J$28","v":0}]
[".20.INTRATE.OVR15YRS_20YRS.ALL ",{"$f":"'Repricing&Maturity'!$K$28","v":0}]
[".20.INTRATE.OVR20YRS.ALL ",{"$f":"'Repricing&Maturity'!$L$28","v":0}]
[".1.INTRATE.0_1MTH.ALL ",{"$f":"'Repricing&Maturity'!$C$29","v":0}]
[".1.INTRATE.OVR1_3MTHS.ALL",{"$f":"'Repricing&Maturity'!$D$29","v":0}]
[".1.INTRATE.OVR3_6MTHS.ALL ",{"$f":"'Repricing&Maturity'!$E$29","v":0}]
[".1.INTRATE.OVR6_12MTHS.ALL ",{"$f":"'Repricing&Maturity'!$F$29","v":0}]
[".1.INTRATE.OVR1_3YRS.ALL ",{"$f":"'Repricing&Maturity'!$G$29","v":0}]
[".1.INTRATE.OVR3YRS_5YRS.ALL ",{"$f":"'Repricing&Maturity'!$H$29","v":0}]
[".1.INTRATE.OVR5YRS_10YRS.ALL ",{"$f":"'Repricing&Maturity'!$I$29","v":0}]
[".1.INTRATE.OVR10_15YRS.ALL ",{"$f":"'Repricing&Maturity'!$J$29","v":0}]
[".1.INTRATE.OVR15YRS_20YRS.ALL ",{"$f":"'Repricing&Maturity'!$K$29","v":0}]
[".1.INTRATE.OVR20YRS.ALL ",{"$f":"'Repricing&Maturity'!$L$29","v":0}]
[".21.INTRATE.0_1MTH.ALL ",{"$f":"'Repricing&Maturity'!$C$31","v":0}]
[".21.INTRATE.OVR1_3MTHS.ALL",{"$f":"'Repricing&Maturity'!$D$31","v":0}]
[".21.INTRATE.OVR3_6MTHS.ALL ",{"$f":"'Repricing&Maturity'!$E$31","v":0}]
[".21.INTRATE.OVR6_12MTHS.ALL ",{"$f":"'Repricing&Maturity'!$F$31","v":0}]
[".21.INTRATE.OVR1_3YRS.ALL ",{"$f":"'Repricing&Maturity'!$G$31","v":0}]
[".21.INTRATE.OVR3YRS_5YRS.ALL ",{"$f":"'Repricing&Maturity'!$H$31","v":0}]
[".21.INTRATE.OVR5YRS_10YRS.ALL ",{"$f":"'Repricing&Maturity'!$I$31","v":0}]
[".21.INTRATE.OVR10_15YRS.ALL ",{"$f":"'Repricing&Maturity'!$J$31","v":0}]
[".21.INTRATE.OVR15YRS_20YRS.ALL ",{"$f":"'Repricing&Maturity'!$K$31","v":0}]
[".21.INTRATE.OVR20YRS.ALL ",{"$f":"'Repricing&Maturity'!$L$31","v":0}]
[".2101.INTRATE.0_1MTH.ALL ",{"$f":"'Repricing&Maturity'!$C$32","v":0}]
[".2101.INTRATE.OVR1_3MTHS.ALL",{"$f":"'Repricing&Maturity'!$D$32","v":0}]
[".2101.INTRATE.OVR3_6MTHS.ALL ",{"$f":"'Repricing&Maturity'!$E$32","v":0}]
[".2101.INTRATE.OVR6_12MTHS.ALL ",{"$f":"'Repricing&Maturity'!$F$32","v":0}]
[".2101.INTRATE.OVR1_3YRS.ALL ",{"$f":"'Repricing&Maturity'!$G$32","v":0}]
[".2101.INTRATE.OVR3YRS_5YRS.ALL ",{"$f":"'Repricing&Maturity'!$H$32","v":0}]
[".2101.INTRATE.OVR5YRS_10YRS.ALL ",{"$f":"'Repricing&Maturity'!$I$32","v":0}]
[".2101.INTRATE.OVR10_15YRS.ALL ",{"$f":"'Repricing&Maturity'!$J$32","v":0}]
[".2101.INTRATE.OVR15YRS_20YRS.ALL ",{"$f":"'Repricing&Maturity'!$K$32","v":0}]
[".2101.INTRATE.OVR20YRS.ALL ",{"$f":"'Repricing&Maturity'!$L$32","v":0}]
[".2102.INTRATE.0_1MTH.ALL ",{"$f":"'Repricing&Maturity'!$C$33","v":0}]
[".2102.INTRATE.OVR1_3MTHS.ALL",{"$f":"'Repricing&Maturity'!$D$33","v":0}]
[".2102.INTRATE.OVR3_6MTHS.ALL ",{"$f":"'Repricing&Maturity'!$E$33","v":0}]
[".2102.INTRATE.OVR6_12MTHS.ALL ",{"$f":"'Repricing&Maturity'!$F$33","v":0}]
[".2102.INTRATE.OVR1_3YRS.ALL ",{"$f":"'Repricing&Maturity'!$G$33","v":0}]
[".2102.INTRATE.OVR3YRS_5YRS.ALL ",{"$f":"'Repricing&Maturity'!$H$33","v":0}]
[".2102.INTRATE.OVR5YRS_10YRS.ALL ",{"$f":"'Repricing&Maturity'!$I$33","v":0}]
[".2102.INTRATE.OVR10_15YRS.ALL ",{"$f":"'Repricing&Maturity'!$J$33","v":0}]
[".2102.INTRATE.OVR15YRS_20YRS.ALL ",{"$f":"'Repricing&Maturity'!$K$33","v":0}]
[".2102.INTRATE.OVR20YRS.ALL ",{"$f":"'Repricing&Maturity'!$L$33","v":0}]
[".2103.INTRATE.0_1MTH.ALL ",{"$f":"'Repricing&Maturity'!$C$34","v":0}]
[".2103.INTRATE.OVR1_3MTHS.ALL",{"$f":"'Repricing&Maturity'!$D$34","v":0}]
[".2103.INTRATE.OVR3_6MTHS.ALL ",{"$f":"'Repricing&Maturity'!$E$34","v":0}]
[".2103.INTRATE.OVR6_12MTHS.ALL ",{"$f":"'Repricing&Maturity'!$F$34","v":0}]
[".2103.INTRATE.OVR1_3YRS.ALL ",{"$f":"'Repricing&Maturity'!$G$34","v":0}]
[".2103.INTRATE.OVR3YRS_5YRS.ALL ",{"$f":"'Repricing&Maturity'!$H$34","v":0}]
[".2103.INTRATE.OVR5YRS_10YRS.ALL ",{"$f":"'Repricing&Maturity'!$I$34","v":0}]
[".2103.INTRATE.OVR10_15YRS.ALL ",{"$f":"'Repricing&Maturity'!$J$34","v":0}]
[".2103.INTRATE.OVR15YRS_20YRS.ALL ",{"$f":"'Repricing&Maturity'!$K$34","v":0}]
[".2103.INTRATE.OVR20YRS.ALL ",{"$f":"'Repricing&Maturity'!$L$34","v":0}]
[".22.INTRATE.0_1MTH.ALL ",{"$f":"'Repricing&Maturity'!$C$35","v":0}]
[".22.INTRATE.OVR1_3MTHS.ALL",{"$f":"'Repricing&Maturity'!$D$35","v":0}]
[".22.INTRATE.OVR3_6MTHS.ALL ",{"$f":"'Repricing&Maturity'!$E$35","v":0}]
[".22.INTRATE.OVR6_12MTHS.ALL ",{"$f":"'Repricing&Maturity'!$F$35","v":0}]
[".22.INTRATE.OVR1_3YRS.ALL ",{"$f":"'Repricing&Maturity'!$G$35","v":0}]
[".22.INTRATE.OVR3YRS_5YRS.ALL ",{"$f":"'Repricing&Maturity'!$H$35","v":0}]
[".22.INTRATE.OVR5YRS_10YRS.ALL ",{"$f":"'Repricing&Maturity'!$I$35","v":0}]
[".22.INTRATE.OVR10_15YRS.ALL ",{"$f":"'Repricing&Maturity'!$J$35","v":0}]
[".22.INTRATE.OVR15YRS_20YRS.ALL ",{"$f":"'Repricing&Maturity'!$K$35","v":0}]
[".22.INTRATE.OVR20YRS.ALL ",{"$f":"'Repricing&Maturity'!$L$35","v":0}]
[".23.INTRATE.0_1MTH.ALL ",{"$f":"'Repricing&Maturity'!$C$36","v":0}]
[".23.INTRATE.OVR1_3MTHS.ALL",{"$f":"'Repricing&Maturity'!$D$36","v":0}]
[".23.INTRATE.OVR3_6MTHS.ALL ",{"$f":"'Repricing&Maturity'!$E$36","v":0}]
[".23.INTRATE.OVR6_12MTHS.ALL ",{"$f":"'Repricing&Maturity'!$F$36","v":0}]
[".23.INTRATE.OVR1_3YRS.ALL ",{"$f":"'Repricing&Maturity'!$G$36","v":0}]
[".23.INTRATE.OVR3YRS_5YRS.ALL ",{"$f":"'Repricing&Maturity'!$H$36","v":0}]
[".23.INTRATE.OVR5YRS_10YRS.ALL ",{"$f":"'Repricing&Maturity'!$I$36","v":0}]
[".23.INTRATE.OVR10_15YRS.ALL ",{"$f":"'Repricing&Maturity'!$J$36","v":0}]
[".23.INTRATE.OVR15YRS_20YRS.ALL ",{"$f":"'Repricing&Maturity'!$K$36","v":0}]
[".23.INTRATE.OVR20YRS.ALL ",{"$f":"'Repricing&Maturity'!$L$36","v":0}]
[".24.INTRATE.0_1MTH.ALL ",{"$f":"'Repricing&Maturity'!$C$37","v":0}]
[".24.INTRATE.OVR1_3MTHS.ALL",{"$f":"'Repricing&Maturity'!$D$37","v":0}]
[".24.INTRATE.OVR3_6MTHS.ALL ",{"$f":"'Repricing&Maturity'!$E$37","v":0}]
[".24.INTRATE.OVR6_12MTHS.ALL ",{"$f":"'Repricing&Maturity'!$F$37","v":0}]
[".24.INTRATE.OVR1_3YRS.ALL ",{"$f":"'Repricing&Maturity'!$G$37","v":0}]
[".24.INTRATE.OVR3YRS_5YRS.ALL ",{"$f":"'Repricing&Maturity'!$H$37","v":0}]
[".24.INTRATE.OVR5YRS_10YRS.ALL ",{"$f":"'Repricing&Maturity'!$I$37","v":0}]
[".24.INTRATE.OVR10_15YRS.ALL ",{"$f":"'Repricing&Maturity'!$J$37","v":0}]
[".24.INTRATE.OVR15YRS_20YRS.ALL ",{"$f":"'Repricing&Maturity'!$K$37","v":0}]
[".24.INTRATE.OVR20YRS.ALL ",{"$f":"'Repricing&Maturity'!$L$37","v":0}]
[".2401.INTRATE.0_1MTH.ALL ",{"$f":"'Repricing&Maturity'!$C$38","v":0}]
[".2401.INTRATE.OVR1_3MTHS.ALL",{"$f":"'Repricing&Maturity'!$D$38","v":0}]
[".2401.INTRATE.OVR3_6MTHS.ALL ",{"$f":"'Repricing&Maturity'!$E$38","v":0}]
[".2401.INTRATE.OVR6_12MTHS.ALL ",{"$f":"'Repricing&Maturity'!$F$38","v":0}]
[".2401.INTRATE.OVR1_3YRS.ALL ",{"$f":"'Repricing&Maturity'!$G$38","v":0}]
[".2401.INTRATE.OVR3YRS_5YRS.ALL ",{"$f":"'Repricing&Maturity'!$H$38","v":0}]
[".2401.INTRATE.OVR5YRS_10YRS.ALL ",{"$f":"'Repricing&Maturity'!$I$38","v":0}]
[".2401.INTRATE.OVR10_15YRS.ALL ",{"$f":"'Repricing&Maturity'!$J$38","v":0}]
[".2401.INTRATE.OVR15YRS_20YRS.ALL ",{"$f":"'Repricing&Maturity'!$K$38","v":0}]
[".2401.INTRATE.OVR20YRS.ALL ",{"$f":"'Repricing&Maturity'!$L$38","v":0}]
[".2402.INTRATE.0_1MTH.ALL ",{"$f":"'Repricing&Maturity'!$C$39","v":0}]
[".2402.INTRATE.OVR1_3MTHS.ALL",{"$f":"'Repricing&Maturity'!$D$39","v":0}]
[".2402.INTRATE.OVR3_6MTHS.ALL ",{"$f":"'Repricing&Maturity'!$E$39","v":0}]
[".2402.INTRATE.OVR6_12MTHS.ALL ",{"$f":"'Repricing&Maturity'!$F$39","v":0}]
[".2402.INTRATE.OVR1_3YRS.ALL ",{"$f":"'Repricing&Maturity'!$G$39","v":0}]
[".2402.INTRATE.OVR3YRS_5YRS.ALL ",{"$f":"'Repricing&Maturity'!$H$39","v":0}]
[".2402.INTRATE.OVR5YRS_10YRS.ALL ",{"$f":"'Repricing&Maturity'!$I$39","v":0}]
[".2402.INTRATE.OVR10_15YRS.ALL ",{"$f":"'Repricing&Maturity'!$J$39","v":0}]
[".2402.INTRATE.OVR15YRS_20YRS.ALL ",{"$f":"'Repricing&Maturity'!$K$39","v":0}]
[".2402.INTRATE.OVR20YRS.ALL ",{"$f":"'Repricing&Maturity'!$L$39","v":0}]
[".25.INTRATE.0_1MTH.ALL ",{"$f":"'Repricing&Maturity'!$C$40","v":0}]
[".25.INTRATE.OVR1_3MTHS.ALL",{"$f":"'Repricing&Maturity'!$D$40","v":0}]
[".25.INTRATE.OVR3_6MTHS.ALL ",{"$f":"'Repricing&Maturity'!$E$40","v":0}]
[".25.INTRATE.OVR6_12MTHS.ALL ",{"$f":"'Repricing&Maturity'!$F$40","v":0}]
[".25.INTRATE.OVR1_3YRS.ALL ",{"$f":"'Repricing&Maturity'!$G$40","v":0}]
[".25.INTRATE.OVR3YRS_5YRS.ALL ",{"$f":"'Repricing&Maturity'!$H$40","v":0}]
[".25.INTRATE.OVR5YRS_10YRS.ALL ",{"$f":"'Repricing&Maturity'!$I$40","v":0}]
[".25.INTRATE.OVR10_15YRS.ALL ",{"$f":"'Repricing&Maturity'!$J$40","v":0}]
[".25.INTRATE.OVR15YRS_20YRS.ALL ",{"$f":"'Repricing&Maturity'!$K$40","v":0}]
[".25.INTRATE.OVR20YRS.ALL ",{"$f":"'Repricing&Maturity'!$L$40","v":0}]
[".26.INTRATE.0_1MTH.ALL ",{"$f":"'Repricing&Maturity'!$C$41","v":0}]
[".26.INTRATE.OVR1_3MTHS.ALL",{"$f":"'Repricing&Maturity'!$D$41","v":0}]
[".26.INTRATE.OVR3_6MTHS.ALL ",{"$f":"'Repricing&Maturity'!$E$41","v":0}]
[".26.INTRATE.OVR6_12MTHS.ALL ",{"$f":"'Repricing&Maturity'!$F$41","v":0}]
[".26.INTRATE.OVR1_3YRS.ALL ",{"$f":"'Repricing&Maturity'!$G$41","v":0}]
[".26.INTRATE.OVR3YRS_5YRS.ALL ",{"$f":"'Repricing&Maturity'!$H$41","v":0}]
[".26.INTRATE.OVR5YRS_10YRS.ALL ",{"$f":"'Repricing&Maturity'!$I$41","v":0}]
[".26.INTRATE.OVR10_15YRS.ALL ",{"$f":"'Repricing&Maturity'!$J$41","v":0}]
[".26.INTRATE.OVR15YRS_20YRS.ALL ",{"$f":"'Repricing&Maturity'!$K$41","v":0}]
[".26.INTRATE.OVR20YRS.ALL ",{"$f":"'Repricing&Maturity'!$L$41","v":0}]
[".27.INTRATE.0_1MTH.ALL ",{"$f":"'Repricing&Maturity'!$C$42","v":0}]
[".27.INTRATE.OVR1_3MTHS.ALL",{"$f":"'Repricing&Maturity'!$D$42","v":0}]
[".27.INTRATE.OVR3_6MTHS.ALL ",{"$f":"'Repricing&Maturity'!$E$42","v":0}]
[".27.INTRATE.OVR6_12MTHS.ALL ",{"$f":"'Repricing&Maturity'!$F$42","v":0}]
[".27.INTRATE.OVR1_3YRS.ALL ",{"$f":"'Repricing&Maturity'!$G$42","v":0}]
[".27.INTRATE.OVR3YRS_5YRS.ALL ",{"$f":"'Repricing&Maturity'!$H$42","v":0}]
[".27.INTRATE.OVR5YRS_10YRS.ALL ",{"$f":"'Repricing&Maturity'!$I$42","v":0}]
[".27.INTRATE.OVR10_15YRS.ALL ",{"$f":"'Repricing&Maturity'!$J$42","v":0}]
[".27.INTRATE.OVR15YRS_20YRS.ALL ",{"$f":"'Repricing&Maturity'!$K$42","v":0}]
[".27.INTRATE.OVR20YRS.ALL ",{"$f":"'Repricing&Maturity'!$L$42","v":0}]
[".28.INTRATE.0_1MTH.ALL ",{"$f":"'Repricing&Maturity'!$C$43","v":0}]
[".28.INTRATE.OVR1_3MTHS.ALL",{"$f":"'Repricing&Maturity'!$D$43","v":0}]
[".28.INTRATE.OVR3_6MTHS.ALL ",{"$f":"'Repricing&Maturity'!$E$43","v":0}]
[".28.INTRATE.OVR6_12MTHS.ALL ",{"$f":"'Repricing&Maturity'!$F$43","v":0}]
[".28.INTRATE.OVR1_3YRS.ALL ",{"$f":"'Repricing&Maturity'!$G$43","v":0}]
[".28.INTRATE.OVR3YRS_5YRS.ALL ",{"$f":"'Repricing&Maturity'!$H$43","v":0}]
[".28.INTRATE.OVR5YRS_10YRS.ALL ",{"$f":"'Repricing&Maturity'!$I$43","v":0}]
[".28.INTRATE.OVR10_15YRS.ALL ",{"$f":"'Repricing&Maturity'!$J$43","v":0}]
[".28.INTRATE.OVR15YRS_20YRS.ALL ",{"$f":"'Repricing&Maturity'!$K$43","v":0}]
[".28.INTRATE.OVR20YRS.ALL ",{"$f":"'Repricing&Maturity'!$L$43","v":0}]
[".2.INTRATE.0_1MTH.ALL ",{"$f":"'Repricing&Maturity'!$C$44","v":0}]
[".2.INTRATE.OVR1_3MTHS.ALL",{"$f":"'Repricing&Maturity'!$D$44","v":0}]
[".2.INTRATE.OVR3_6MTHS.ALL ",{"$f":"'Repricing&Maturity'!$E$44","v":0}]
[".2.INTRATE.OVR6_12MTHS.ALL ",{"$f":"'Repricing&Maturity'!$F$44","v":0}]
[".2.INTRATE.OVR1_3YRS.ALL ",{"$f":"'Repricing&Maturity'!$G$44","v":0}]
[".2.INTRATE.OVR3YRS_5YRS.ALL ",{"$f":"'Repricing&Maturity'!$H$44","v":0}]
[".2.INTRATE.OVR5YRS_10YRS.ALL ",{"$f":"'Repricing&Maturity'!$I$44","v":0}]
[".2.INTRATE.OVR10_15YRS.ALL ",{"$f":"'Repricing&Maturity'!$J$44","v":0}]
[".2.INTRATE.OVR15YRS_20YRS.ALL ",{"$f":"'Repricing&Maturity'!$K$44","v":0}]
[".2.INTRATE.OVR20YRS.ALL ",{"$f":"'Repricing&Maturity'!$L$44","v":0}]
[".11.LIQRATE.1_7DYS.ALL ",{"$f":"Maturity!$C$11","v":0}]
[".11.LIQRATE.8_14DYS.ALL",{"$f":"Maturity!$D$11","v":0}]
[".11.LIQRATE.15_30DYS.ALL ",{"$f":"Maturity!$E$11","v":0}]
[".11.LIQRATE.31_60DYS.ALL ",{"$f":"Maturity!$F$11","v":0}]
[".11.LIQRATE.61_90DYS.ALL",{"$f":"Maturity!$G$11","v":0}]
[".11.LIQRATE.91_180DYS.ALL ",{"$f":"Maturity!$H$11","v":0}]
[".11.LIQRATE.181_270DYS.ALL ",{"$f":"Maturity!$I$11","v":0}]
[".11.LIQRATE.271_365DYS.ALL ",{"$f":"Maturity!$J$11","v":0}]
[".11.LIQRATE.OVR1YR.ALL ",{"$f":"Maturity!$K$11","v":0}]
[".1101.LIQRATE.1_7DYS.ALL ",{"$f":"Maturity!$C$12","v":0}]
[".1101.LIQRATE.8_14DYS.ALL",{"$f":"Maturity!$D$12","v":0}]
[".1101.LIQRATE.15_30DYS.ALL ",{"$f":"Maturity!$E$12","v":0}]
[".1101.LIQRATE.31_60DYS.ALL ",{"$f":"Maturity!$F$12","v":0}]
[".1101.LIQRATE.61_90DYS.ALL",{"$f":"Maturity!$G$12","v":0}]
[".1101.LIQRATE.91_180DYS.ALL ",{"$f":"Maturity!$H$12","v":0}]
[".1101.LIQRATE.181_270DYS.ALL ",{"$f":"Maturity!$I$12","v":0}]
[".1101.LIQRATE.271_365DYS.ALL ",{"$f":"Maturity!$J$12","v":0}]
[".1101.LIQRATE.OVR1YR.ALL ",{"$f":"Maturity!$K$12","v":0}]
[".1102.LIQRATE.1_7DYS.ALL ",{"$f":"Maturity!$C$13","v":0}]
[".1102.LIQRATE.8_14DYS.ALL",{"$f":"Maturity!$D$13","v":0}]
[".1102.LIQRATE.15_30DYS.ALL ",{"$f":"Maturity!$E$13","v":0}]
[".1102.LIQRATE.31_60DYS.ALL ",{"$f":"Maturity!$F$13","v":0}]
[".1102.LIQRATE.61_90DYS.ALL",{"$f":"Maturity!$G$13","v":0}]
[".1102.LIQRATE.91_180DYS.ALL ",{"$f":"Maturity!$H$13","v":0}]
[".1102.LIQRATE.181_270DYS.ALL ",{"$f":"Maturity!$I$13","v":0}]
[".1102.LIQRATE.271_365DYS.ALL ",{"$f":"Maturity!$J$13","v":0}]
[".1102.LIQRATE.OVR1YR.ALL ",{"$f":"Maturity!$K$13","v":0}]
[".1103.LIQRATE.1_7DYS.ALL ",{"$f":"Maturity!$C$14","v":0}]
[".1103.LIQRATE.8_14DYS.ALL",{"$f":"Maturity!$D$14","v":0}]
[".1103.LIQRATE.15_30DYS.ALL ",{"$f":"Maturity!$E$14","v":0}]
[".1103.LIQRATE.31_60DYS.ALL ",{"$f":"Maturity!$F$14","v":0}]
[".1103.LIQRATE.61_90DYS.ALL",{"$f":"Maturity!$G$14","v":0}]
[".1103.LIQRATE.91_180DYS.ALL ",{"$f":"Maturity!$H$14","v":0}]
[".1103.LIQRATE.181_270DYS.ALL ",{"$f":"Maturity!$I$14","v":0}]
[".1103.LIQRATE.271_365DYS.ALL ",{"$f":"Maturity!$J$14","v":0}]
[".1103.LIQRATE.OVR1YR.ALL ",{"$f":"Maturity!$K$14","v":0}]
[".1104.LIQRATE.1_7DYS.ALL ",{"$f":"Maturity!$C$15","v":0}]
[".1104.LIQRATE.8_14DYS.ALL",{"$f":"Maturity!$D$15","v":0}]
[".1104.LIQRATE.15_30DYS.ALL ",{"$f":"Maturity!$E$15","v":0}]
[".1104.LIQRATE.31_60DYS.ALL ",{"$f":"Maturity!$F$15","v":0}]
[".1104.LIQRATE.61_90DYS.ALL",{"$f":"Maturity!$G$15","v":0}]
[".1104.LIQRATE.91_180DYS.ALL ",{"$f":"Maturity!$H$15","v":0}]
[".1104.LIQRATE.181_270DYS.ALL ",{"$f":"Maturity!$I$15","v":0}]
[".1104.LIQRATE.271_365DYS.ALL ",{"$f":"Maturity!$J$15","v":0}]
[".1104.LIQRATE.OVR1YR.ALL ",{"$f":"Maturity!$K$15","v":0}]
[".12.LIQRATE.1_7DYS.ALL ",{"$f":"Maturity!$C$16","v":0}]
[".12.LIQRATE.8_14DYS.ALL",{"$f":"Maturity!$D$16","v":0}]
[".12.LIQRATE.15_30DYS.ALL ",{"$f":"Maturity!$E$16","v":0}]
[".12.LIQRATE.31_60DYS.ALL ",{"$f":"Maturity!$F$16","v":0}]
[".12.LIQRATE.61_90DYS.ALL",{"$f":"Maturity!$G$16","v":0}]
[".12.LIQRATE.91_180DYS.ALL ",{"$f":"Maturity!$H$16","v":0}]
[".12.LIQRATE.181_270DYS.ALL ",{"$f":"Maturity!$I$16","v":0}]
[".12.LIQRATE.271_365DYS.ALL ",{"$f":"Maturity!$J$16","v":0}]
[".12.LIQRATE.OVR1YR.ALL ",{"$f":"Maturity!$K$16","v":0}]
[".13.LIQRATE.1_7DYS.ALL ",{"$f":"Maturity!$C$17","v":0}]
[".13.LIQRATE.8_14DYS.ALL",{"$f":"Maturity!$D$17","v":0}]
[".13.LIQRATE.15_30DYS.ALL ",{"$f":"Maturity!$E$17","v":0}]
[".13.LIQRATE.31_60DYS.ALL ",{"$f":"Maturity!$F$17","v":0}]
[".13.LIQRATE.61_90DYS.ALL",{"$f":"Maturity!$G$17","v":0}]
[".13.LIQRATE.91_180DYS.ALL ",{"$f":"Maturity!$H$17","v":0}]
[".13.LIQRATE.181_270DYS.ALL ",{"$f":"Maturity!$I$17","v":0}]
[".13.LIQRATE.271_365DYS.ALL ",{"$f":"Maturity!$J$17","v":0}]
[".13.LIQRATE.OVR1YR.ALL ",{"$f":"Maturity!$K$17","v":0}]
[".1301.LIQRATE.1_7DYS.ALL ",{"$f":"Maturity!$C$18","v":0}]
[".1301.LIQRATE.8_14DYS.ALL",{"$f":"Maturity!$D$18","v":0}]
[".1301.LIQRATE.15_30DYS.ALL ",{"$f":"Maturity!$E$18","v":0}]
[".1301.LIQRATE.31_60DYS.ALL ",{"$f":"Maturity!$F$18","v":0}]
[".1301.LIQRATE.61_90DYS.ALL",{"$f":"Maturity!$G$18","v":0}]
[".1301.LIQRATE.91_180DYS.ALL ",{"$f":"Maturity!$H$18","v":0}]
[".1301.LIQRATE.181_270DYS.ALL ",{"$f":"Maturity!$I$18","v":0}]
[".1301.LIQRATE.271_365DYS.ALL ",{"$f":"Maturity!$J$18","v":0}]
[".1301.LIQRATE.OVR1YR.ALL ",{"$f":"Maturity!$K$18","v":0}]
[".1302.LIQRATE.1_7DYS.ALL ",{"$f":"Maturity!$C$19","v":0}]
[".1302.LIQRATE.8_14DYS.ALL",{"$f":"Maturity!$D$19","v":0}]
[".1302.LIQRATE.15_30DYS.ALL ",{"$f":"Maturity!$E$19","v":0}]
[".1302.LIQRATE.31_60DYS.ALL ",{"$f":"Maturity!$F$19","v":0}]
[".1302.LIQRATE.61_90DYS.ALL",{"$f":"Maturity!$G$19","v":0}]
[".1302.LIQRATE.91_180DYS.ALL ",{"$f":"Maturity!$H$19","v":0}]
[".1302.LIQRATE.181_270DYS.ALL ",{"$f":"Maturity!$I$19","v":0}]
[".1302.LIQRATE.271_365DYS.ALL ",{"$f":"Maturity!$J$19","v":0}]
[".1302.LIQRATE.OVR1YR.ALL ",{"$f":"Maturity!$K$19","v":0}]
[".14.LIQRATE.1_7DYS.ALL ",{"$f":"Maturity!$C$20","v":0}]
[".14.LIQRATE.8_14DYS.ALL",{"$f":"Maturity!$D$20","v":0}]
[".14.LIQRATE.15_30DYS.ALL ",{"$f":"Maturity!$E$20","v":0}]
[".14.LIQRATE.31_60DYS.ALL ",{"$f":"Maturity!$F$20","v":0}]
[".14.LIQRATE.61_90DYS.ALL",{"$f":"Maturity!$G$20","v":0}]
[".14.LIQRATE.91_180DYS.ALL ",{"$f":"Maturity!$H$20","v":0}]
[".14.LIQRATE.181_270DYS.ALL ",{"$f":"Maturity!$I$20","v":0}]
[".14.LIQRATE.271_365DYS.ALL ",{"$f":"Maturity!$J$20","v":0}]
[".14.LIQRATE.OVR1YR.ALL ",{"$f":"Maturity!$K$20","v":0}]
[".1401.LIQRATE.1_7DYS.ALL ",{"$f":"Maturity!$C$21","v":0}]
[".1401.LIQRATE.8_14DYS.ALL",{"$f":"Maturity!$D$21","v":0}]
[".1401.LIQRATE.15_30DYS.ALL ",{"$f":"Maturity!$E$21","v":0}]
[".1401.LIQRATE.31_60DYS.ALL ",{"$f":"Maturity!$F$21","v":0}]
[".1401.LIQRATE.61_90DYS.ALL",{"$f":"Maturity!$G$21","v":0}]
[".1401.LIQRATE.91_180DYS.ALL ",{"$f":"Maturity!$H$21","v":0}]
[".1401.LIQRATE.181_270DYS.ALL ",{"$f":"Maturity!$I$21","v":0}]
[".1401.LIQRATE.271_365DYS.ALL ",{"$f":"Maturity!$J$21","v":0}]
[".1401.LIQRATE.OVR1YR.ALL ",{"$f":"Maturity!$K$21","v":0}]
[".1402.LIQRATE.1_7DYS.ALL ",{"$f":"Maturity!$C$22","v":0}]
[".1402.LIQRATE.8_14DYS.ALL",{"$f":"Maturity!$D$22","v":0}]
[".1402.LIQRATE.15_30DYS.ALL ",{"$f":"Maturity!$E$22","v":0}]
[".1402.LIQRATE.31_60DYS.ALL ",{"$f":"Maturity!$F$22","v":0}]
[".1402.LIQRATE.61_90DYS.ALL",{"$f":"Maturity!$G$22","v":0}]
[".1402.LIQRATE.91_180DYS.ALL ",{"$f":"Maturity!$H$22","v":0}]
[".1402.LIQRATE.181_270DYS.ALL ",{"$f":"Maturity!$I$22","v":0}]
[".1402.LIQRATE.271_365DYS.ALL ",{"$f":"Maturity!$J$22","v":0}]
[".1402.LIQRATE.OVR1YR.ALL ",{"$f":"Maturity!$K$22","v":0}]
[".15.LIQRATE.1_7DYS.ALL ",{"$f":"Maturity!$C$23","v":0}]
[".15.LIQRATE.8_14DYS.ALL",{"$f":"Maturity!$D$23","v":0}]
[".15.LIQRATE.15_30DYS.ALL ",{"$f":"Maturity!$E$23","v":0}]
[".15.LIQRATE.31_60DYS.ALL ",{"$f":"Maturity!$F$23","v":0}]
[".15.LIQRATE.61_90DYS.ALL",{"$f":"Maturity!$G$23","v":0}]
[".15.LIQRATE.91_180DYS.ALL ",{"$f":"Maturity!$H$23","v":0}]
[".15.LIQRATE.181_270DYS.ALL ",{"$f":"Maturity!$I$23","v":0}]
[".15.LIQRATE.271_365DYS.ALL ",{"$f":"Maturity!$J$23","v":0}]
[".15.LIQRATE.OVR1YR.ALL ",{"$f":"Maturity!$K$23","v":0}]
[".16.LIQRATE.1_7DYS.ALL ",{"$f":"Maturity!$C$24","v":0}]
[".16.LIQRATE.8_14DYS.ALL",{"$f":"Maturity!$D$24","v":0}]
[".16.LIQRATE.15_30DYS.ALL ",{"$f":"Maturity!$E$24","v":0}]
[".16.LIQRATE.31_60DYS.ALL ",{"$f":"Maturity!$F$24","v":0}]
[".16.LIQRATE.61_90DYS.ALL",{"$f":"Maturity!$G$24","v":0}]
[".16.LIQRATE.91_180DYS.ALL ",{"$f":"Maturity!$H$24","v":0}]
[".16.LIQRATE.181_270DYS.ALL ",{"$f":"Maturity!$I$24","v":0}]
[".16.LIQRATE.271_365DYS.ALL ",{"$f":"Maturity!$J$24","v":0}]
[".16.LIQRATE.OVR1YR.ALL ",{"$f":"Maturity!$K$24","v":0}]
[".17.LIQRATE.1_7DYS.ALL ",{"$f":"Maturity!$C$25","v":0}]
[".17.LIQRATE.8_14DYS.ALL",{"$f":"Maturity!$D$25","v":0}]
[".17.LIQRATE.15_30DYS.ALL ",{"$f":"Maturity!$E$25","v":0}]
[".17.LIQRATE.31_60DYS.ALL ",{"$f":"Maturity!$F$25","v":0}]
[".17.LIQRATE.61_90DYS.ALL",{"$f":"Maturity!$G$25","v":0}]
[".17.LIQRATE.91_180DYS.ALL ",{"$f":"Maturity!$H$25","v":0}]
[".17.LIQRATE.181_270DYS.ALL ",{"$f":"Maturity!$I$25","v":0}]
[".17.LIQRATE.271_365DYS.ALL ",{"$f":"Maturity!$J$25","v":0}]
[".17.LIQRATE.OVR1YR.ALL ",{"$f":"Maturity!$K$25","v":0}]
[".18.LIQRATE.1_7DYS.ALL ",{"$f":"Maturity!$C$26","v":0}]
[".18.LIQRATE.8_14DYS.ALL",{"$f":"Maturity!$D$26","v":0}]
[".18.LIQRATE.15_30DYS.ALL ",{"$f":"Maturity!$E$26","v":0}]
[".18.LIQRATE.31_60DYS.ALL ",{"$f":"Maturity!$F$26","v":0}]
[".18.LIQRATE.61_90DYS.ALL",{"$f":"Maturity!$G$26","v":0}]
[".18.LIQRATE.91_180DYS.ALL ",{"$f":"Maturity!$H$26","v":0}]
[".18.LIQRATE.181_270DYS.ALL ",{"$f":"Maturity!$I$26","v":0}]
[".18.LIQRATE.271_365DYS.ALL ",{"$f":"Maturity!$J$26","v":0}]
[".18.LIQRATE.OVR1YR.ALL ",{"$f":"Maturity!$K$26","v":0}]
[".19.LIQRATE.1_7DYS.ALL ",{"$f":"Maturity!$C$27","v":0}]
[".19.LIQRATE.8_14DYS.ALL",{"$f":"Maturity!$D$27","v":0}]
[".19.LIQRATE.15_30DYS.ALL ",{"$f":"Maturity!$E$27","v":0}]
[".19.LIQRATE.31_60DYS.ALL ",{"$f":"Maturity!$F$27","v":0}]
[".19.LIQRATE.61_90DYS.ALL",{"$f":"Maturity!$G$27","v":0}]
[".19.LIQRATE.91_180DYS.ALL ",{"$f":"Maturity!$H$27","v":0}]
[".19.LIQRATE.181_270DYS.ALL ",{"$f":"Maturity!$I$27","v":0}]
[".19.LIQRATE.271_365DYS.ALL ",{"$f":"Maturity!$J$27","v":0}]
[".19.LIQRATE.OVR1YR.ALL ",{"$f":"Maturity!$K$27","v":0}]
[".20.LIQRATE.1_7DYS.ALL ",{"$f":"Maturity!$C$28","v":0}]
[".20.LIQRATE.8_14DYS.ALL",{"$f":"Maturity!$D$28","v":0}]
[".20.LIQRATE.15_30DYS.ALL ",{"$f":"Maturity!$E$28","v":0}]
[".20.LIQRATE.31_60DYS.ALL ",{"$f":"Maturity!$F$28","v":0}]
[".20.LIQRATE.61_90DYS.ALL",{"$f":"Maturity!$G$28","v":0}]
[".20.LIQRATE.91_180DYS.ALL ",{"$f":"Maturity!$H$28","v":0}]
[".20.LIQRATE.181_270DYS.ALL ",{"$f":"Maturity!$I$28","v":0}]
[".20.LIQRATE.271_365DYS.ALL ",{"$f":"Maturity!$J$28","v":0}]
[".20.LIQRATE.OVR1YR.ALL ",{"$f":"Maturity!$K$28","v":0}]
[".1.LIQRATE.1_7DYS.ALL ",{"$f":"Maturity!$C$29","v":0}]
[".1.LIQRATE.8_14DYS.ALL",{"$f":"Maturity!$D$29","v":0}]
[".1.LIQRATE.15_30DYS.ALL ",{"$f":"Maturity!$E$29","v":0}]
[".1.LIQRATE.31_60DYS.ALL ",{"$f":"Maturity!$F$29","v":0}]
[".1.LIQRATE.61_90DYS.ALL",{"$f":"Maturity!$G$29","v":0}]
[".1.LIQRATE.91_180DYS.ALL ",{"$f":"Maturity!$H$29","v":0}]
[".1.LIQRATE.181_270DYS.ALL ",{"$f":"Maturity!$I$29","v":0}]
[".1.LIQRATE.271_365DYS.ALL ",{"$f":"Maturity!$J$29","v":0}]
[".1.LIQRATE.OVR1YR.ALL ",{"$f":"Maturity!$K$29","v":0}]
[".21.LIQRATE.1_7DYS.ALL ",{"$f":"Maturity!$C$31","v":0}]
[".21.LIQRATE.8_14DYS.ALL",{"$f":"Maturity!$D$31","v":0}]
[".21.LIQRATE.15_30DYS.ALL ",{"$f":"Maturity!$E$31","v":0}]
[".21.LIQRATE.31_60DYS.ALL ",{"$f":"Maturity!$F$31","v":0}]
[".21.LIQRATE.61_90DYS.ALL",{"$f":"Maturity!$G$31","v":0}]
[".21.LIQRATE.91_180DYS.ALL ",{"$f":"Maturity!$H$31","v":0}]
[".21.LIQRATE.181_270DYS.ALL ",{"$f":"Maturity!$I$31","v":0}]
[".21.LIQRATE.271_365DYS.ALL ",{"$f":"Maturity!$J$31","v":0}]
[".21.LIQRATE.OVR1YR.ALL ",{"$f":"Maturity!$K$31","v":0}]
[".2101.LIQRATE.1_7DYS.ALL ",{"$f":"Maturity!$C$32","v":0}]
[".2101.LIQRATE.8_14DYS.ALL",{"$f":"Maturity!$D$32","v":0}]
[".2101.LIQRATE.15_30DYS.ALL ",{"$f":"Maturity!$E$32","v":0}]
[".2101.LIQRATE.31_60DYS.ALL ",{"$f":"Maturity!$F$32","v":0}]
[".2101.LIQRATE.61_90DYS.ALL",{"$f":"Maturity!$G$32","v":0}]
[".2101.LIQRATE.91_180DYS.ALL ",{"$f":"Maturity!$H$32","v":0}]
[".2101.LIQRATE.181_270DYS.ALL ",{"$f":"Maturity!$I$32","v":0}]
[".2101.LIQRATE.271_365DYS.ALL ",{"$f":"Maturity!$J$32","v":0}]
[".2101.LIQRATE.OVR1YR.ALL ",{"$f":"Maturity!$K$32","v":0}]
[".2102.LIQRATE.1_7DYS.ALL ",{"$f":"Maturity!$C$33","v":0}]
[".2102.LIQRATE.8_14DYS.ALL",{"$f":"Maturity!$D$33","v":0}]
[".2102.LIQRATE.15_30DYS.ALL ",{"$f":"Maturity!$E$33","v":0}]
[".2102.LIQRATE.31_60DYS.ALL ",{"$f":"Maturity!$F$33","v":0}]
[".2102.LIQRATE.61_90DYS.ALL",{"$f":"Maturity!$G$33","v":0}]
[".2102.LIQRATE.91_180DYS.ALL ",{"$f":"Maturity!$H$33","v":0}]
[".2102.LIQRATE.181_270DYS.ALL ",{"$f":"Maturity!$I$33","v":0}]
[".2102.LIQRATE.271_365DYS.ALL ",{"$f":"Maturity!$J$33","v":0}]
[".2102.LIQRATE.OVR1YR.ALL ",{"$f":"Maturity!$K$33","v":0}]
[".2103.LIQRATE.1_7DYS.ALL ",{"$f":"Maturity!$C$34","v":0}]
[".2103.LIQRATE.8_14DYS.ALL",{"$f":"Maturity!$D$34","v":0}]
[".2103.LIQRATE.15_30DYS.ALL ",{"$f":"Maturity!$E$34","v":0}]
[".2103.LIQRATE.31_60DYS.ALL ",{"$f":"Maturity!$F$34","v":0}]
[".2103.LIQRATE.61_90DYS.ALL",{"$f":"Maturity!$G$34","v":0}]
[".2103.LIQRATE.91_180DYS.ALL ",{"$f":"Maturity!$H$34","v":0}]
[".2103.LIQRATE.181_270DYS.ALL ",{"$f":"Maturity!$I$34","v":0}]
[".2103.LIQRATE.271_365DYS.ALL ",{"$f":"Maturity!$J$34","v":0}]
[".2103.LIQRATE.OVR1YR.ALL ",{"$f":"Maturity!$K$34","v":0}]
[".22.LIQRATE.1_7DYS.ALL ",{"$f":"Maturity!$C$35","v":0}]
[".22.LIQRATE.8_14DYS.ALL",{"$f":"Maturity!$D$35","v":0}]
[".22.LIQRATE.15_30DYS.ALL ",{"$f":"Maturity!$E$35","v":0}]
[".22.LIQRATE.31_60DYS.ALL ",{"$f":"Maturity!$F$35","v":0}]
[".22.LIQRATE.61_90DYS.ALL",{"$f":"Maturity!$G$35","v":0}]
[".22.LIQRATE.91_180DYS.ALL ",{"$f":"Maturity!$H$35","v":0}]
[".22.LIQRATE.181_270DYS.ALL ",{"$f":"Maturity!$I$35","v":0}]
[".22.LIQRATE.271_365DYS.ALL ",{"$f":"Maturity!$J$35","v":0}]
[".22.LIQRATE.OVR1YR.ALL ",{"$f":"Maturity!$K$35","v":0}]
[".23.LIQRATE.1_7DYS.ALL ",{"$f":"Maturity!$C$36","v":0}]
[".23.LIQRATE.8_14DYS.ALL",{"$f":"Maturity!$D$36","v":0}]
[".23.LIQRATE.15_30DYS.ALL ",{"$f":"Maturity!$E$36","v":0}]
[".23.LIQRATE.31_60DYS.ALL ",{"$f":"Maturity!$F$36","v":0}]
[".23.LIQRATE.61_90DYS.ALL",{"$f":"Maturity!$G$36","v":0}]
[".23.LIQRATE.91_180DYS.ALL ",{"$f":"Maturity!$H$36","v":0}]
[".23.LIQRATE.181_270DYS.ALL ",{"$f":"Maturity!$I$36","v":0}]
[".23.LIQRATE.271_365DYS.ALL ",{"$f":"Maturity!$J$36","v":0}]
[".23.LIQRATE.OVR1YR.ALL ",{"$f":"Maturity!$K$36","v":0}]
[".24.LIQRATE.1_7DYS.ALL ",{"$f":"Maturity!$C$37","v":0}]
[".24.LIQRATE.8_14DYS.ALL",{"$f":"Maturity!$D$37","v":0}]
[".24.LIQRATE.15_30DYS.ALL ",{"$f":"Maturity!$E$37","v":0}]
[".24.LIQRATE.31_60DYS.ALL ",{"$f":"Maturity!$F$37","v":0}]
[".24.LIQRATE.61_90DYS.ALL",{"$f":"Maturity!$G$37","v":0}]
[".24.LIQRATE.91_180DYS.ALL ",{"$f":"Maturity!$H$37","v":0}]
[".24.LIQRATE.181_270DYS.ALL ",{"$f":"Maturity!$I$37","v":0}]
[".24.LIQRATE.271_365DYS.ALL ",{"$f":"Maturity!$J$37","v":0}]
[".24.LIQRATE.OVR1YR.ALL ",{"$f":"Maturity!$K$37","v":0}]
[".2401.LIQRATE.1_7DYS.ALL ",{"$f":"Maturity!$C$38","v":0}]
[".2401.LIQRATE.8_14DYS.ALL",{"$f":"Maturity!$D$38","v":0}]
[".2401.LIQRATE.15_30DYS.ALL ",{"$f":"Maturity!$E$38","v":0}]
[".2401.LIQRATE.31_60DYS.ALL ",{"$f":"Maturity!$F$38","v":0}]
[".2401.LIQRATE.61_90DYS.ALL",{"$f":"Maturity!$G$38","v":0}]
[".2401.LIQRATE.91_180DYS.ALL ",{"$f":"Maturity!$H$38","v":0}]
[".2401.LIQRATE.181_270DYS.ALL ",{"$f":"Maturity!$I$38","v":0}]
[".2401.LIQRATE.271_365DYS.ALL ",{"$f":"Maturity!$J$38","v":0}]
[".2401.LIQRATE.OVR1YR.ALL ",{"$f":"Maturity!$K$38","v":0}]
[".2402.LIQRATE.1_7DYS.ALL ",{"$f":"Maturity!$C$39","v":0}]
[".2402.LIQRATE.8_14DYS.ALL",{"$f":"Maturity!$D$39","v":0}]
[".2402.LIQRATE.15_30DYS.ALL ",{"$f":"Maturity!$E$39","v":0}]
[".2402.LIQRATE.31_60DYS.ALL ",{"$f":"Maturity!$F$39","v":0}]
[".2402.LIQRATE.61_90DYS.ALL",{"$f":"Maturity!$G$39","v":0}]
[".2402.LIQRATE.91_180DYS.ALL ",{"$f":"Maturity!$H$39","v":0}]
[".2402.LIQRATE.181_270DYS.ALL ",{"$f":"Maturity!$I$39","v":0}]
[".2402.LIQRATE.271_365DYS.ALL ",{"$f":"Maturity!$J$39","v":0}]
[".2402.LIQRATE.OVR1YR.ALL ",{"$f":"Maturity!$K$39","v":0}]
[".25.LIQRATE.1_7DYS.ALL ",{"$f":"Maturity!$C$40","v":0}]
[".25.LIQRATE.8_14DYS.ALL",{"$f":"Maturity!$D$40","v":0}]
[".25.LIQRATE.15_30DYS.ALL ",{"$f":"Maturity!$E$40","v":0}]
[".25.LIQRATE.31_60DYS.ALL ",{"$f":"Maturity!$F$40","v":0}]
[".25.LIQRATE.61_90DYS.ALL",{"$f":"Maturity!$G$40","v":0}]
[".25.LIQRATE.91_180DYS.ALL ",{"$f":"Maturity!$H$40","v":0}]
[".25.LIQRATE.181_270DYS.ALL ",{"$f":"Maturity!$I$40","v":0}]
[".25.LIQRATE.271_365DYS.ALL ",{"$f":"Maturity!$J$40","v":0}]
[".25.LIQRATE.OVR1YR.ALL ",{"$f":"Maturity!$K$40","v":0}]
[".26.LIQRATE.1_7DYS.ALL ",{"$f":"Maturity!$C$41","v":0}]
[".26.LIQRATE.8_14DYS.ALL",{"$f":"Maturity!$D$41","v":0}]
[".26.LIQRATE.15_30DYS.ALL ",{"$f":"Maturity!$E$41","v":0}]
[".26.LIQRATE.31_60DYS.ALL ",{"$f":"Maturity!$F$41","v":0}]
[".26.LIQRATE.61_90DYS.ALL",{"$f":"Maturity!$G$41","v":0}]
[".26.LIQRATE.91_180DYS.ALL ",{"$f":"Maturity!$H$41","v":0}]
[".26.LIQRATE.181_270DYS.ALL ",{"$f":"Maturity!$I$41","v":0}]
[".26.LIQRATE.271_365DYS.ALL ",{"$f":"Maturity!$J$41","v":0}]
[".26.LIQRATE.OVR1YR.ALL ",{"$f":"Maturity!$K$41","v":0}]
[".27.LIQRATE.1_7DYS.ALL ",{"$f":"Maturity!$C$42","v":0}]
[".27.LIQRATE.8_14DYS.ALL",{"$f":"Maturity!$D$42","v":0}]
[".27.LIQRATE.15_30DYS.ALL ",{"$f":"Maturity!$E$42","v":0}]
[".27.LIQRATE.31_60DYS.ALL ",{"$f":"Maturity!$F$42","v":0}]
[".27.LIQRATE.61_90DYS.ALL",{"$f":"Maturity!$G$42","v":0}]
[".27.LIQRATE.91_180DYS.ALL ",{"$f":"Maturity!$H$42","v":0}]
[".27.LIQRATE.181_270DYS.ALL ",{"$f":"Maturity!$I$42","v":0}]
[".27.LIQRATE.271_365DYS.ALL ",{"$f":"Maturity!$J$42","v":0}]
[".27.LIQRATE.OVR1YR.ALL ",{"$f":"Maturity!$K$42","v":0}]
[".28.LIQRATE.1_7DYS.ALL ",{"$f":"Maturity!$C$43","v":0}]
[".28.LIQRATE.8_14DYS.ALL",{"$f":"Maturity!$D$43","v":0}]
[".28.LIQRATE.15_30DYS.ALL ",{"$f":"Maturity!$E$43","v":0}]
[".28.LIQRATE.31_60DYS.ALL ",{"$f":"Maturity!$F$43","v":0}]
[".28.LIQRATE.61_90DYS.ALL",{"$f":"Maturity!$G$43","v":0}]
[".28.LIQRATE.91_180DYS.ALL ",{"$f":"Maturity!$H$43","v":0}]
[".28.LIQRATE.181_270DYS.ALL ",{"$f":"Maturity!$I$43","v":0}]
[".28.LIQRATE.271_365DYS.ALL ",{"$f":"Maturity!$J$43","v":0}]
[".28.LIQRATE.OVR1YR.ALL ",{"$f":"Maturity!$K$43","v":0}]
[".2.LIQRATE.1_7DYS.ALL ",{"$f":"Maturity!$C$44","v":0}]
[".2.LIQRATE.8_14DYS.ALL",{"$f":"Maturity!$D$44","v":0}]
[".2.LIQRATE.15_30DYS.ALL ",{"$f":"Maturity!$E$44","v":0}]
[".2.LIQRATE.31_60DYS.ALL ",{"$f":"Maturity!$F$44","v":0}]
[".2.LIQRATE.61_90DYS.ALL",{"$f":"Maturity!$G$44","v":0}]
[".2.LIQRATE.91_180DYS.ALL ",{"$f":"Maturity!$H$44","v":0}]
[".2.LIQRATE.181_270DYS.ALL ",{"$f":"Maturity!$I$44","v":0}]
[".2.LIQRATE.271_365DYS.ALL ",{"$f":"Maturity!$J$44","v":0}]
[".2.LIQRATE.OVR1YR.ALL ",{"$f":"Maturity!$K$44","v":0}]
[".PVT_LN_BUS.COC_COF_CIT_CULT.CURR.ALL",{"$f":"'Private Sector PDLs by Sector'!$C$10","v":0}]
[".PVT_LN_BUS.COC_COF_CIT_CULT.1MTH.ALL",{"$f":"'Private Sector PDLs by Sector'!$D$10","v":0}]
[".PVT_LN_BUS.COC_COF_CIT_CULT.OVR1_3MTHS.ALL",{"$f":"'Private Sector PDLs by Sector'!$E$10","v":0}]
[".PVT_LN_BUS.COC_COF_CIT_CULT.OVR3_6MTHS.ALL",{"$f":"'Private Sector PDLs by Sector'!$F$10","v":0}]
[".PVT_LN_BUS.COC_COF_CIT_CULT.OVR6_12MTHS.ALL",{"$f":"'Private Sector PDLs by Sector'!$G$10","v":0}]
[".PVT_LN_BUS.COC_COF_CIT_CULT.OVR12MTHS_24MTHS.ALL",{"$f":"'Private Sector PDLs by Sector'!$H$10","v":0}]
[".PVT_LN_BUS.COC_COF_CIT_CULT.OVR24MTHS.ALL",{"$f":"'Private Sector PDLs by Sector'!$I$10","v":0}]
[".PVT_LN_BUS.CCNUT_GROW.CURR.ALL",{"$f":"'Private Sector PDLs by Sector'!$C$11","v":0}]
[".PVT_LN_BUS.CCNUT_GROW.1MTH.ALL",{"$f":"'Private Sector PDLs by Sector'!$D$11","v":0}]
[".PVT_LN_BUS.CCNUT_GROW.OVR1_3MTHS.ALL",{"$f":"'Private Sector PDLs by Sector'!$E$11","v":0}]
[".PVT_LN_BUS.CCNUT_GROW.OVR3_6MTHS.ALL",{"$f":"'Private Sector PDLs by Sector'!$F$11","v":0}]
[".PVT_LN_BUS.CCNUT_GROW.OVR6_12MTHS.ALL",{"$f":"'Private Sector PDLs by Sector'!$G$11","v":0}]
[".PVT_LN_BUS.CCNUT_GROW.OVR12MTHS_24MTHS.ALL",{"$f":"'Private Sector PDLs by Sector'!$H$11","v":0}]
[".PVT_LN_BUS.CCNUT_GROW.OVR24MTHS.ALL",{"$f":"'Private Sector PDLs by Sector'!$I$11","v":0}]
[".PVT_LN_BUS.RCROP_PUL_VEG.CURR.ALL",{"$f":"'Private Sector PDLs by Sector'!$C$12","v":0}]
[".PVT_LN_BUS.RCROP_PUL_VEG.1MTH.ALL",{"$f":"'Private Sector PDLs by Sector'!$D$12","v":0}]
[".PVT_LN_BUS.RCROP_PUL_VEG.OVR1_3MTHS.ALL",{"$f":"'Private Sector PDLs by Sector'!$E$12","v":0}]
[".PVT_LN_BUS.RCROP_PUL_VEG.OVR3_6MTHS.ALL",{"$f":"'Private Sector PDLs by Sector'!$F$12","v":0}]
[".PVT_LN_BUS.RCROP_PUL_VEG.OVR6_12MTHS.ALL",{"$f":"'Private Sector PDLs by Sector'!$G$12","v":0}]
[".PVT_LN_BUS.RCROP_PUL_VEG.OVR12MTHS_24MTHS.ALL",{"$f":"'Private Sector PDLs by Sector'!$H$12","v":0}]
[".PVT_LN_BUS.RCROP_PUL_VEG.OVR24MTHS.ALL",{"$f":"'Private Sector PDLs by Sector'!$I$12","v":0}]
[".PVT_LN_BUS.POL_EGGS.CURR.ALL",{"$f":"'Private Sector PDLs by Sector'!$C$13","v":0}]
[".PVT_LN_BUS.POL_EGGS.1MTH.ALL",{"$f":"'Private Sector PDLs by Sector'!$D$13","v":0}]
[".PVT_LN_BUS.POL_EGGS.OVR1_3MTHS.ALL",{"$f":"'Private Sector PDLs by Sector'!$E$13","v":0}]
[".PVT_LN_BUS.POL_EGGS.OVR3_6MTHS.ALL",{"$f":"'Private Sector PDLs by Sector'!$F$13","v":0}]
[".PVT_LN_BUS.POL_EGGS.OVR6_12MTHS.ALL",{"$f":"'Private Sector PDLs by Sector'!$G$13","v":0}]
[".PVT_LN_BUS.POL_EGGS.OVR12MTHS_24MTHS.ALL",{"$f":"'Private Sector PDLs by Sector'!$H$13","v":0}]
[".PVT_LN_BUS.POL_EGGS.OVR24MTHS.ALL",{"$f":"'Private Sector PDLs by Sector'!$I$13","v":0}]
[".PVT_LN_BUS.DAI_BEEF.CURR.ALL",{"$f":"'Private Sector PDLs by Sector'!$C$14","v":0}]
[".PVT_LN_BUS.DAI_BEEF.1MTH.ALL",{"$f":"'Private Sector PDLs by Sector'!$D$14","v":0}]
[".PVT_LN_BUS.DAI_BEEF.OVR1_3MTHS.ALL",{"$f":"'Private Sector PDLs by Sector'!$E$14","v":0}]
[".PVT_LN_BUS.DAI_BEEF.OVR3_6MTHS.ALL",{"$f":"'Private Sector PDLs by Sector'!$F$14","v":0}]
[".PVT_LN_BUS.DAI_BEEF.OVR6_12MTHS.ALL",{"$f":"'Private Sector PDLs by Sector'!$G$14","v":0}]
[".PVT_LN_BUS.DAI_BEEF.OVR12MTHS_24MTHS.ALL",{"$f":"'Private Sector PDLs by Sector'!$H$14","v":0}]
[".PVT_LN_BUS.DAI_BEEF.OVR24MTHS.ALL",{"$f":"'Private Sector PDLs by Sector'!$I$14","v":0}]
[".PVT_LN_BUS.FORES_FISH.CURR.ALL",{"$f":"'Private Sector PDLs by Sector'!$C$15","v":0}]
[".PVT_LN_BUS.FORES_FISH.1MTH.ALL",{"$f":"'Private Sector PDLs by Sector'!$D$15","v":0}]
[".PVT_LN_BUS.FORES_FISH.OVR1_3MTHS.ALL",{"$f":"'Private Sector PDLs by Sector'!$E$15","v":0}]
[".PVT_LN_BUS.FORES_FISH.OVR3_6MTHS.ALL",{"$f":"'Private Sector PDLs by Sector'!$F$15","v":0}]
[".PVT_LN_BUS.FORES_FISH.OVR6_12MTHS.ALL",{"$f":"'Private Sector PDLs by Sector'!$G$15","v":0}]
[".PVT_LN_BUS.FORES_FISH.OVR12MTHS_24MTHS.ALL",{"$f":"'Private Sector PDLs by Sector'!$H$15","v":0}]
[".PVT_LN_BUS.FORES_FISH.OVR24MTHS.ALL",{"$f":"'Private Sector PDLs by Sector'!$I$15","v":0}]
[".PVT_LN_BUS.OTH_DOM.CURR.ALL",{"$f":"'Private Sector PDLs by Sector'!$C$16","v":0}]
[".PVT_LN_BUS.OTH_DOM.1MTH.ALL",{"$f":"'Private Sector PDLs by Sector'!$D$16","v":0}]
[".PVT_LN_BUS.OTH_DOM.OVR1_3MTHS.ALL",{"$f":"'Private Sector PDLs by Sector'!$E$16","v":0}]
[".PVT_LN_BUS.OTH_DOM.OVR3_6MTHS.ALL",{"$f":"'Private Sector PDLs by Sector'!$F$16","v":0}]
[".PVT_LN_BUS.OTH_DOM.OVR6_12MTHS.ALL",{"$f":"'Private Sector PDLs by Sector'!$G$16","v":0}]
[".PVT_LN_BUS.OTH_DOM.OVR12MTHS_24MTHS.ALL",{"$f":"'Private Sector PDLs by Sector'!$H$16","v":0}]
[".PVT_LN_BUS.OTH_DOM.OVR24MTHS.ALL",{"$f":"'Private Sector PDLs by Sector'!$I$16","v":0}]
[".PVT_LN_BUS.SUG_IND.CURR.ALL",{"$f":"'Private Sector PDLs by Sector'!$C$17","v":0}]
[".PVT_LN_BUS.SUG_IND.1MTH.ALL",{"$f":"'Private Sector PDLs by Sector'!$D$17","v":0}]
[".PVT_LN_BUS.SUG_IND.OVR1_3MTHS.ALL",{"$f":"'Private Sector PDLs by Sector'!$E$17","v":0}]
[".PVT_LN_BUS.SUG_IND.OVR3_6MTHS.ALL",{"$f":"'Private Sector PDLs by Sector'!$F$17","v":0}]
[".PVT_LN_BUS.SUG_IND.OVR6_12MTHS.ALL",{"$f":"'Private Sector PDLs by Sector'!$G$17","v":0}]
[".PVT_LN_BUS.SUG_IND.OVR12MTHS_24MTHS.ALL",{"$f":"'Private Sector PDLs by Sector'!$H$17","v":0}]
[".PVT_LN_BUS.SUG_IND.OVR24MTHS.ALL",{"$f":"'Private Sector PDLs by Sector'!$I$17","v":0}]
[".PVT_LN_BUS.PETRO.CURR.ALL",{"$f":"'Private Sector PDLs by Sector'!$C$18","v":0}]
[".PVT_LN_BUS.PETRO.1MTH.ALL",{"$f":"'Private Sector PDLs by Sector'!$D$18","v":0}]
[".PVT_LN_BUS.PETRO.OVR1_3MTHS.ALL",{"$f":"'Private Sector PDLs by Sector'!$E$18","v":0}]
[".PVT_LN_BUS.PETRO.OVR3_6MTHS.ALL",{"$f":"'Private Sector PDLs by Sector'!$F$18","v":0}]
[".PVT_LN_BUS.PETRO.OVR6_12MTHS.ALL",{"$f":"'Private Sector PDLs by Sector'!$G$18","v":0}]
[".PVT_LN_BUS.PETRO.OVR12MTHS_24MTHS.ALL",{"$f":"'Private Sector PDLs by Sector'!$H$18","v":0}]
[".PVT_LN_BUS.PETRO.OVR24MTHS.ALL",{"$f":"'Private Sector PDLs by Sector'!$I$18","v":0}]
[".PVT_LN_BUS.FOOD_PROCESS.CURR.ALL",{"$f":"'Private Sector PDLs by Sector'!$C$19","v":0}]
[".PVT_LN_BUS.FOOD_PROCESS.1MTH.ALL",{"$f":"'Private Sector PDLs by Sector'!$D$19","v":0}]
[".PVT_LN_BUS.FOOD_PROCESS.OVR1_3MTHS.ALL",{"$f":"'Private Sector PDLs by Sector'!$E$19","v":0}]
[".PVT_LN_BUS.FOOD_PROCESS.OVR3_6MTHS.ALL",{"$f":"'Private Sector PDLs by Sector'!$F$19","v":0}]
[".PVT_LN_BUS.FOOD_PROCESS.OVR6_12MTHS.ALL",{"$f":"'Private Sector PDLs by Sector'!$G$19","v":0}]
[".PVT_LN_BUS.FOOD_PROCESS.OVR12MTHS_24MTHS.ALL",{"$f":"'Private Sector PDLs by Sector'!$H$19","v":0}]
[".PVT_LN_BUS.FOOD_PROCESS.OVR24MTHS.ALL",{"$f":"'Private Sector PDLs by Sector'!$I$19","v":0}]
[".PVT_LN_BUS.DRNK_TOBCCO.CURR.ALL",{"$f":"'Private Sector PDLs by Sector'!$C$20","v":0}]
[".PVT_LN_BUS.DRNK_TOBCCO.1MTH.ALL",{"$f":"'Private Sector PDLs by Sector'!$D$20","v":0}]
[".PVT_LN_BUS.DRNK_TOBCCO.OVR1_3MTHS.ALL",{"$f":"'Private Sector PDLs by Sector'!$E$20","v":0}]
[".PVT_LN_BUS.DRNK_TOBCCO.OVR3_6MTHS.ALL",{"$f":"'Private Sector PDLs by Sector'!$F$20","v":0}]
[".PVT_LN_BUS.DRNK_TOBCCO.OVR6_12MTHS.ALL",{"$f":"'Private Sector PDLs by Sector'!$G$20","v":0}]
[".PVT_LN_BUS.DRNK_TOBCCO.OVR12MTHS_24MTHS.ALL",{"$f":"'Private Sector PDLs by Sector'!$H$20","v":0}]
[".PVT_LN_BUS.DRNK_TOBCCO.OVR24MTHS.ALL",{"$f":"'Private Sector PDLs by Sector'!$I$20","v":0}]
[".PVT_LN_BUS.TEX_GARMNTS.CURR.ALL",{"$f":"'Private Sector PDLs by Sector'!$C$21","v":0}]
[".PVT_LN_BUS.TEX_GARMNTS.1MTH.ALL",{"$f":"'Private Sector PDLs by Sector'!$D$21","v":0}]
[".PVT_LN_BUS.TEX_GARMNTS.OVR1_3MTHS.ALL",{"$f":"'Private Sector PDLs by Sector'!$E$21","v":0}]
[".PVT_LN_BUS.TEX_GARMNTS.OVR3_6MTHS.ALL",{"$f":"'Private Sector PDLs by Sector'!$F$21","v":0}]
[".PVT_LN_BUS.TEX_GARMNTS.OVR6_12MTHS.ALL",{"$f":"'Private Sector PDLs by Sector'!$G$21","v":0}]
[".PVT_LN_BUS.TEX_GARMNTS.OVR12MTHS_24MTHS.ALL",{"$f":"'Private Sector PDLs by Sector'!$H$21","v":0}]
[".PVT_LN_BUS.TEX_GARMNTS.OVR24MTHS.ALL",{"$f":"'Private Sector PDLs by Sector'!$I$21","v":0}]
[".PVT_LN_BUS.FOOT_HWEAR.CURR.ALL",{"$f":"'Private Sector PDLs by Sector'!$C$22","v":0}]
[".PVT_LN_BUS.FOOT_HWEAR.1MTH.ALL",{"$f":"'Private Sector PDLs by Sector'!$D$22","v":0}]
[".PVT_LN_BUS.FOOT_HWEAR.OVR1_3MTHS.ALL",{"$f":"'Private Sector PDLs by Sector'!$E$22","v":0}]
[".PVT_LN_BUS.FOOT_HWEAR.OVR3_6MTHS.ALL",{"$f":"'Private Sector PDLs by Sector'!$F$22","v":0}]
[".PVT_LN_BUS.FOOT_HWEAR.OVR6_12MTHS.ALL",{"$f":"'Private Sector PDLs by Sector'!$G$22","v":0}]
[".PVT_LN_BUS.FOOT_HWEAR.OVR12MTHS_24MTHS.ALL",{"$f":"'Private Sector PDLs by Sector'!$H$22","v":0}]
[".PVT_LN_BUS.FOOT_HWEAR.OVR24MTHS.ALL",{"$f":"'Private Sector PDLs by Sector'!$I$22","v":0}]
[".PVT_LN_BUS.PRINT_PUBL.CURR.ALL",{"$f":"'Private Sector PDLs by Sector'!$C$23","v":0}]
[".PVT_LN_BUS.PRINT_PUBL.1MTH.ALL",{"$f":"'Private Sector PDLs by Sector'!$D$23","v":0}]
[".PVT_LN_BUS.PRINT_PUBL.OVR1_3MTHS.ALL",{"$f":"'Private Sector PDLs by Sector'!$E$23","v":0}]
[".PVT_LN_BUS.PRINT_PUBL.OVR3_6MTHS.ALL",{"$f":"'Private Sector PDLs by Sector'!$F$23","v":0}]
[".PVT_LN_BUS.PRINT_PUBL.OVR6_12MTHS.ALL",{"$f":"'Private Sector PDLs by Sector'!$G$23","v":0}]
[".PVT_LN_BUS.PRINT_PUBL.OVR12MTHS_24MTHS.ALL",{"$f":"'Private Sector PDLs by Sector'!$H$23","v":0}]
[".PVT_LN_BUS.PRINT_PUBL.OVR24MTHS.ALL",{"$f":"'Private Sector PDLs by Sector'!$I$23","v":0}]
[".PVT_LN_BUS.WOOD_OTH.CURR.ALL",{"$f":"'Private Sector PDLs by Sector'!$C$24","v":0}]
[".PVT_LN_BUS.WOOD_OTH.1MTH.ALL",{"$f":"'Private Sector PDLs by Sector'!$D$24","v":0}]
[".PVT_LN_BUS.WOOD_OTH.OVR1_3MTHS.ALL",{"$f":"'Private Sector PDLs by Sector'!$E$24","v":0}]
[".PVT_LN_BUS.WOOD_OTH.OVR3_6MTHS.ALL",{"$f":"'Private Sector PDLs by Sector'!$F$24","v":0}]
[".PVT_LN_BUS.WOOD_OTH.OVR6_12MTHS.ALL",{"$f":"'Private Sector PDLs by Sector'!$G$24","v":0}]
[".PVT_LN_BUS.WOOD_OTH.OVR12MTHS_24MTHS.ALL",{"$f":"'Private Sector PDLs by Sector'!$H$24","v":0}]
[".PVT_LN_BUS.WOOD_OTH.OVR24MTHS.ALL",{"$f":"'Private Sector PDLs by Sector'!$I$24","v":0}]
[".PVT_LN_BUS.GAS_PAINT.CURR.ALL",{"$f":"'Private Sector PDLs by Sector'!$C$25","v":0}]
[".PVT_LN_BUS.GAS_PAINT.1MTH.ALL",{"$f":"'Private Sector PDLs by Sector'!$D$25","v":0}]
[".PVT_LN_BUS.GAS_PAINT.OVR1_3MTHS.ALL",{"$f":"'Private Sector PDLs by Sector'!$E$25","v":0}]
[".PVT_LN_BUS.GAS_PAINT.OVR3_6MTHS.ALL",{"$f":"'Private Sector PDLs by Sector'!$F$25","v":0}]
[".PVT_LN_BUS.GAS_PAINT.OVR6_12MTHS.ALL",{"$f":"'Private Sector PDLs by Sector'!$G$25","v":0}]
[".PVT_LN_BUS.GAS_PAINT.OVR12MTHS_24MTHS.ALL",{"$f":"'Private Sector PDLs by Sector'!$H$25","v":0}]
[".PVT_LN_BUS.GAS_PAINT.OVR24MTHS.ALL",{"$f":"'Private Sector PDLs by Sector'!$I$25","v":0}]
[".PVT_LN_BUS.PHARM_CHEM.CURR.ALL",{"$f":"'Private Sector PDLs by Sector'!$C$26","v":0}]
[".PVT_LN_BUS.PHARM_CHEM.1MTH.ALL",{"$f":"'Private Sector PDLs by Sector'!$D$26","v":0}]
[".PVT_LN_BUS.PHARM_CHEM.OVR1_3MTHS.ALL",{"$f":"'Private Sector PDLs by Sector'!$E$26","v":0}]
[".PVT_LN_BUS.PHARM_CHEM.OVR3_6MTHS.ALL",{"$f":"'Private Sector PDLs by Sector'!$F$26","v":0}]
[".PVT_LN_BUS.PHARM_CHEM.OVR6_12MTHS.ALL",{"$f":"'Private Sector PDLs by Sector'!$G$26","v":0}]
[".PVT_LN_BUS.PHARM_CHEM.OVR12MTHS_24MTHS.ALL",{"$f":"'Private Sector PDLs by Sector'!$H$26","v":0}]
[".PVT_LN_BUS.PHARM_CHEM.OVR24MTHS.ALL",{"$f":"'Private Sector PDLs by Sector'!$I$26","v":0}]
[".PVT_LN_BUS.CLAY_BRIC.CURR.ALL",{"$f":"'Private Sector PDLs by Sector'!$C$27","v":0}]
[".PVT_LN_BUS.CLAY_BRIC.1MTH.ALL",{"$f":"'Private Sector PDLs by Sector'!$D$27","v":0}]
[".PVT_LN_BUS.CLAY_BRIC.OVR1_3MTHS.ALL",{"$f":"'Private Sector PDLs by Sector'!$E$27","v":0}]
[".PVT_LN_BUS.CLAY_BRIC.OVR3_6MTHS.ALL",{"$f":"'Private Sector PDLs by Sector'!$F$27","v":0}]
[".PVT_LN_BUS.CLAY_BRIC.OVR6_12MTHS.ALL",{"$f":"'Private Sector PDLs by Sector'!$G$27","v":0}]
[".PVT_LN_BUS.CLAY_BRIC.OVR12MTHS_24MTHS.ALL",{"$f":"'Private Sector PDLs by Sector'!$H$27","v":0}]
[".PVT_LN_BUS.CLAY_BRIC.OVR24MTHS.ALL",{"$f":"'Private Sector PDLs by Sector'!$I$27","v":0}]
[".PVT_LN_BUS.CEMNT_CONC.CURR.ALL",{"$f":"'Private Sector PDLs by Sector'!$C$28","v":0}]
[".PVT_LN_BUS.CEMNT_CONC.1MTH.ALL",{"$f":"'Private Sector PDLs by Sector'!$D$28","v":0}]
[".PVT_LN_BUS.CEMNT_CONC.OVR1_3MTHS.ALL",{"$f":"'Private Sector PDLs by Sector'!$E$28","v":0}]
[".PVT_LN_BUS.CEMNT_CONC.OVR3_6MTHS.ALL",{"$f":"'Private Sector PDLs by Sector'!$F$28","v":0}]
[".PVT_LN_BUS.CEMNT_CONC.OVR6_12MTHS.ALL",{"$f":"'Private Sector PDLs by Sector'!$G$28","v":0}]
[".PVT_LN_BUS.CEMNT_CONC.OVR12MTHS_24MTHS.ALL",{"$f":"'Private Sector PDLs by Sector'!$H$28","v":0}]
[".PVT_LN_BUS.CEMNT_CONC.OVR24MTHS.ALL",{"$f":"'Private Sector PDLs by Sector'!$I$28","v":0}]
[".PVT_LN_BUS.OTH_CHEM.CURR.ALL",{"$f":"'Private Sector PDLs by Sector'!$C$29","v":0}]
[".PVT_LN_BUS.OTH_CHEM.1MTH.ALL",{"$f":"'Private Sector PDLs by Sector'!$D$29","v":0}]
[".PVT_LN_BUS.OTH_CHEM.OVR1_3MTHS.ALL",{"$f":"'Private Sector PDLs by Sector'!$E$29","v":0}]
[".PVT_LN_BUS.OTH_CHEM.OVR3_6MTHS.ALL",{"$f":"'Private Sector PDLs by Sector'!$F$29","v":0}]
[".PVT_LN_BUS.OTH_CHEM.OVR6_12MTHS.ALL",{"$f":"'Private Sector PDLs by Sector'!$G$29","v":0}]
[".PVT_LN_BUS.OTH_CHEM.OVR12MTHS_24MTHS.ALL",{"$f":"'Private Sector PDLs by Sector'!$H$29","v":0}]
[".PVT_LN_BUS.OTH_CHEM.OVR24MTHS.ALL",{"$f":"'Private Sector PDLs by Sector'!$I$29","v":0}]
[".PVT_LN_BUS.MOTOR_ASSBLY.CURR.ALL",{"$f":"'Private Sector PDLs by Sector'!$C$30","v":0}]
[".PVT_LN_BUS.MOTOR_ASSBLY.1MTH.ALL",{"$f":"'Private Sector PDLs by Sector'!$D$30","v":0}]
[".PVT_LN_BUS.MOTOR_ASSBLY.OVR1_3MTHS.ALL",{"$f":"'Private Sector PDLs by Sector'!$E$30","v":0}]
[".PVT_LN_BUS.MOTOR_ASSBLY.OVR3_6MTHS.ALL",{"$f":"'Private Sector PDLs by Sector'!$F$30","v":0}]
[".PVT_LN_BUS.MOTOR_ASSBLY.OVR6_12MTHS.ALL",{"$f":"'Private Sector PDLs by Sector'!$G$30","v":0}]
[".PVT_LN_BUS.MOTOR_ASSBLY.OVR12MTHS_24MTHS.ALL",{"$f":"'Private Sector PDLs by Sector'!$H$30","v":0}]
[".PVT_LN_BUS.MOTOR_ASSBLY.OVR24MTHS.ALL",{"$f":"'Private Sector PDLs by Sector'!$I$30","v":0}]
[".PVT_LN_BUS.ASSBLY_APPL.CURR.ALL",{"$f":"'Private Sector PDLs by Sector'!$C$31","v":0}]
[".PVT_LN_BUS.ASSBLY_APPL.1MTH.ALL",{"$f":"'Private Sector PDLs by Sector'!$D$31","v":0}]
[".PVT_LN_BUS.ASSBLY_APPL.OVR1_3MTHS.ALL",{"$f":"'Private Sector PDLs by Sector'!$E$31","v":0}]
[".PVT_LN_BUS.ASSBLY_APPL.OVR3_6MTHS.ALL",{"$f":"'Private Sector PDLs by Sector'!$F$31","v":0}]
[".PVT_LN_BUS.ASSBLY_APPL.OVR6_12MTHS.ALL",{"$f":"'Private Sector PDLs by Sector'!$G$31","v":0}]
[".PVT_LN_BUS.ASSBLY_APPL.OVR12MTHS_24MTHS.ALL",{"$f":"'Private Sector PDLs by Sector'!$H$31","v":0}]
[".PVT_LN_BUS.ASSBLY_APPL.OVR24MTHS.ALL",{"$f":"'Private Sector PDLs by Sector'!$I$31","v":0}]
[".PVT_LN_BUS.METAL_BUILD.CURR.ALL",{"$f":"'Private Sector PDLs by Sector'!$C$32","v":0}]
[".PVT_LN_BUS.METAL_BUILD.1MTH.ALL",{"$f":"'Private Sector PDLs by Sector'!$D$32","v":0}]
[".PVT_LN_BUS.METAL_BUILD.OVR1_3MTHS.ALL",{"$f":"'Private Sector PDLs by Sector'!$E$32","v":0}]
[".PVT_LN_BUS.METAL_BUILD.OVR3_6MTHS.ALL",{"$f":"'Private Sector PDLs by Sector'!$F$32","v":0}]
[".PVT_LN_BUS.METAL_BUILD.OVR6_12MTHS.ALL",{"$f":"'Private Sector PDLs by Sector'!$G$32","v":0}]
[".PVT_LN_BUS.METAL_BUILD.OVR12MTHS_24MTHS.ALL",{"$f":"'Private Sector PDLs by Sector'!$H$32","v":0}]
[".PVT_LN_BUS.METAL_BUILD.OVR24MTHS.ALL",{"$f":"'Private Sector PDLs by Sector'!$I$32","v":0}]
[".PVT_LN_BUS.MANF_IRON_STL.CURR.ALL",{"$f":"'Private Sector PDLs by Sector'!$C$33","v":0}]
[".PVT_LN_BUS.MANF_IRON_STL.1MTH.ALL",{"$f":"'Private Sector PDLs by Sector'!$D$33","v":0}]
[".PVT_LN_BUS.MANF_IRON_STL.OVR1_3MTHS.ALL",{"$f":"'Private Sector PDLs by Sector'!$E$33","v":0}]
[".PVT_LN_BUS.MANF_IRON_STL.OVR3_6MTHS.ALL",{"$f":"'Private Sector PDLs by Sector'!$F$33","v":0}]
[".PVT_LN_BUS.MANF_IRON_STL.OVR6_12MTHS.ALL",{"$f":"'Private Sector PDLs by Sector'!$G$33","v":0}]
[".PVT_LN_BUS.MANF_IRON_STL.OVR12MTHS_24MTHS.ALL",{"$f":"'Private Sector PDLs by Sector'!$H$33","v":0}]
[".PVT_LN_BUS.MANF_IRON_STL.OVR24MTHS.ALL",{"$f":"'Private Sector PDLs by Sector'!$I$33","v":0}]
[".PVT_LN_BUS.OTH_ASSMBL_TYP.CURR.ALL",{"$f":"'Private Sector PDLs by Sector'!$C$34","v":0}]
[".PVT_LN_BUS.OTH_ASSMBL_TYP.1MTH.ALL",{"$f":"'Private Sector PDLs by Sector'!$D$34","v":0}]
[".PVT_LN_BUS.OTH_ASSMBL_TYP.OVR1_3MTHS.ALL",{"$f":"'Private Sector PDLs by Sector'!$E$34","v":0}]
[".PVT_LN_BUS.OTH_ASSMBL_TYP.OVR3_6MTHS.ALL",{"$f":"'Private Sector PDLs by Sector'!$F$34","v":0}]
[".PVT_LN_BUS.OTH_ASSMBL_TYP.OVR6_12MTHS.ALL",{"$f":"'Private Sector PDLs by Sector'!$G$34","v":0}]
[".PVT_LN_BUS.OTH_ASSMBL_TYP.OVR12MTHS_24MTHS.ALL",{"$f":"'Private Sector PDLs by Sector'!$H$34","v":0}]
[".PVT_LN_BUS.OTH_ASSMBL_TYP.OVR24MTHS.ALL",{"$f":"'Private Sector PDLs by Sector'!$I$34","v":0}]
[".PVT_LN_BUS.MISC_MANF.CURR.ALL",{"$f":"'Private Sector PDLs by Sector'!$C$35","v":0}]
[".PVT_LN_BUS.MISC_MANF.1MTH.ALL",{"$f":"'Private Sector PDLs by Sector'!$D$35","v":0}]
[".PVT_LN_BUS.MISC_MANF.OVR1_3MTHS.ALL",{"$f":"'Private Sector PDLs by Sector'!$E$35","v":0}]
[".PVT_LN_BUS.MISC_MANF.OVR3_6MTHS.ALL",{"$f":"'Private Sector PDLs by Sector'!$F$35","v":0}]
[".PVT_LN_BUS.MISC_MANF.OVR6_12MTHS.ALL",{"$f":"'Private Sector PDLs by Sector'!$G$35","v":0}]
[".PVT_LN_BUS.MISC_MANF.OVR12MTHS_24MTHS.ALL",{"$f":"'Private Sector PDLs by Sector'!$H$35","v":0}]
[".PVT_LN_BUS.MISC_MANF.OVR24MTHS.ALL",{"$f":"'Private Sector PDLs by Sector'!$I$35","v":0}]
[".PVT_LN_BUS.ELEC_WATER.CURR.ALL",{"$f":"'Private Sector PDLs by Sector'!$C$36","v":0}]
[".PVT_LN_BUS.ELEC_WATER.1MTH.ALL",{"$f":"'Private Sector PDLs by Sector'!$D$36","v":0}]
[".PVT_LN_BUS.ELEC_WATER.OVR1_3MTHS.ALL",{"$f":"'Private Sector PDLs by Sector'!$E$36","v":0}]
[".PVT_LN_BUS.ELEC_WATER.OVR3_6MTHS.ALL",{"$f":"'Private Sector PDLs by Sector'!$F$36","v":0}]
[".PVT_LN_BUS.ELEC_WATER.OVR6_12MTHS.ALL",{"$f":"'Private Sector PDLs by Sector'!$G$36","v":0}]
[".PVT_LN_BUS.ELEC_WATER.OVR12MTHS_24MTHS.ALL",{"$f":"'Private Sector PDLs by Sector'!$H$36","v":0}]
[".PVT_LN_BUS.ELEC_WATER.OVR24MTHS.ALL",{"$f":"'Private Sector PDLs by Sector'!$I$36","v":0}]
[".PVT_LN_BUS.BLD_CONSTR.CURR.ALL",{"$f":"'Private Sector PDLs by Sector'!$C$37","v":0}]
[".PVT_LN_BUS.BLD_CONSTR.1MTH.ALL",{"$f":"'Private Sector PDLs by Sector'!$D$37","v":0}]
[".PVT_LN_BUS.BLD_CONSTR.OVR1_3MTHS.ALL",{"$f":"'Private Sector PDLs by Sector'!$E$37","v":0}]
[".PVT_LN_BUS.BLD_CONSTR.OVR3_6MTHS.ALL",{"$f":"'Private Sector PDLs by Sector'!$F$37","v":0}]
[".PVT_LN_BUS.BLD_CONSTR.OVR6_12MTHS.ALL",{"$f":"'Private Sector PDLs by Sector'!$G$37","v":0}]
[".PVT_LN_BUS.BLD_CONSTR.OVR12MTHS_24MTHS.ALL",{"$f":"'Private Sector PDLs by Sector'!$H$37","v":0}]
[".PVT_LN_BUS.BLD_CONSTR.OVR24MTHS.ALL",{"$f":"'Private Sector PDLs by Sector'!$I$37","v":0}]
[".PVT_LN_BUS.CIVIL_ENG.CURR.ALL",{"$f":"'Private Sector PDLs by Sector'!$C$38","v":0}]
[".PVT_LN_BUS.CIVIL_ENG.1MTH.ALL",{"$f":"'Private Sector PDLs by Sector'!$D$38","v":0}]
[".PVT_LN_BUS.CIVIL_ENG.OVR1_3MTHS.ALL",{"$f":"'Private Sector PDLs by Sector'!$E$38","v":0}]
[".PVT_LN_BUS.CIVIL_ENG.OVR3_6MTHS.ALL",{"$f":"'Private Sector PDLs by Sector'!$F$38","v":0}]
[".PVT_LN_BUS.CIVIL_ENG.OVR6_12MTHS.ALL",{"$f":"'Private Sector PDLs by Sector'!$G$38","v":0}]
[".PVT_LN_BUS.CIVIL_ENG.OVR12MTHS_24MTHS.ALL",{"$f":"'Private Sector PDLs by Sector'!$H$38","v":0}]
[".PVT_LN_BUS.CIVIL_ENG.OVR24MTHS.ALL",{"$f":"'Private Sector PDLs by Sector'!$I$38","v":0}]
[".PVT_LN_BUS.ELEC_INST.CURR.ALL",{"$f":"'Private Sector PDLs by Sector'!$C$39","v":0}]
[".PVT_LN_BUS.ELEC_INST.1MTH.ALL",{"$f":"'Private Sector PDLs by Sector'!$D$39","v":0}]
[".PVT_LN_BUS.ELEC_INST.OVR1_3MTHS.ALL",{"$f":"'Private Sector PDLs by Sector'!$E$39","v":0}]
[".PVT_LN_BUS.ELEC_INST.OVR3_6MTHS.ALL",{"$f":"'Private Sector PDLs by Sector'!$F$39","v":0}]
[".PVT_LN_BUS.ELEC_INST.OVR6_12MTHS.ALL",{"$f":"'Private Sector PDLs by Sector'!$G$39","v":0}]
[".PVT_LN_BUS.ELEC_INST.OVR12MTHS_24MTHS.ALL",{"$f":"'Private Sector PDLs by Sector'!$H$39","v":0}]
[".PVT_LN_BUS.ELEC_INST.OVR24MTHS.ALL",{"$f":"'Private Sector PDLs by Sector'!$I$39","v":0}]
[".PVT_LN_BUS.OTH_CONSTR.CURR.ALL",{"$f":"'Private Sector PDLs by Sector'!$C$40","v":0}]
[".PVT_LN_BUS.OTH_CONSTR.1MTH.ALL",{"$f":"'Private Sector PDLs by Sector'!$D$40","v":0}]
[".PVT_LN_BUS.OTH_CONSTR.OVR1_3MTHS.ALL",{"$f":"'Private Sector PDLs by Sector'!$E$40","v":0}]
[".PVT_LN_BUS.OTH_CONSTR.OVR3_6MTHS.ALL",{"$f":"'Private Sector PDLs by Sector'!$F$40","v":0}]
[".PVT_LN_BUS.OTH_CONSTR.OVR6_12MTHS.ALL",{"$f":"'Private Sector PDLs by Sector'!$G$40","v":0}]
[".PVT_LN_BUS.OTH_CONSTR.OVR12MTHS_24MTHS.ALL",{"$f":"'Private Sector PDLs by Sector'!$H$40","v":0}]
[".PVT_LN_BUS.OTH_CONSTR.OVR24MTHS.ALL",{"$f":"'Private Sector PDLs by Sector'!$I$40","v":0}]
[".PVT_LN_BUS.WSALE_TRDE.CURR.ALL",{"$f":"'Private Sector PDLs by Sector'!$C$41","v":0}]
[".PVT_LN_BUS.WSALE_TRDE.1MTH.ALL",{"$f":"'Private Sector PDLs by Sector'!$D$41","v":0}]
[".PVT_LN_BUS.WSALE_TRDE.OVR1_3MTHS.ALL",{"$f":"'Private Sector PDLs by Sector'!$E$41","v":0}]
[".PVT_LN_BUS.WSALE_TRDE.OVR3_6MTHS.ALL",{"$f":"'Private Sector PDLs by Sector'!$F$41","v":0}]
[".PVT_LN_BUS.WSALE_TRDE.OVR6_12MTHS.ALL",{"$f":"'Private Sector PDLs by Sector'!$G$41","v":0}]
[".PVT_LN_BUS.WSALE_TRDE.OVR12MTHS_24MTHS.ALL",{"$f":"'Private Sector PDLs by Sector'!$H$41","v":0}]
[".PVT_LN_BUS.WSALE_TRDE.OVR24MTHS.ALL",{"$f":"'Private Sector PDLs by Sector'!$I$41","v":0}]
[".PVT_LN_BUS.RET_TRDE.CURR.ALL",{"$f":"'Private Sector PDLs by Sector'!$C$42","v":0}]
[".PVT_LN_BUS.RET_TRDE.1MTH.ALL",{"$f":"'Private Sector PDLs by Sector'!$D$42","v":0}]
[".PVT_LN_BUS.RET_TRDE.OVR1_3MTHS.ALL",{"$f":"'Private Sector PDLs by Sector'!$E$42","v":0}]
[".PVT_LN_BUS.RET_TRDE.OVR3_6MTHS.ALL",{"$f":"'Private Sector PDLs by Sector'!$F$42","v":0}]
[".PVT_LN_BUS.RET_TRDE.OVR6_12MTHS.ALL",{"$f":"'Private Sector PDLs by Sector'!$G$42","v":0}]
[".PVT_LN_BUS.RET_TRDE.OVR12MTHS_24MTHS.ALL",{"$f":"'Private Sector PDLs by Sector'!$H$42","v":0}]
[".PVT_LN_BUS.RET_TRDE.OVR24MTHS.ALL",{"$f":"'Private Sector PDLs by Sector'!$I$42","v":0}]
[".PVT_LN_BUS.REST_BAR.CURR.ALL",{"$f":"'Private Sector PDLs by Sector'!$C$43","v":0}]
[".PVT_LN_BUS.REST_BAR.1MTH.ALL",{"$f":"'Private Sector PDLs by Sector'!$D$43","v":0}]
[".PVT_LN_BUS.REST_BAR.OVR1_3MTHS.ALL",{"$f":"'Private Sector PDLs by Sector'!$E$43","v":0}]
[".PVT_LN_BUS.REST_BAR.OVR3_6MTHS.ALL",{"$f":"'Private Sector PDLs by Sector'!$F$43","v":0}]
[".PVT_LN_BUS.REST_BAR.OVR6_12MTHS.ALL",{"$f":"'Private Sector PDLs by Sector'!$G$43","v":0}]
[".PVT_LN_BUS.REST_BAR.OVR12MTHS_24MTHS.ALL",{"$f":"'Private Sector PDLs by Sector'!$H$43","v":0}]
[".PVT_LN_BUS.REST_BAR.OVR24MTHS.ALL",{"$f":"'Private Sector PDLs by Sector'!$I$43","v":0}]
[".PVT_LN_BUS.HOTL_GUEST_HSE.CURR.ALL",{"$f":"'Private Sector PDLs by Sector'!$C$44","v":0}]
[".PVT_LN_BUS.HOTL_GUEST_HSE.1MTH.ALL",{"$f":"'Private Sector PDLs by Sector'!$D$44","v":0}]
[".PVT_LN_BUS.HOTL_GUEST_HSE.OVR1_3MTHS.ALL",{"$f":"'Private Sector PDLs by Sector'!$E$44","v":0}]
[".PVT_LN_BUS.HOTL_GUEST_HSE.OVR3_6MTHS.ALL",{"$f":"'Private Sector PDLs by Sector'!$F$44","v":0}]
[".PVT_LN_BUS.HOTL_GUEST_HSE.OVR6_12MTHS.ALL",{"$f":"'Private Sector PDLs by Sector'!$G$44","v":0}]
[".PVT_LN_BUS.HOTL_GUEST_HSE.OVR12MTHS_24MTHS.ALL",{"$f":"'Private Sector PDLs by Sector'!$H$44","v":0}]
[".PVT_LN_BUS.HOTL_GUEST_HSE.OVR24MTHS.ALL",{"$f":"'Private Sector PDLs by Sector'!$I$44","v":0}]
[".PVT_LN_BUS.TAXI_SERV.CURR.ALL",{"$f":"'Private Sector PDLs by Sector'!$C$45","v":0}]
[".PVT_LN_BUS.TAXI_SERV.1MTH.ALL",{"$f":"'Private Sector PDLs by Sector'!$D$45","v":0}]
[".PVT_LN_BUS.TAXI_SERV.OVR1_3MTHS.ALL",{"$f":"'Private Sector PDLs by Sector'!$E$45","v":0}]
[".PVT_LN_BUS.TAXI_SERV.OVR3_6MTHS.ALL",{"$f":"'Private Sector PDLs by Sector'!$F$45","v":0}]
[".PVT_LN_BUS.TAXI_SERV.OVR6_12MTHS.ALL",{"$f":"'Private Sector PDLs by Sector'!$G$45","v":0}]
[".PVT_LN_BUS.TAXI_SERV.OVR12MTHS_24MTHS.ALL",{"$f":"'Private Sector PDLs by Sector'!$H$45","v":0}]
[".PVT_LN_BUS.TAXI_SERV.OVR24MTHS.ALL",{"$f":"'Private Sector PDLs by Sector'!$I$45","v":0}]
[".PVT_LN_BUS.TRUCKING.CURR.ALL",{"$f":"'Private Sector PDLs by Sector'!$C$46","v":0}]
[".PVT_LN_BUS.TRUCKING.1MTH.ALL",{"$f":"'Private Sector PDLs by Sector'!$D$46","v":0}]
[".PVT_LN_BUS.TRUCKING.OVR1_3MTHS.ALL",{"$f":"'Private Sector PDLs by Sector'!$E$46","v":0}]
[".PVT_LN_BUS.TRUCKING.OVR3_6MTHS.ALL",{"$f":"'Private Sector PDLs by Sector'!$F$46","v":0}]
[".PVT_LN_BUS.TRUCKING.OVR6_12MTHS.ALL",{"$f":"'Private Sector PDLs by Sector'!$G$46","v":0}]
[".PVT_LN_BUS.TRUCKING.OVR12MTHS_24MTHS.ALL",{"$f":"'Private Sector PDLs by Sector'!$H$46","v":0}]
[".PVT_LN_BUS.TRUCKING.OVR24MTHS.ALL",{"$f":"'Private Sector PDLs by Sector'!$I$46","v":0}]
[".PVT_LN_BUS.STOR_COMM.CURR.ALL",{"$f":"'Private Sector PDLs by Sector'!$C$47","v":0}]
[".PVT_LN_BUS.STOR_COMM.1MTH.ALL",{"$f":"'Private Sector PDLs by Sector'!$D$47","v":0}]
[".PVT_LN_BUS.STOR_COMM.OVR1_3MTHS.ALL",{"$f":"'Private Sector PDLs by Sector'!$E$47","v":0}]
[".PVT_LN_BUS.STOR_COMM.OVR3_6MTHS.ALL",{"$f":"'Private Sector PDLs by Sector'!$F$47","v":0}]
[".PVT_LN_BUS.STOR_COMM.OVR6_12MTHS.ALL",{"$f":"'Private Sector PDLs by Sector'!$G$47","v":0}]
[".PVT_LN_BUS.STOR_COMM.OVR12MTHS_24MTHS.ALL",{"$f":"'Private Sector PDLs by Sector'!$H$47","v":0}]
[".PVT_LN_BUS.STOR_COMM.OVR24MTHS.ALL",{"$f":"'Private Sector PDLs by Sector'!$I$47","v":0}]
[".PVT_LN_BUS.OTH_TRNSPT.CURR.ALL",{"$f":"'Private Sector PDLs by Sector'!$C$48","v":0}]
[".PVT_LN_BUS.OTH_TRNSPT.1MTH.ALL",{"$f":"'Private Sector PDLs by Sector'!$D$48","v":0}]
[".PVT_LN_BUS.OTH_TRNSPT.OVR1_3MTHS.ALL",{"$f":"'Private Sector PDLs by Sector'!$E$48","v":0}]
[".PVT_LN_BUS.OTH_TRNSPT.OVR3_6MTHS.ALL",{"$f":"'Private Sector PDLs by Sector'!$F$48","v":0}]
[".PVT_LN_BUS.OTH_TRNSPT.OVR6_12MTHS.ALL",{"$f":"'Private Sector PDLs by Sector'!$G$48","v":0}]
[".PVT_LN_BUS.OTH_TRNSPT.OVR12MTHS_24MTHS.ALL",{"$f":"'Private Sector PDLs by Sector'!$H$48","v":0}]
[".PVT_LN_BUS.OTH_TRNSPT.OVR24MTHS.ALL",{"$f":"'Private Sector PDLs by Sector'!$I$48","v":0}]
[".PVT_LN_BUS.BANKS.CURR.ALL",{"$f":"'Private Sector PDLs by Sector'!$C$49","v":0}]
[".PVT_LN_BUS.BANKS.1MTH.ALL",{"$f":"'Private Sector PDLs by Sector'!$D$49","v":0}]
[".PVT_LN_BUS.BANKS.OVR1_3MTHS.ALL",{"$f":"'Private Sector PDLs by Sector'!$E$49","v":0}]
[".PVT_LN_BUS.BANKS.OVR3_6MTHS.ALL",{"$f":"'Private Sector PDLs by Sector'!$F$49","v":0}]
[".PVT_LN_BUS.BANKS.OVR6_12MTHS.ALL",{"$f":"'Private Sector PDLs by Sector'!$G$49","v":0}]
[".PVT_LN_BUS.BANKS.OVR12MTHS_24MTHS.ALL",{"$f":"'Private Sector PDLs by Sector'!$H$49","v":0}]
[".PVT_LN_BUS.BANKS.OVR24MTHS.ALL",{"$f":"'Private Sector PDLs by Sector'!$I$49","v":0}]
[".PVT_LN_BUS.LIFE_INS.CURR.ALL",{"$f":"'Private Sector PDLs by Sector'!$C$50","v":0}]
[".PVT_LN_BUS.LIFE_INS.1MTH.ALL",{"$f":"'Private Sector PDLs by Sector'!$D$50","v":0}]
[".PVT_LN_BUS.LIFE_INS.OVR1_3MTHS.ALL",{"$f":"'Private Sector PDLs by Sector'!$E$50","v":0}]
[".PVT_LN_BUS.LIFE_INS.OVR3_6MTHS.ALL",{"$f":"'Private Sector PDLs by Sector'!$F$50","v":0}]
[".PVT_LN_BUS.LIFE_INS.OVR6_12MTHS.ALL",{"$f":"'Private Sector PDLs by Sector'!$G$50","v":0}]
[".PVT_LN_BUS.LIFE_INS.OVR12MTHS_24MTHS.ALL",{"$f":"'Private Sector PDLs by Sector'!$H$50","v":0}]
[".PVT_LN_BUS.LIFE_INS.OVR24MTHS.ALL",{"$f":"'Private Sector PDLs by Sector'!$I$50","v":0}]
[".PVT_LN_BUS.NLIFE_INS.CURR.ALL",{"$f":"'Private Sector PDLs by Sector'!$C$51","v":0}]
[".PVT_LN_BUS.NLIFE_INS.1MTH.ALL",{"$f":"'Private Sector PDLs by Sector'!$D$51","v":0}]
[".PVT_LN_BUS.NLIFE_INS.OVR1_3MTHS.ALL",{"$f":"'Private Sector PDLs by Sector'!$E$51","v":0}]
[".PVT_LN_BUS.NLIFE_INS.OVR3_6MTHS.ALL",{"$f":"'Private Sector PDLs by Sector'!$F$51","v":0}]
[".PVT_LN_BUS.NLIFE_INS.OVR6_12MTHS.ALL",{"$f":"'Private Sector PDLs by Sector'!$G$51","v":0}]
[".PVT_LN_BUS.NLIFE_INS.OVR12MTHS_24MTHS.ALL",{"$f":"'Private Sector PDLs by Sector'!$H$51","v":0}]
[".PVT_LN_BUS.NLIFE_INS.OVR24MTHS.ALL",{"$f":"'Private Sector PDLs by Sector'!$I$51","v":0}]
[".PVT_LN_BUS.FIN_ACCPT.CURR.ALL",{"$f":"'Private Sector PDLs by Sector'!$C$52","v":0}]
[".PVT_LN_BUS.FIN_ACCPT.1MTH.ALL",{"$f":"'Private Sector PDLs by Sector'!$D$52","v":0}]
[".PVT_LN_BUS.FIN_ACCPT.OVR1_3MTHS.ALL",{"$f":"'Private Sector PDLs by Sector'!$E$52","v":0}]
[".PVT_LN_BUS.FIN_ACCPT.OVR3_6MTHS.ALL",{"$f":"'Private Sector PDLs by Sector'!$F$52","v":0}]
[".PVT_LN_BUS.FIN_ACCPT.OVR6_12MTHS.ALL",{"$f":"'Private Sector PDLs by Sector'!$G$52","v":0}]
[".PVT_LN_BUS.FIN_ACCPT.OVR12MTHS_24MTHS.ALL",{"$f":"'Private Sector PDLs by Sector'!$H$52","v":0}]
[".PVT_LN_BUS.FIN_ACCPT.OVR24MTHS.ALL",{"$f":"'Private Sector PDLs by Sector'!$I$52","v":0}]
[".PVT_LN_BUS.REAL_EST.CURR.ALL",{"$f":"'Private Sector PDLs by Sector'!$C$53","v":0}]
[".PVT_LN_BUS.REAL_EST.1MTH.ALL",{"$f":"'Private Sector PDLs by Sector'!$D$53","v":0}]
[".PVT_LN_BUS.REAL_EST.OVR1_3MTHS.ALL",{"$f":"'Private Sector PDLs by Sector'!$E$53","v":0}]
[".PVT_LN_BUS.REAL_EST.OVR3_6MTHS.ALL",{"$f":"'Private Sector PDLs by Sector'!$F$53","v":0}]
[".PVT_LN_BUS.REAL_EST.OVR6_12MTHS.ALL",{"$f":"'Private Sector PDLs by Sector'!$G$53","v":0}]
[".PVT_LN_BUS.REAL_EST.OVR12MTHS_24MTHS.ALL",{"$f":"'Private Sector PDLs by Sector'!$H$53","v":0}]
[".PVT_LN_BUS.REAL_EST.OVR24MTHS.ALL",{"$f":"'Private Sector PDLs by Sector'!$I$53","v":0}]
[".PVT_LN_BUS.ALL_OTH_BUS.CURR.ALL",{"$f":"'Private Sector PDLs by Sector'!$C$54","v":0}]
[".PVT_LN_BUS.ALL_OTH_BUS.1MTH.ALL",{"$f":"'Private Sector PDLs by Sector'!$D$54","v":0}]
[".PVT_LN_BUS.ALL_OTH_BUS.OVR1_3MTHS.ALL",{"$f":"'Private Sector PDLs by Sector'!$E$54","v":0}]
[".PVT_LN_BUS.ALL_OTH_BUS.OVR3_6MTHS.ALL",{"$f":"'Private Sector PDLs by Sector'!$F$54","v":0}]
[".PVT_LN_BUS.ALL_OTH_BUS.OVR6_12MTHS.ALL",{"$f":"'Private Sector PDLs by Sector'!$G$54","v":0}]
[".PVT_LN_BUS.ALL_OTH_BUS.OVR12MTHS_24MTHS.ALL",{"$f":"'Private Sector PDLs by Sector'!$H$54","v":0}]
[".PVT_LN_BUS.ALL_OTH_BUS.OVR24MTHS.ALL",{"$f":"'Private Sector PDLs by Sector'!$I$54","v":0}]
[".PVT_LN_BUS.EDUC_CULT.CURR.ALL",{"$f":"'Private Sector PDLs by Sector'!$C$55","v":0}]
[".PVT_LN_BUS.EDUC_CULT.1MTH.ALL",{"$f":"'Private Sector PDLs by Sector'!$D$55","v":0}]
[".PVT_LN_BUS.EDUC_CULT.OVR1_3MTHS.ALL",{"$f":"'Private Sector PDLs by Sector'!$E$55","v":0}]
[".PVT_LN_BUS.EDUC_CULT.OVR3_6MTHS.ALL",{"$f":"'Private Sector PDLs by Sector'!$F$55","v":0}]
[".PVT_LN_BUS.EDUC_CULT.OVR6_12MTHS.ALL",{"$f":"'Private Sector PDLs by Sector'!$G$55","v":0}]
[".PVT_LN_BUS.EDUC_CULT.OVR12MTHS_24MTHS.ALL",{"$f":"'Private Sector PDLs by Sector'!$H$55","v":0}]
[".PVT_LN_BUS.EDUC_CULT.OVR24MTHS.ALL",{"$f":"'Private Sector PDLs by Sector'!$I$55","v":0}]
[".PVT_LN_BUS.HEALTH.CURR.ALL",{"$f":"'Private Sector PDLs by Sector'!$C$56","v":0}]
[".PVT_LN_BUS.HEALTH.1MTH.ALL",{"$f":"'Private Sector PDLs by Sector'!$D$56","v":0}]
[".PVT_LN_BUS.HEALTH.OVR1_3MTHS.ALL",{"$f":"'Private Sector PDLs by Sector'!$E$56","v":0}]
[".PVT_LN_BUS.HEALTH.OVR3_6MTHS.ALL",{"$f":"'Private Sector PDLs by Sector'!$F$56","v":0}]
[".PVT_LN_BUS.HEALTH.OVR6_12MTHS.ALL",{"$f":"'Private Sector PDLs by Sector'!$G$56","v":0}]
[".PVT_LN_BUS.HEALTH.OVR12MTHS_24MTHS.ALL",{"$f":"'Private Sector PDLs by Sector'!$H$56","v":0}]
[".PVT_LN_BUS.HEALTH.OVR24MTHS.ALL",{"$f":"'Private Sector PDLs by Sector'!$I$56","v":0}]
[".PVT_LN_BUS.RECR_SERV.CURR.ALL",{"$f":"'Private Sector PDLs by Sector'!$C$57","v":0}]
[".PVT_LN_BUS.RECR_SERV.1MTH.ALL",{"$f":"'Private Sector PDLs by Sector'!$D$57","v":0}]
[".PVT_LN_BUS.RECR_SERV.OVR1_3MTHS.ALL",{"$f":"'Private Sector PDLs by Sector'!$E$57","v":0}]
[".PVT_LN_BUS.RECR_SERV.OVR3_6MTHS.ALL",{"$f":"'Private Sector PDLs by Sector'!$F$57","v":0}]
[".PVT_LN_BUS.RECR_SERV.OVR6_12MTHS.ALL",{"$f":"'Private Sector PDLs by Sector'!$G$57","v":0}]
[".PVT_LN_BUS.RECR_SERV.OVR12MTHS_24MTHS.ALL",{"$f":"'Private Sector PDLs by Sector'!$H$57","v":0}]
[".PVT_LN_BUS.RECR_SERV.OVR24MTHS.ALL",{"$f":"'Private Sector PDLs by Sector'!$I$57","v":0}]
[".PVT_LN_BUS.ALL_OTH_PERSNL.CURR.ALL",{"$f":"'Private Sector PDLs by Sector'!$C$58","v":0}]
[".PVT_LN_BUS.ALL_OTH_PERSNL.1MTH.ALL",{"$f":"'Private Sector PDLs by Sector'!$D$58","v":0}]
[".PVT_LN_BUS.ALL_OTH_PERSNL.OVR1_3MTHS.ALL",{"$f":"'Private Sector PDLs by Sector'!$E$58","v":0}]
[".PVT_LN_BUS.ALL_OTH_PERSNL.OVR3_6MTHS.ALL",{"$f":"'Private Sector PDLs by Sector'!$F$58","v":0}]
[".PVT_LN_BUS.ALL_OTH_PERSNL.OVR6_12MTHS.ALL",{"$f":"'Private Sector PDLs by Sector'!$G$58","v":0}]
[".PVT_LN_BUS.ALL_OTH_PERSNL.OVR12MTHS_24MTHS.ALL",{"$f":"'Private Sector PDLs by Sector'!$H$58","v":0}]
[".PVT_LN_BUS.ALL_OTH_PERSNL.OVR24MTHS.ALL",{"$f":"'Private Sector PDLs by Sector'!$I$58","v":0}]
[".PVT_LN_BUS.OTH_PURP.CURR.ALL",{"$f":"'Private Sector PDLs by Sector'!$C$59","v":0}]
[".PVT_LN_BUS.OTH_PURP.1MTH.ALL",{"$f":"'Private Sector PDLs by Sector'!$D$59","v":0}]
[".PVT_LN_BUS.OTH_PURP.OVR1_3MTHS.ALL",{"$f":"'Private Sector PDLs by Sector'!$E$59","v":0}]
[".PVT_LN_BUS.OTH_PURP.OVR3_6MTHS.ALL",{"$f":"'Private Sector PDLs by Sector'!$F$59","v":0}]
[".PVT_LN_BUS.OTH_PURP.OVR6_12MTHS.ALL",{"$f":"'Private Sector PDLs by Sector'!$G$59","v":0}]
[".PVT_LN_BUS.OTH_PURP.OVR12MTHS_24MTHS.ALL",{"$f":"'Private Sector PDLs by Sector'!$H$59","v":0}]
[".PVT_LN_BUS.OTH_PURP.OVR24MTHS.ALL",{"$f":"'Private Sector PDLs by Sector'!$I$59","v":0}]
[".PVT_LN_BUS.LEASING.CURR.ALL",{"$f":"'Private Sector PDLs by Sector'!$C$60","v":0}]
[".PVT_LN_BUS.LEASING.1MTH.ALL",{"$f":"'Private Sector PDLs by Sector'!$D$60","v":0}]
[".PVT_LN_BUS.LEASING.OVR1_3MTHS.ALL",{"$f":"'Private Sector PDLs by Sector'!$E$60","v":0}]
[".PVT_LN_BUS.LEASING.OVR3_6MTHS.ALL",{"$f":"'Private Sector PDLs by Sector'!$F$60","v":0}]
[".PVT_LN_BUS.LEASING.OVR6_12MTHS.ALL",{"$f":"'Private Sector PDLs by Sector'!$G$60","v":0}]
[".PVT_LN_BUS.LEASING.OVR12MTHS_24MTHS.ALL",{"$f":"'Private Sector PDLs by Sector'!$H$60","v":0}]
[".PVT_LN_BUS.LEASING.OVR24MTHS.ALL",{"$f":"'Private Sector PDLs by Sector'!$I$60","v":0}]
[".PVT_LN_BUS.REM.CURR.ALL",{"$f":"'Private Sector PDLs by Sector'!$C$61","v":0}]
[".PVT_LN_BUS.REM.1MTH.ALL",{"$f":"'Private Sector PDLs by Sector'!$D$61","v":0}]
[".PVT_LN_BUS.REM.OVR1_3MTHS.ALL",{"$f":"'Private Sector PDLs by Sector'!$E$61","v":0}]
[".PVT_LN_BUS.REM.OVR3_6MTHS.ALL",{"$f":"'Private Sector PDLs by Sector'!$F$61","v":0}]
[".PVT_LN_BUS.REM.OVR6_12MTHS.ALL",{"$f":"'Private Sector PDLs by Sector'!$G$61","v":0}]
[".PVT_LN_BUS.REM.OVR12MTHS_24MTHS.ALL",{"$f":"'Private Sector PDLs by Sector'!$H$61","v":0}]
[".PVT_LN_BUS.REM.OVR24MTHS.ALL",{"$f":"'Private Sector PDLs by Sector'!$I$61","v":0}]
[]
[".PUB_LN_BUS.COC_COF_CIT_CULT.CURR.ALL",{"$f":"'Public Sector PDLs by Sector'!$C$10","v":0}]
[".PUB_LN_BUS.COC_COF_CIT_CULT.1MTH.ALL",{"$f":"'Public Sector PDLs by Sector'!$D$10","v":0}]
[".PUB_LN_BUS.COC_COF_CIT_CULT.OVR1_3MTHS.ALL",{"$f":"'Public Sector PDLs by Sector'!$E$10","v":0}]
[".PUB_LN_BUS.COC_COF_CIT_CULT.OVR3_6MTHS.ALL",{"$f":"'Public Sector PDLs by Sector'!$F$10","v":0}]
[".PUB_LN_BUS.COC_COF_CIT_CULT.OVR6_12MTHS.ALL",{"$f":"'Public Sector PDLs by Sector'!$G$10","v":0}]
[".PUB_LN_BUS.COC_COF_CIT_CULT.OVR12MTHS_24MTHS.ALL",{"$f":"'Public Sector PDLs by Sector'!$H$10","v":0}]
[".PUB_LN_BUS.COC_COF_CIT_CULT.OVR24MTHS.ALL",{"$f":"'Public Sector PDLs by Sector'!$I$10","v":0}]
[".PUB_LN_BUS.CCNUT_GROW.CURR.ALL",{"$f":"'Public Sector PDLs by Sector'!$C$11","v":0}]
[".PUB_LN_BUS.CCNUT_GROW.1MTH.ALL",{"$f":"'Public Sector PDLs by Sector'!$D$11","v":0}]
[".PUB_LN_BUS.CCNUT_GROW.OVR1_3MTHS.ALL",{"$f":"'Public Sector PDLs by Sector'!$E$11","v":0}]
[".PUB_LN_BUS.CCNUT_GROW.OVR3_6MTHS.ALL",{"$f":"'Public Sector PDLs by Sector'!$F$11","v":0}]
[".PUB_LN_BUS.CCNUT_GROW.OVR6_12MTHS.ALL",{"$f":"'Public Sector PDLs by Sector'!$G$11","v":0}]
[".PUB_LN_BUS.CCNUT_GROW.OVR12MTHS_24MTHS.ALL",{"$f":"'Public Sector PDLs by Sector'!$H$11","v":0}]
[".PUB_LN_BUS.CCNUT_GROW.OVR24MTHS.ALL",{"$f":"'Public Sector PDLs by Sector'!$I$11","v":0}]
[".PUB_LN_BUS.RCROP_PUL_VEG.CURR.ALL",{"$f":"'Public Sector PDLs by Sector'!$C$12","v":0}]
[".PUB_LN_BUS.RCROP_PUL_VEG.1MTH.ALL",{"$f":"'Public Sector PDLs by Sector'!$D$12","v":0}]
[".PUB_LN_BUS.RCROP_PUL_VEG.OVR1_3MTHS.ALL",{"$f":"'Public Sector PDLs by Sector'!$E$12","v":0}]
[".PUB_LN_BUS.RCROP_PUL_VEG.OVR3_6MTHS.ALL",{"$f":"'Public Sector PDLs by Sector'!$F$12","v":0}]
[".PUB_LN_BUS.RCROP_PUL_VEG.OVR6_12MTHS.ALL",{"$f":"'Public Sector PDLs by Sector'!$G$12","v":0}]
[".PUB_LN_BUS.RCROP_PUL_VEG.OVR12MTHS_24MTHS.ALL",{"$f":"'Public Sector PDLs by Sector'!$H$12","v":0}]
[".PUB_LN_BUS.RCROP_PUL_VEG.OVR24MTHS.ALL",{"$f":"'Public Sector PDLs by Sector'!$I$12","v":0}]
[".PUB_LN_BUS.POL_EGGS.CURR.ALL",{"$f":"'Public Sector PDLs by Sector'!$C$13","v":0}]
[".PUB_LN_BUS.POL_EGGS.1MTH.ALL",{"$f":"'Public Sector PDLs by Sector'!$D$13","v":0}]
[".PUB_LN_BUS.POL_EGGS.OVR1_3MTHS.ALL",{"$f":"'Public Sector PDLs by Sector'!$E$13","v":0}]
[".PUB_LN_BUS.POL_EGGS.OVR3_6MTHS.ALL",{"$f":"'Public Sector PDLs by Sector'!$F$13","v":0}]
[".PUB_LN_BUS.POL_EGGS.OVR6_12MTHS.ALL",{"$f":"'Public Sector PDLs by Sector'!$G$13","v":0}]
[".PUB_LN_BUS.POL_EGGS.OVR12MTHS_24MTHS.ALL",{"$f":"'Public Sector PDLs by Sector'!$H$13","v":0}]
[".PUB_LN_BUS.POL_EGGS.OVR24MTHS.ALL",{"$f":"'Public Sector PDLs by Sector'!$I$13","v":0}]
[".PUB_LN_BUS.DAI_BEEF.CURR.ALL",{"$f":"'Public Sector PDLs by Sector'!$C$14","v":0}]
[".PUB_LN_BUS.DAI_BEEF.1MTH.ALL",{"$f":"'Public Sector PDLs by Sector'!$D$14","v":0}]
[".PUB_LN_BUS.DAI_BEEF.OVR1_3MTHS.ALL",{"$f":"'Public Sector PDLs by Sector'!$E$14","v":0}]
[".PUB_LN_BUS.DAI_BEEF.OVR3_6MTHS.ALL",{"$f":"'Public Sector PDLs by Sector'!$F$14","v":0}]
[".PUB_LN_BUS.DAI_BEEF.OVR6_12MTHS.ALL",{"$f":"'Public Sector PDLs by Sector'!$G$14","v":0}]
[".PUB_LN_BUS.DAI_BEEF.OVR12MTHS_24MTHS.ALL",{"$f":"'Public Sector PDLs by Sector'!$H$14","v":0}]
[".PUB_LN_BUS.DAI_BEEF.OVR24MTHS.ALL",{"$f":"'Public Sector PDLs by Sector'!$I$14","v":0}]
[".PUB_LN_BUS.FORES_FISH.CURR.ALL",{"$f":"'Public Sector PDLs by Sector'!$C$15","v":0}]
[".PUB_LN_BUS.FORES_FISH.1MTH.ALL",{"$f":"'Public Sector PDLs by Sector'!$D$15","v":0}]
[".PUB_LN_BUS.FORES_FISH.OVR1_3MTHS.ALL",{"$f":"'Public Sector PDLs by Sector'!$E$15","v":0}]
[".PUB_LN_BUS.FORES_FISH.OVR3_6MTHS.ALL",{"$f":"'Public Sector PDLs by Sector'!$F$15","v":0}]
[".PUB_LN_BUS.FORES_FISH.OVR6_12MTHS.ALL",{"$f":"'Public Sector PDLs by Sector'!$G$15","v":0}]
[".PUB_LN_BUS.FORES_FISH.OVR12MTHS_24MTHS.ALL",{"$f":"'Public Sector PDLs by Sector'!$H$15","v":0}]
[".PUB_LN_BUS.FORES_FISH.OVR24MTHS.ALL",{"$f":"'Public Sector PDLs by Sector'!$I$15","v":0}]
[".PUB_LN_BUS.OTH_DOM.CURR.ALL",{"$f":"'Public Sector PDLs by Sector'!$C$16","v":0}]
[".PUB_LN_BUS.OTH_DOM.1MTH.ALL",{"$f":"'Public Sector PDLs by Sector'!$D$16","v":0}]
[".PUB_LN_BUS.OTH_DOM.OVR1_3MTHS.ALL",{"$f":"'Public Sector PDLs by Sector'!$E$16","v":0}]
[".PUB_LN_BUS.OTH_DOM.OVR3_6MTHS.ALL",{"$f":"'Public Sector PDLs by Sector'!$F$16","v":0}]
[".PUB_LN_BUS.OTH_DOM.OVR6_12MTHS.ALL",{"$f":"'Public Sector PDLs by Sector'!$G$16","v":0}]
[".PUB_LN_BUS.OTH_DOM.OVR12MTHS_24MTHS.ALL",{"$f":"'Public Sector PDLs by Sector'!$H$16","v":0}]
[".PUB_LN_BUS.OTH_DOM.OVR24MTHS.ALL",{"$f":"'Public Sector PDLs by Sector'!$I$16","v":0}]
[".PUB_LN_BUS.SUG_IND.CURR.ALL",{"$f":"'Public Sector PDLs by Sector'!$C$17","v":0}]
[".PUB_LN_BUS.SUG_IND.1MTH.ALL",{"$f":"'Public Sector PDLs by Sector'!$D$17","v":0}]
[".PUB_LN_BUS.SUG_IND.OVR1_3MTHS.ALL",{"$f":"'Public Sector PDLs by Sector'!$E$17","v":0}]
[".PUB_LN_BUS.SUG_IND.OVR3_6MTHS.ALL",{"$f":"'Public Sector PDLs by Sector'!$F$17","v":0}]
[".PUB_LN_BUS.SUG_IND.OVR6_12MTHS.ALL",{"$f":"'Public Sector PDLs by Sector'!$G$17","v":0}]
[".PUB_LN_BUS.SUG_IND.OVR12MTHS_24MTHS.ALL",{"$f":"'Public Sector PDLs by Sector'!$H$17","v":0}]
[".PUB_LN_BUS.SUG_IND.OVR24MTHS.ALL",{"$f":"'Public Sector PDLs by Sector'!$I$17","v":0}]
[".PUB_LN_BUS.PETRO.CURR.ALL",{"$f":"'Public Sector PDLs by Sector'!$C$18","v":0}]
[".PUB_LN_BUS.PETRO.1MTH.ALL",{"$f":"'Public Sector PDLs by Sector'!$D$18","v":0}]
[".PUB_LN_BUS.PETRO.OVR1_3MTHS.ALL",{"$f":"'Public Sector PDLs by Sector'!$E$18","v":0}]
[".PUB_LN_BUS.PETRO.OVR3_6MTHS.ALL",{"$f":"'Public Sector PDLs by Sector'!$F$18","v":0}]
[".PUB_LN_BUS.PETRO.OVR6_12MTHS.ALL",{"$f":"'Public Sector PDLs by Sector'!$G$18","v":0}]
[".PUB_LN_BUS.PETRO.OVR12MTHS_24MTHS.ALL",{"$f":"'Public Sector PDLs by Sector'!$H$18","v":0}]
[".PUB_LN_BUS.PETRO.OVR24MTHS.ALL",{"$f":"'Public Sector PDLs by Sector'!$I$18","v":0}]
[".PUB_LN_BUS.FOOD_PROCESS.CURR.ALL",{"$f":"'Public Sector PDLs by Sector'!$C$19","v":0}]
[".PUB_LN_BUS.FOOD_PROCESS.1MTH.ALL",{"$f":"'Public Sector PDLs by Sector'!$D$19","v":0}]
[".PUB_LN_BUS.FOOD_PROCESS.OVR1_3MTHS.ALL",{"$f":"'Public Sector PDLs by Sector'!$E$19","v":0}]
[".PUB_LN_BUS.FOOD_PROCESS.OVR3_6MTHS.ALL",{"$f":"'Public Sector PDLs by Sector'!$F$19","v":0}]
[".PUB_LN_BUS.FOOD_PROCESS.OVR6_12MTHS.ALL",{"$f":"'Public Sector PDLs by Sector'!$G$19","v":0}]
[".PUB_LN_BUS.FOOD_PROCESS.OVR12MTHS_24MTHS.ALL",{"$f":"'Public Sector PDLs by Sector'!$H$19","v":0}]
[".PUB_LN_BUS.FOOD_PROCESS.OVR24MTHS.ALL",{"$f":"'Public Sector PDLs by Sector'!$I$19","v":0}]
[".PUB_LN_BUS.DRNK_TOBCCO.CURR.ALL",{"$f":"'Public Sector PDLs by Sector'!$C$20","v":0}]
[".PUB_LN_BUS.DRNK_TOBCCO.1MTH.ALL",{"$f":"'Public Sector PDLs by Sector'!$D$20","v":0}]
[".PUB_LN_BUS.DRNK_TOBCCO.OVR1_3MTHS.ALL",{"$f":"'Public Sector PDLs by Sector'!$E$20","v":0}]
[".PUB_LN_BUS.DRNK_TOBCCO.OVR3_6MTHS.ALL",{"$f":"'Public Sector PDLs by Sector'!$F$20","v":0}]
[".PUB_LN_BUS.DRNK_TOBCCO.OVR6_12MTHS.ALL",{"$f":"'Public Sector PDLs by Sector'!$G$20","v":0}]
[".PUB_LN_BUS.DRNK_TOBCCO.OVR12MTHS_24MTHS.ALL",{"$f":"'Public Sector PDLs by Sector'!$H$20","v":0}]
[".PUB_LN_BUS.DRNK_TOBCCO.OVR24MTHS.ALL",{"$f":"'Public Sector PDLs by Sector'!$I$20","v":0}]
[".PUB_LN_BUS.TEX_GARMNTS.CURR.ALL",{"$f":"'Public Sector PDLs by Sector'!$C$21","v":0}]
[".PUB_LN_BUS.TEX_GARMNTS.1MTH.ALL",{"$f":"'Public Sector PDLs by Sector'!$D$21","v":0}]
[".PUB_LN_BUS.TEX_GARMNTS.OVR1_3MTHS.ALL",{"$f":"'Public Sector PDLs by Sector'!$E$21","v":0}]
[".PUB_LN_BUS.TEX_GARMNTS.OVR3_6MTHS.ALL",{"$f":"'Public Sector PDLs by Sector'!$F$21","v":0}]
[".PUB_LN_BUS.TEX_GARMNTS.OVR6_12MTHS.ALL",{"$f":"'Public Sector PDLs by Sector'!$G$21","v":0}]
[".PUB_LN_BUS.TEX_GARMNTS.OVR12MTHS_24MTHS.ALL",{"$f":"'Public Sector PDLs by Sector'!$H$21","v":0}]
[".PUB_LN_BUS.TEX_GARMNTS.OVR24MTHS.ALL",{"$f":"'Public Sector PDLs by Sector'!$I$21","v":0}]
[".PUB_LN_BUS.FOOT_HWEAR.CURR.ALL",{"$f":"'Public Sector PDLs by Sector'!$C$22","v":0}]
[".PUB_LN_BUS.FOOT_HWEAR.1MTH.ALL",{"$f":"'Public Sector PDLs by Sector'!$D$22","v":0}]
[".PUB_LN_BUS.FOOT_HWEAR.OVR1_3MTHS.ALL",{"$f":"'Public Sector PDLs by Sector'!$E$22","v":0}]
[".PUB_LN_BUS.FOOT_HWEAR.OVR3_6MTHS.ALL",{"$f":"'Public Sector PDLs by Sector'!$F$22","v":0}]
[".PUB_LN_BUS.FOOT_HWEAR.OVR6_12MTHS.ALL",{"$f":"'Public Sector PDLs by Sector'!$G$22","v":0}]
[".PUB_LN_BUS.FOOT_HWEAR.OVR12MTHS_24MTHS.ALL",{"$f":"'Public Sector PDLs by Sector'!$H$22","v":0}]
[".PUB_LN_BUS.FOOT_HWEAR.OVR24MTHS.ALL",{"$f":"'Public Sector PDLs by Sector'!$I$22","v":0}]
[".PUB_LN_BUS.PRINT_PUBL.CURR.ALL",{"$f":"'Public Sector PDLs by Sector'!$C$23","v":0}]
[".PUB_LN_BUS.PRINT_PUBL.1MTH.ALL",{"$f":"'Public Sector PDLs by Sector'!$D$23","v":0}]
[".PUB_LN_BUS.PRINT_PUBL.OVR1_3MTHS.ALL",{"$f":"'Public Sector PDLs by Sector'!$E$23","v":0}]
[".PUB_LN_BUS.PRINT_PUBL.OVR3_6MTHS.ALL",{"$f":"'Public Sector PDLs by Sector'!$F$23","v":0}]
[".PUB_LN_BUS.PRINT_PUBL.OVR6_12MTHS.ALL",{"$f":"'Public Sector PDLs by Sector'!$G$23","v":0}]
[".PUB_LN_BUS.PRINT_PUBL.OVR12MTHS_24MTHS.ALL",{"$f":"'Public Sector PDLs by Sector'!$H$23","v":0}]
[".PUB_LN_BUS.PRINT_PUBL.OVR24MTHS.ALL",{"$f":"'Public Sector PDLs by Sector'!$I$23","v":0}]
[".PUB_LN_BUS.WOOD_OTH.CURR.ALL",{"$f":"'Public Sector PDLs by Sector'!$C$24","v":0}]
[".PUB_LN_BUS.WOOD_OTH.1MTH.ALL",{"$f":"'Public Sector PDLs by Sector'!$D$24","v":0}]
[".PUB_LN_BUS.WOOD_OTH.OVR1_3MTHS.ALL",{"$f":"'Public Sector PDLs by Sector'!$E$24","v":0}]
[".PUB_LN_BUS.WOOD_OTH.OVR3_6MTHS.ALL",{"$f":"'Public Sector PDLs by Sector'!$F$24","v":0}]
[".PUB_LN_BUS.WOOD_OTH.OVR6_12MTHS.ALL",{"$f":"'Public Sector PDLs by Sector'!$G$24","v":0}]
[".PUB_LN_BUS.WOOD_OTH.OVR12MTHS_24MTHS.ALL",{"$f":"'Public Sector PDLs by Sector'!$H$24","v":0}]
[".PUB_LN_BUS.WOOD_OTH.OVR24MTHS.ALL",{"$f":"'Public Sector PDLs by Sector'!$I$24","v":0}]
[".PUB_LN_BUS.GAS_PAINT.CURR.ALL",{"$f":"'Public Sector PDLs by Sector'!$C$25","v":0}]
[".PUB_LN_BUS.GAS_PAINT.1MTH.ALL",{"$f":"'Public Sector PDLs by Sector'!$D$25","v":0}]
[".PUB_LN_BUS.GAS_PAINT.OVR1_3MTHS.ALL",{"$f":"'Public Sector PDLs by Sector'!$E$25","v":0}]
[".PUB_LN_BUS.GAS_PAINT.OVR3_6MTHS.ALL",{"$f":"'Public Sector PDLs by Sector'!$F$25","v":0}]
[".PUB_LN_BUS.GAS_PAINT.OVR6_12MTHS.ALL",{"$f":"'Public Sector PDLs by Sector'!$G$25","v":0}]
[".PUB_LN_BUS.GAS_PAINT.OVR12MTHS_24MTHS.ALL",{"$f":"'Public Sector PDLs by Sector'!$H$25","v":0}]
[".PUB_LN_BUS.GAS_PAINT.OVR24MTHS.ALL",{"$f":"'Public Sector PDLs by Sector'!$I$25","v":0}]
[".PUB_LN_BUS.PHARM_CHEM.CURR.ALL",{"$f":"'Public Sector PDLs by Sector'!$C$26","v":0}]
[".PUB_LN_BUS.PHARM_CHEM.1MTH.ALL",{"$f":"'Public Sector PDLs by Sector'!$D$26","v":0}]
[".PUB_LN_BUS.PHARM_CHEM.OVR1_3MTHS.ALL",{"$f":"'Public Sector PDLs by Sector'!$E$26","v":0}]
[".PUB_LN_BUS.PHARM_CHEM.OVR3_6MTHS.ALL",{"$f":"'Public Sector PDLs by Sector'!$F$26","v":0}]
[".PUB_LN_BUS.PHARM_CHEM.OVR6_12MTHS.ALL",{"$f":"'Public Sector PDLs by Sector'!$G$26","v":0}]
[".PUB_LN_BUS.PHARM_CHEM.OVR12MTHS_24MTHS.ALL",{"$f":"'Public Sector PDLs by Sector'!$H$26","v":0}]
[".PUB_LN_BUS.PHARM_CHEM.OVR24MTHS.ALL",{"$f":"'Public Sector PDLs by Sector'!$I$26","v":0}]
[".PUB_LN_BUS.CLAY_BRIC.CURR.ALL",{"$f":"'Public Sector PDLs by Sector'!$C$27","v":0}]
[".PUB_LN_BUS.CLAY_BRIC.1MTH.ALL",{"$f":"'Public Sector PDLs by Sector'!$D$27","v":0}]
[".PUB_LN_BUS.CLAY_BRIC.OVR1_3MTHS.ALL",{"$f":"'Public Sector PDLs by Sector'!$E$27","v":0}]
[".PUB_LN_BUS.CLAY_BRIC.OVR3_6MTHS.ALL",{"$f":"'Public Sector PDLs by Sector'!$F$27","v":0}]
[".PUB_LN_BUS.CLAY_BRIC.OVR6_12MTHS.ALL",{"$f":"'Public Sector PDLs by Sector'!$G$27","v":0}]
[".PUB_LN_BUS.CLAY_BRIC.OVR12MTHS_24MTHS.ALL",{"$f":"'Public Sector PDLs by Sector'!$H$27","v":0}]
[".PUB_LN_BUS.CLAY_BRIC.OVR24MTHS.ALL",{"$f":"'Public Sector PDLs by Sector'!$I$27","v":0}]
[".PUB_LN_BUS.CEMNT_CONC.CURR.ALL",{"$f":"'Public Sector PDLs by Sector'!$C$28","v":0}]
[".PUB_LN_BUS.CEMNT_CONC.1MTH.ALL",{"$f":"'Public Sector PDLs by Sector'!$D$28","v":0}]
[".PUB_LN_BUS.CEMNT_CONC.OVR1_3MTHS.ALL",{"$f":"'Public Sector PDLs by Sector'!$E$28","v":0}]
[".PUB_LN_BUS.CEMNT_CONC.OVR3_6MTHS.ALL",{"$f":"'Public Sector PDLs by Sector'!$F$28","v":0}]
[".PUB_LN_BUS.CEMNT_CONC.OVR6_12MTHS.ALL",{"$f":"'Public Sector PDLs by Sector'!$G$28","v":0}]
[".PUB_LN_BUS.CEMNT_CONC.OVR12MTHS_24MTHS.ALL",{"$f":"'Public Sector PDLs by Sector'!$H$28","v":0}]
[".PUB_LN_BUS.CEMNT_CONC.OVR24MTHS.ALL",{"$f":"'Public Sector PDLs by Sector'!$I$28","v":0}]
[".PUB_LN_BUS.OTH_CHEM.CURR.ALL",{"$f":"'Public Sector PDLs by Sector'!$C$29","v":0}]
[".PUB_LN_BUS.OTH_CHEM.1MTH.ALL",{"$f":"'Public Sector PDLs by Sector'!$D$29","v":0}]
[".PUB_LN_BUS.OTH_CHEM.OVR1_3MTHS.ALL",{"$f":"'Public Sector PDLs by Sector'!$E$29","v":0}]
[".PUB_LN_BUS.OTH_CHEM.OVR3_6MTHS.ALL",{"$f":"'Public Sector PDLs by Sector'!$F$29","v":0}]
[".PUB_LN_BUS.OTH_CHEM.OVR6_12MTHS.ALL",{"$f":"'Public Sector PDLs by Sector'!$G$29","v":0}]
[".PUB_LN_BUS.OTH_CHEM.OVR12MTHS_24MTHS.ALL",{"$f":"'Public Sector PDLs by Sector'!$H$29","v":0}]
[".PUB_LN_BUS.OTH_CHEM.OVR24MTHS.ALL",{"$f":"'Public Sector PDLs by Sector'!$I$29","v":0}]
[".PUB_LN_BUS.MOTOR_ASSBLY.CURR.ALL",{"$f":"'Public Sector PDLs by Sector'!$C$30","v":0}]
[".PUB_LN_BUS.MOTOR_ASSBLY.1MTH.ALL",{"$f":"'Public Sector PDLs by Sector'!$D$30","v":0}]
[".PUB_LN_BUS.MOTOR_ASSBLY.OVR1_3MTHS.ALL",{"$f":"'Public Sector PDLs by Sector'!$E$30","v":0}]
[".PUB_LN_BUS.MOTOR_ASSBLY.OVR3_6MTHS.ALL",{"$f":"'Public Sector PDLs by Sector'!$F$30","v":0}]
[".PUB_LN_BUS.MOTOR_ASSBLY.OVR6_12MTHS.ALL",{"$f":"'Public Sector PDLs by Sector'!$G$30","v":0}]
[".PUB_LN_BUS.MOTOR_ASSBLY.OVR12MTHS_24MTHS.ALL",{"$f":"'Public Sector PDLs by Sector'!$H$30","v":0}]
[".PUB_LN_BUS.MOTOR_ASSBLY.OVR24MTHS.ALL",{"$f":"'Public Sector PDLs by Sector'!$I$30","v":0}]
[".PUB_LN_BUS.ASSBLY_APPL.CURR.ALL",{"$f":"'Public Sector PDLs by Sector'!$C$31","v":0}]
[".PUB_LN_BUS.ASSBLY_APPL.1MTH.ALL",{"$f":"'Public Sector PDLs by Sector'!$D$31","v":0}]
[".PUB_LN_BUS.ASSBLY_APPL.OVR1_3MTHS.ALL",{"$f":"'Public Sector PDLs by Sector'!$E$31","v":0}]
[".PUB_LN_BUS.ASSBLY_APPL.OVR3_6MTHS.ALL",{"$f":"'Public Sector PDLs by Sector'!$F$31","v":0}]
[".PUB_LN_BUS.ASSBLY_APPL.OVR6_12MTHS.ALL",{"$f":"'Public Sector PDLs by Sector'!$G$31","v":0}]
[".PUB_LN_BUS.ASSBLY_APPL.OVR12MTHS_24MTHS.ALL",{"$f":"'Public Sector PDLs by Sector'!$H$31","v":0}]
[".PUB_LN_BUS.ASSBLY_APPL.OVR24MTHS.ALL",{"$f":"'Public Sector PDLs by Sector'!$I$31","v":0}]
[".PUB_LN_BUS.METAL_BUILD.CURR.ALL",{"$f":"'Public Sector PDLs by Sector'!$C$32","v":0}]
[".PUB_LN_BUS.METAL_BUILD.1MTH.ALL",{"$f":"'Public Sector PDLs by Sector'!$D$32","v":0}]
[".PUB_LN_BUS.METAL_BUILD.OVR1_3MTHS.ALL",{"$f":"'Public Sector PDLs by Sector'!$E$32","v":0}]
[".PUB_LN_BUS.METAL_BUILD.OVR3_6MTHS.ALL",{"$f":"'Public Sector PDLs by Sector'!$F$32","v":0}]
[".PUB_LN_BUS.METAL_BUILD.OVR6_12MTHS.ALL",{"$f":"'Public Sector PDLs by Sector'!$G$32","v":0}]
[".PUB_LN_BUS.METAL_BUILD.OVR12MTHS_24MTHS.ALL",{"$f":"'Public Sector PDLs by Sector'!$H$32","v":0}]
[".PUB_LN_BUS.METAL_BUILD.OVR24MTHS.ALL",{"$f":"'Public Sector PDLs by Sector'!$I$32","v":0}]
[".PUB_LN_BUS.MANF_IRON_STL.CURR.ALL",{"$f":"'Public Sector PDLs by Sector'!$C$33","v":0}]
[".PUB_LN_BUS.MANF_IRON_STL.1MTH.ALL",{"$f":"'Public Sector PDLs by Sector'!$D$33","v":0}]
[".PUB_LN_BUS.MANF_IRON_STL.OVR1_3MTHS.ALL",{"$f":"'Public Sector PDLs by Sector'!$E$33","v":0}]
[".PUB_LN_BUS.MANF_IRON_STL.OVR3_6MTHS.ALL",{"$f":"'Public Sector PDLs by Sector'!$F$33","v":0}]
[".PUB_LN_BUS.MANF_IRON_STL.OVR6_12MTHS.ALL",{"$f":"'Public Sector PDLs by Sector'!$G$33","v":0}]
[".PUB_LN_BUS.MANF_IRON_STL.OVR12MTHS_24MTHS.ALL",{"$f":"'Public Sector PDLs by Sector'!$H$33","v":0}]
[".PUB_LN_BUS.MANF_IRON_STL.OVR24MTHS.ALL",{"$f":"'Public Sector PDLs by Sector'!$I$33","v":0}]
[".PUB_LN_BUS.OTH_ASSMBL_TYP.CURR.ALL",{"$f":"'Public Sector PDLs by Sector'!$C$34","v":0}]
[".PUB_LN_BUS.OTH_ASSMBL_TYP.1MTH.ALL",{"$f":"'Public Sector PDLs by Sector'!$D$34","v":0}]
[".PUB_LN_BUS.OTH_ASSMBL_TYP.OVR1_3MTHS.ALL",{"$f":"'Public Sector PDLs by Sector'!$E$34","v":0}]
[".PUB_LN_BUS.OTH_ASSMBL_TYP.OVR3_6MTHS.ALL",{"$f":"'Public Sector PDLs by Sector'!$F$34","v":0}]
[".PUB_LN_BUS.OTH_ASSMBL_TYP.OVR6_12MTHS.ALL",{"$f":"'Public Sector PDLs by Sector'!$G$34","v":0}]
[".PUB_LN_BUS.OTH_ASSMBL_TYP.OVR12MTHS_24MTHS.ALL",{"$f":"'Public Sector PDLs by Sector'!$H$34","v":0}]
[".PUB_LN_BUS.OTH_ASSMBL_TYP.OVR24MTHS.ALL",{"$f":"'Public Sector PDLs by Sector'!$I$34","v":0}]
[".PUB_LN_BUS.MISC_MANF.CURR.ALL",{"$f":"'Public Sector PDLs by Sector'!$C$35","v":0}]
[".PUB_LN_BUS.MISC_MANF.1MTH.ALL",{"$f":"'Public Sector PDLs by Sector'!$D$35","v":0}]
[".PUB_LN_BUS.MISC_MANF.OVR1_3MTHS.ALL",{"$f":"'Public Sector PDLs by Sector'!$E$35","v":0}]
[".PUB_LN_BUS.MISC_MANF.OVR3_6MTHS.ALL",{"$f":"'Public Sector PDLs by Sector'!$F$35","v":0}]
[".PUB_LN_BUS.MISC_MANF.OVR6_12MTHS.ALL",{"$f":"'Public Sector PDLs by Sector'!$G$35","v":0}]
[".PUB_LN_BUS.MISC_MANF.OVR12MTHS_24MTHS.ALL",{"$f":"'Public Sector PDLs by Sector'!$H$35","v":0}]
[".PUB_LN_BUS.MISC_MANF.OVR24MTHS.ALL",{"$f":"'Public Sector PDLs by Sector'!$I$35","v":0}]
[".PUB_LN_BUS.ELEC_WATER.CURR.ALL",{"$f":"'Public Sector PDLs by Sector'!$C$36","v":0}]
[".PUB_LN_BUS.ELEC_WATER.1MTH.ALL",{"$f":"'Public Sector PDLs by Sector'!$D$36","v":0}]
[".PUB_LN_BUS.ELEC_WATER.OVR1_3MTHS.ALL",{"$f":"'Public Sector PDLs by Sector'!$E$36","v":0}]
[".PUB_LN_BUS.ELEC_WATER.OVR3_6MTHS.ALL",{"$f":"'Public Sector PDLs by Sector'!$F$36","v":0}]
[".PUB_LN_BUS.ELEC_WATER.OVR6_12MTHS.ALL",{"$f":"'Public Sector PDLs by Sector'!$G$36","v":0}]
[".PUB_LN_BUS.ELEC_WATER.OVR12MTHS_24MTHS.ALL",{"$f":"'Public Sector PDLs by Sector'!$H$36","v":0}]
[".PUB_LN_BUS.ELEC_WATER.OVR24MTHS.ALL",{"$f":"'Public Sector PDLs by Sector'!$I$36","v":0}]
[".PUB_LN_BUS.BLD_CONSTR.CURR.ALL",{"$f":"'Public Sector PDLs by Sector'!$C$37","v":0}]
[".PUB_LN_BUS.BLD_CONSTR.1MTH.ALL",{"$f":"'Public Sector PDLs by Sector'!$D$37","v":0}]
[".PUB_LN_BUS.BLD_CONSTR.OVR1_3MTHS.ALL",{"$f":"'Public Sector PDLs by Sector'!$E$37","v":0}]
[".PUB_LN_BUS.BLD_CONSTR.OVR3_6MTHS.ALL",{"$f":"'Public Sector PDLs by Sector'!$F$37","v":0}]
[".PUB_LN_BUS.BLD_CONSTR.OVR6_12MTHS.ALL",{"$f":"'Public Sector PDLs by Sector'!$G$37","v":0}]
[".PUB_LN_BUS.BLD_CONSTR.OVR12MTHS_24MTHS.ALL",{"$f":"'Public Sector PDLs by Sector'!$H$37","v":0}]
[".PUB_LN_BUS.BLD_CONSTR.OVR24MTHS.ALL",{"$f":"'Public Sector PDLs by Sector'!$I$37","v":0}]
[".PUB_LN_BUS.CIVIL_ENG.CURR.ALL",{"$f":"'Public Sector PDLs by Sector'!$C$38","v":0}]
[".PUB_LN_BUS.CIVIL_ENG.1MTH.ALL",{"$f":"'Public Sector PDLs by Sector'!$D$38","v":0}]
[".PUB_LN_BUS.CIVIL_ENG.OVR1_3MTHS.ALL",{"$f":"'Public Sector PDLs by Sector'!$E$38","v":0}]
[".PUB_LN_BUS.CIVIL_ENG.OVR3_6MTHS.ALL",{"$f":"'Public Sector PDLs by Sector'!$F$38","v":0}]
[".PUB_LN_BUS.CIVIL_ENG.OVR6_12MTHS.ALL",{"$f":"'Public Sector PDLs by Sector'!$G$38","v":0}]
[".PUB_LN_BUS.CIVIL_ENG.OVR12MTHS_24MTHS.ALL",{"$f":"'Public Sector PDLs by Sector'!$H$38","v":0}]
[".PUB_LN_BUS.CIVIL_ENG.OVR24MTHS.ALL",{"$f":"'Public Sector PDLs by Sector'!$I$38","v":0}]
[".PUB_LN_BUS.ELEC_INST.CURR.ALL",{"$f":"'Public Sector PDLs by Sector'!$C$39","v":0}]
[".PUB_LN_BUS.ELEC_INST.1MTH.ALL",{"$f":"'Public Sector PDLs by Sector'!$D$39","v":0}]
[".PUB_LN_BUS.ELEC_INST.OVR1_3MTHS.ALL",{"$f":"'Public Sector PDLs by Sector'!$E$39","v":0}]
[".PUB_LN_BUS.ELEC_INST.OVR3_6MTHS.ALL",{"$f":"'Public Sector PDLs by Sector'!$F$39","v":0}]
[".PUB_LN_BUS.ELEC_INST.OVR6_12MTHS.ALL",{"$f":"'Public Sector PDLs by Sector'!$G$39","v":0}]
[".PUB_LN_BUS.ELEC_INST.OVR12MTHS_24MTHS.ALL",{"$f":"'Public Sector PDLs by Sector'!$H$39","v":0}]
[".PUB_LN_BUS.ELEC_INST.OVR24MTHS.ALL",{"$f":"'Public Sector PDLs by Sector'!$I$39","v":0}]
[".PUB_LN_BUS.OTH_CONSTR.CURR.ALL",{"$f":"'Public Sector PDLs by Sector'!$C$40","v":0}]
[".PUB_LN_BUS.OTH_CONSTR.1MTH.ALL",{"$f":"'Public Sector PDLs by Sector'!$D$40","v":0}]
[".PUB_LN_BUS.OTH_CONSTR.OVR1_3MTHS.ALL",{"$f":"'Public Sector PDLs by Sector'!$E$40","v":0}]
[".PUB_LN_BUS.OTH_CONSTR.OVR3_6MTHS.ALL",{"$f":"'Public Sector PDLs by Sector'!$F$40","v":0}]
[".PUB_LN_BUS.OTH_CONSTR.OVR6_12MTHS.ALL",{"$f":"'Public Sector PDLs by Sector'!$G$40","v":0}]
[".PUB_LN_BUS.OTH_CONSTR.OVR12MTHS_24MTHS.ALL",{"$f":"'Public Sector PDLs by Sector'!$H$40","v":0}]
[".PUB_LN_BUS.OTH_CONSTR.OVR24MTHS.ALL",{"$f":"'Public Sector PDLs by Sector'!$I$40","v":0}]
[".PUB_LN_BUS.WSALE_TRDE.CURR.ALL",{"$f":"'Public Sector PDLs by Sector'!$C$41","v":0}]
[".PUB_LN_BUS.WSALE_TRDE.1MTH.ALL",{"$f":"'Public Sector PDLs by Sector'!$D$41","v":0}]
[".PUB_LN_BUS.WSALE_TRDE.OVR1_3MTHS.ALL",{"$f":"'Public Sector PDLs by Sector'!$E$41","v":0}]
[".PUB_LN_BUS.WSALE_TRDE.OVR3_6MTHS.ALL",{"$f":"'Public Sector PDLs by Sector'!$F$41","v":0}]
[".PUB_LN_BUS.WSALE_TRDE.OVR6_12MTHS.ALL",{"$f":"'Public Sector PDLs by Sector'!$G$41","v":0}]
[".PUB_LN_BUS.WSALE_TRDE.OVR12MTHS_24MTHS.ALL",{"$f":"'Public Sector PDLs by Sector'!$H$41","v":0}]
[".PUB_LN_BUS.WSALE_TRDE.OVR24MTHS.ALL",{"$f":"'Public Sector PDLs by Sector'!$I$41","v":0}]
[".PUB_LN_BUS.RET_TRDE.CURR.ALL",{"$f":"'Public Sector PDLs by Sector'!$C$42","v":0}]
[".PUB_LN_BUS.RET_TRDE.1MTH.ALL",{"$f":"'Public Sector PDLs by Sector'!$D$42","v":0}]
[".PUB_LN_BUS.RET_TRDE.OVR1_3MTHS.ALL",{"$f":"'Public Sector PDLs by Sector'!$E$42","v":0}]
[".PUB_LN_BUS.RET_TRDE.OVR3_6MTHS.ALL",{"$f":"'Public Sector PDLs by Sector'!$F$42","v":0}]
[".PUB_LN_BUS.RET_TRDE.OVR6_12MTHS.ALL",{"$f":"'Public Sector PDLs by Sector'!$G$42","v":0}]
[".PUB_LN_BUS.RET_TRDE.OVR12MTHS_24MTHS.ALL",{"$f":"'Public Sector PDLs by Sector'!$H$42","v":0}]
[".PUB_LN_BUS.RET_TRDE.OVR24MTHS.ALL",{"$f":"'Public Sector PDLs by Sector'!$I$42","v":0}]
[".PUB_LN_BUS.REST_BAR.CURR.ALL",{"$f":"'Public Sector PDLs by Sector'!$C$43","v":0}]
[".PUB_LN_BUS.REST_BAR.1MTH.ALL",{"$f":"'Public Sector PDLs by Sector'!$D$43","v":0}]
[".PUB_LN_BUS.REST_BAR.OVR1_3MTHS.ALL",{"$f":"'Public Sector PDLs by Sector'!$E$43","v":0}]
[".PUB_LN_BUS.REST_BAR.OVR3_6MTHS.ALL",{"$f":"'Public Sector PDLs by Sector'!$F$43","v":0}]
[".PUB_LN_BUS.REST_BAR.OVR6_12MTHS.ALL",{"$f":"'Public Sector PDLs by Sector'!$G$43","v":0}]
[".PUB_LN_BUS.REST_BAR.OVR12MTHS_24MTHS.ALL",{"$f":"'Public Sector PDLs by Sector'!$H$43","v":0}]
[".PUB_LN_BUS.REST_BAR.OVR24MTHS.ALL",{"$f":"'Public Sector PDLs by Sector'!$I$43","v":0}]
[".PUB_LN_BUS.HOTL_GUEST_HSE.CURR.ALL",{"$f":"'Public Sector PDLs by Sector'!$C$44","v":0}]
[".PUB_LN_BUS.HOTL_GUEST_HSE.1MTH.ALL",{"$f":"'Public Sector PDLs by Sector'!$D$44","v":0}]
[".PUB_LN_BUS.HOTL_GUEST_HSE.OVR1_3MTHS.ALL",{"$f":"'Public Sector PDLs by Sector'!$E$44","v":0}]
[".PUB_LN_BUS.HOTL_GUEST_HSE.OVR3_6MTHS.ALL",{"$f":"'Public Sector PDLs by Sector'!$F$44","v":0}]
[".PUB_LN_BUS.HOTL_GUEST_HSE.OVR6_12MTHS.ALL",{"$f":"'Public Sector PDLs by Sector'!$G$44","v":0}]
[".PUB_LN_BUS.HOTL_GUEST_HSE.OVR12MTHS_24MTHS.ALL",{"$f":"'Public Sector PDLs by Sector'!$H$44","v":0}]
[".PUB_LN_BUS.HOTL_GUEST_HSE.OVR24MTHS.ALL",{"$f":"'Public Sector PDLs by Sector'!$I$44","v":0}]
[".PUB_LN_BUS.TAXI_SERV.CURR.ALL",{"$f":"'Public Sector PDLs by Sector'!$C$45","v":0}]
[".PUB_LN_BUS.TAXI_SERV.1MTH.ALL",{"$f":"'Public Sector PDLs by Sector'!$D$45","v":0}]
[".PUB_LN_BUS.TAXI_SERV.OVR1_3MTHS.ALL",{"$f":"'Public Sector PDLs by Sector'!$E$45","v":0}]
[".PUB_LN_BUS.TAXI_SERV.OVR3_6MTHS.ALL",{"$f":"'Public Sector PDLs by Sector'!$F$45","v":0}]
[".PUB_LN_BUS.TAXI_SERV.OVR6_12MTHS.ALL",{"$f":"'Public Sector PDLs by Sector'!$G$45","v":0}]
[".PUB_LN_BUS.TAXI_SERV.OVR12MTHS_24MTHS.ALL",{"$f":"'Public Sector PDLs by Sector'!$H$45","v":0}]
[".PUB_LN_BUS.TAXI_SERV.OVR24MTHS.ALL",{"$f":"'Public Sector PDLs by Sector'!$I$45","v":0}]
[".PUB_LN_BUS.TRUCKING.CURR.ALL",{"$f":"'Public Sector PDLs by Sector'!$C$46","v":0}]
[".PUB_LN_BUS.TRUCKING.1MTH.ALL",{"$f":"'Public Sector PDLs by Sector'!$D$46","v":0}]
[".PUB_LN_BUS.TRUCKING.OVR1_3MTHS.ALL",{"$f":"'Public Sector PDLs by Sector'!$E$46","v":0}]
[".PUB_LN_BUS.TRUCKING.OVR3_6MTHS.ALL",{"$f":"'Public Sector PDLs by Sector'!$F$46","v":0}]
[".PUB_LN_BUS.TRUCKING.OVR6_12MTHS.ALL",{"$f":"'Public Sector PDLs by Sector'!$G$46","v":0}]
[".PUB_LN_BUS.TRUCKING.OVR12MTHS_24MTHS.ALL",{"$f":"'Public Sector PDLs by Sector'!$H$46","v":0}]
[".PUB_LN_BUS.TRUCKING.OVR24MTHS.ALL",{"$f":"'Public Sector PDLs by Sector'!$I$46","v":0}]
[".PUB_LN_BUS.STOR_COMM.CURR.ALL",{"$f":"'Public Sector PDLs by Sector'!$C$47","v":0}]
[".PUB_LN_BUS.STOR_COMM.1MTH.ALL",{"$f":"'Public Sector PDLs by Sector'!$D$47","v":0}]
[".PUB_LN_BUS.STOR_COMM.OVR1_3MTHS.ALL",{"$f":"'Public Sector PDLs by Sector'!$E$47","v":0}]
[".PUB_LN_BUS.STOR_COMM.OVR3_6MTHS.ALL",{"$f":"'Public Sector PDLs by Sector'!$F$47","v":0}]
[".PUB_LN_BUS.STOR_COMM.OVR6_12MTHS.ALL",{"$f":"'Public Sector PDLs by Sector'!$G$47","v":0}]
[".PUB_LN_BUS.STOR_COMM.OVR12MTHS_24MTHS.ALL",{"$f":"'Public Sector PDLs by Sector'!$H$47","v":0}]
[".PUB_LN_BUS.STOR_COMM.OVR24MTHS.ALL",{"$f":"'Public Sector PDLs by Sector'!$I$47","v":0}]
[".PUB_LN_BUS.OTH_TRNSPT.CURR.ALL",{"$f":"'Public Sector PDLs by Sector'!$C$48","v":0}]
[".PUB_LN_BUS.OTH_TRNSPT.1MTH.ALL",{"$f":"'Public Sector PDLs by Sector'!$D$48","v":0}]
[".PUB_LN_BUS.OTH_TRNSPT.OVR1_3MTHS.ALL",{"$f":"'Public Sector PDLs by Sector'!$E$48","v":0}]
[".PUB_LN_BUS.OTH_TRNSPT.OVR3_6MTHS.ALL",{"$f":"'Public Sector PDLs by Sector'!$F$48","v":0}]
[".PUB_LN_BUS.OTH_TRNSPT.OVR6_12MTHS.ALL",{"$f":"'Public Sector PDLs by Sector'!$G$48","v":0}]
[".PUB_LN_BUS.OTH_TRNSPT.OVR12MTHS_24MTHS.ALL",{"$f":"'Public Sector PDLs by Sector'!$H$48","v":0}]
[".PUB_LN_BUS.OTH_TRNSPT.OVR24MTHS.ALL",{"$f":"'Public Sector PDLs by Sector'!$I$48","v":0}]
[".PUB_LN_BUS.BANKS.CURR.ALL",{"$f":"'Public Sector PDLs by Sector'!$C$49","v":0}]
[".PUB_LN_BUS.BANKS.1MTH.ALL",{"$f":"'Public Sector PDLs by Sector'!$D$49","v":0}]
[".PUB_LN_BUS.BANKS.OVR1_3MTHS.ALL",{"$f":"'Public Sector PDLs by Sector'!$E$49","v":0}]
[".PUB_LN_BUS.BANKS.OVR3_6MTHS.ALL",{"$f":"'Public Sector PDLs by Sector'!$F$49","v":0}]
[".PUB_LN_BUS.BANKS.OVR6_12MTHS.ALL",{"$f":"'Public Sector PDLs by Sector'!$G$49","v":0}]
[".PUB_LN_BUS.BANKS.OVR12MTHS_24MTHS.ALL",{"$f":"'Public Sector PDLs by Sector'!$H$49","v":0}]
[".PUB_LN_BUS.BANKS.OVR24MTHS.ALL",{"$f":"'Public Sector PDLs by Sector'!$I$49","v":0}]
[".PUB_LN_BUS.LIFE_INS.CURR.ALL",{"$f":"'Public Sector PDLs by Sector'!$C$50","v":0}]
[".PUB_LN_BUS.LIFE_INS.1MTH.ALL",{"$f":"'Public Sector PDLs by Sector'!$D$50","v":0}]
[".PUB_LN_BUS.LIFE_INS.OVR1_3MTHS.ALL",{"$f":"'Public Sector PDLs by Sector'!$E$50","v":0}]
[".PUB_LN_BUS.LIFE_INS.OVR3_6MTHS.ALL",{"$f":"'Public Sector PDLs by Sector'!$F$50","v":0}]
[".PUB_LN_BUS.LIFE_INS.OVR6_12MTHS.ALL",{"$f":"'Public Sector PDLs by Sector'!$G$50","v":0}]
[".PUB_LN_BUS.LIFE_INS.OVR12MTHS_24MTHS.ALL",{"$f":"'Public Sector PDLs by Sector'!$H$50","v":0}]
[".PUB_LN_BUS.LIFE_INS.OVR24MTHS.ALL",{"$f":"'Public Sector PDLs by Sector'!$I$50","v":0}]
[".PUB_LN_BUS.NLIFE_INS.CURR.ALL",{"$f":"'Public Sector PDLs by Sector'!$C$51","v":0}]
[".PUB_LN_BUS.NLIFE_INS.1MTH.ALL",{"$f":"'Public Sector PDLs by Sector'!$D$51","v":0}]
[".PUB_LN_BUS.NLIFE_INS.OVR1_3MTHS.ALL",{"$f":"'Public Sector PDLs by Sector'!$E$51","v":0}]
[".PUB_LN_BUS.NLIFE_INS.OVR3_6MTHS.ALL",{"$f":"'Public Sector PDLs by Sector'!$F$51","v":0}]
[".PUB_LN_BUS.NLIFE_INS.OVR6_12MTHS.ALL",{"$f":"'Public Sector PDLs by Sector'!$G$51","v":0}]
[".PUB_LN_BUS.NLIFE_INS.OVR12MTHS_24MTHS.ALL",{"$f":"'Public Sector PDLs by Sector'!$H$51","v":0}]
[".PUB_LN_BUS.NLIFE_INS.OVR24MTHS.ALL",{"$f":"'Public Sector PDLs by Sector'!$I$51","v":0}]
[".PUB_LN_BUS.FIN_ACCPT.CURR.ALL",{"$f":"'Public Sector PDLs by Sector'!$C$52","v":0}]
[".PUB_LN_BUS.FIN_ACCPT.1MTH.ALL",{"$f":"'Public Sector PDLs by Sector'!$D$52","v":0}]
[".PUB_LN_BUS.FIN_ACCPT.OVR1_3MTHS.ALL",{"$f":"'Public Sector PDLs by Sector'!$E$52","v":0}]
[".PUB_LN_BUS.FIN_ACCPT.OVR3_6MTHS.ALL",{"$f":"'Public Sector PDLs by Sector'!$F$52","v":0}]
[".PUB_LN_BUS.FIN_ACCPT.OVR6_12MTHS.ALL",{"$f":"'Public Sector PDLs by Sector'!$G$52","v":0}]
[".PUB_LN_BUS.FIN_ACCPT.OVR12MTHS_24MTHS.ALL",{"$f":"'Public Sector PDLs by Sector'!$H$52","v":0}]
[".PUB_LN_BUS.FIN_ACCPT.OVR24MTHS.ALL",{"$f":"'Public Sector PDLs by Sector'!$I$52","v":0}]
[".PUB_LN_BUS.REAL_EST.CURR.ALL",{"$f":"'Public Sector PDLs by Sector'!$C$53","v":0}]
[".PUB_LN_BUS.REAL_EST.1MTH.ALL",{"$f":"'Public Sector PDLs by Sector'!$D$53","v":0}]
[".PUB_LN_BUS.REAL_EST.OVR1_3MTHS.ALL",{"$f":"'Public Sector PDLs by Sector'!$E$53","v":0}]
[".PUB_LN_BUS.REAL_EST.OVR3_6MTHS.ALL",{"$f":"'Public Sector PDLs by Sector'!$F$53","v":0}]
[".PUB_LN_BUS.REAL_EST.OVR6_12MTHS.ALL",{"$f":"'Public Sector PDLs by Sector'!$G$53","v":0}]
[".PUB_LN_BUS.REAL_EST.OVR12MTHS_24MTHS.ALL",{"$f":"'Public Sector PDLs by Sector'!$H$53","v":0}]
[".PUB_LN_BUS.REAL_EST.OVR24MTHS.ALL",{"$f":"'Public Sector PDLs by Sector'!$I$53","v":0}]
[".PUB_LN_BUS.ALL_OTH_BUS.CURR.ALL",{"$f":"'Public Sector PDLs by Sector'!$C$54","v":0}]
[".PUB_LN_BUS.ALL_OTH_BUS.1MTH.ALL",{"$f":"'Public Sector PDLs by Sector'!$D$54","v":0}]
[".PUB_LN_BUS.ALL_OTH_BUS.OVR1_3MTHS.ALL",{"$f":"'Public Sector PDLs by Sector'!$E$54","v":0}]
[".PUB_LN_BUS.ALL_OTH_BUS.OVR3_6MTHS.ALL",{"$f":"'Public Sector PDLs by Sector'!$F$54","v":0}]
[".PUB_LN_BUS.ALL_OTH_BUS.OVR6_12MTHS.ALL",{"$f":"'Public Sector PDLs by Sector'!$G$54","v":0}]
[".PUB_LN_BUS.ALL_OTH_BUS.OVR12MTHS_24MTHS.ALL",{"$f":"'Public Sector PDLs by Sector'!$H$54","v":0}]
[".PUB_LN_BUS.ALL_OTH_BUS.OVR24MTHS.ALL",{"$f":"'Public Sector PDLs by Sector'!$I$54","v":0}]
[".PUB_LN_BUS.EDUC_CULT.CURR.ALL",{"$f":"'Public Sector PDLs by Sector'!$C$55","v":0}]
[".PUB_LN_BUS.EDUC_CULT.1MTH.ALL",{"$f":"'Public Sector PDLs by Sector'!$D$55","v":0}]
[".PUB_LN_BUS.EDUC_CULT.OVR1_3MTHS.ALL",{"$f":"'Public Sector PDLs by Sector'!$E$55","v":0}]
[".PUB_LN_BUS.EDUC_CULT.OVR3_6MTHS.ALL",{"$f":"'Public Sector PDLs by Sector'!$F$55","v":0}]
[".PUB_LN_BUS.EDUC_CULT.OVR6_12MTHS.ALL",{"$f":"'Public Sector PDLs by Sector'!$G$55","v":0}]
[".PUB_LN_BUS.EDUC_CULT.OVR12MTHS_24MTHS.ALL",{"$f":"'Public Sector PDLs by Sector'!$H$55","v":0}]
[".PUB_LN_BUS.EDUC_CULT.OVR24MTHS.ALL",{"$f":"'Public Sector PDLs by Sector'!$I$55","v":0}]
[".PUB_LN_BUS.HEALTH.CURR.ALL",{"$f":"'Public Sector PDLs by Sector'!$C$56","v":0}]
[".PUB_LN_BUS.HEALTH.1MTH.ALL",{"$f":"'Public Sector PDLs by Sector'!$D$56","v":0}]
[".PUB_LN_BUS.HEALTH.OVR1_3MTHS.ALL",{"$f":"'Public Sector PDLs by Sector'!$E$56","v":0}]
[".PUB_LN_BUS.HEALTH.OVR3_6MTHS.ALL",{"$f":"'Public Sector PDLs by Sector'!$F$56","v":0}]
[".PUB_LN_BUS.HEALTH.OVR6_12MTHS.ALL",{"$f":"'Public Sector PDLs by Sector'!$G$56","v":0}]
[".PUB_LN_BUS.HEALTH.OVR12MTHS_24MTHS.ALL",{"$f":"'Public Sector PDLs by Sector'!$H$56","v":0}]
[".PUB_LN_BUS.HEALTH.OVR24MTHS.ALL",{"$f":"'Public Sector PDLs by Sector'!$I$56","v":0}]
[".PUB_LN_BUS.RECR_SERV.CURR.ALL",{"$f":"'Public Sector PDLs by Sector'!$C$57","v":0}]
[".PUB_LN_BUS.RECR_SERV.1MTH.ALL",{"$f":"'Public Sector PDLs by Sector'!$D$57","v":0}]
[".PUB_LN_BUS.RECR_SERV.OVR1_3MTHS.ALL",{"$f":"'Public Sector PDLs by Sector'!$E$57","v":0}]
[".PUB_LN_BUS.RECR_SERV.OVR3_6MTHS.ALL",{"$f":"'Public Sector PDLs by Sector'!$F$57","v":0}]
[".PUB_LN_BUS.RECR_SERV.OVR6_12MTHS.ALL",{"$f":"'Public Sector PDLs by Sector'!$G$57","v":0}]
[".PUB_LN_BUS.RECR_SERV.OVR12MTHS_24MTHS.ALL",{"$f":"'Public Sector PDLs by Sector'!$H$57","v":0}]
[".PUB_LN_BUS.RECR_SERV.OVR24MTHS.ALL",{"$f":"'Public Sector PDLs by Sector'!$I$57","v":0}]
[".PUB_LN_BUS.ALL_OTH_PERSNL.CURR.ALL",{"$f":"'Public Sector PDLs by Sector'!$C$58","v":0}]
[".PUB_LN_BUS.ALL_OTH_PERSNL.1MTH.ALL",{"$f":"'Public Sector PDLs by Sector'!$D$58","v":0}]
[".PUB_LN_BUS.ALL_OTH_PERSNL.OVR1_3MTHS.ALL",{"$f":"'Public Sector PDLs by Sector'!$E$58","v":0}]
[".PUB_LN_BUS.ALL_OTH_PERSNL.OVR3_6MTHS.ALL",{"$f":"'Public Sector PDLs by Sector'!$F$58","v":0}]
[".PUB_LN_BUS.ALL_OTH_PERSNL.OVR6_12MTHS.ALL",{"$f":"'Public Sector PDLs by Sector'!$G$58","v":0}]
[".PUB_LN_BUS.ALL_OTH_PERSNL.OVR12MTHS_24MTHS.ALL",{"$f":"'Public Sector PDLs by Sector'!$H$58","v":0}]
[".PUB_LN_BUS.ALL_OTH_PERSNL.OVR24MTHS.ALL",{"$f":"'Public Sector PDLs by Sector'!$I$58","v":0}]
[".PUB_LN_BUS.OTH_PURP.CURR.ALL",{"$f":"'Public Sector PDLs by Sector'!$C$59","v":0}]
[".PUB_LN_BUS.OTH_PURP.1MTH.ALL",{"$f":"'Public Sector PDLs by Sector'!$D$59","v":0}]
[".PUB_LN_BUS.OTH_PURP.OVR1_3MTHS.ALL",{"$f":"'Public Sector PDLs by Sector'!$E$59","v":0}]
[".PUB_LN_BUS.OTH_PURP.OVR3_6MTHS.ALL",{"$f":"'Public Sector PDLs by Sector'!$F$59","v":0}]
[".PUB_LN_BUS.OTH_PURP.OVR6_12MTHS.ALL",{"$f":"'Public Sector PDLs by Sector'!$G$59","v":0}]
[".PUB_LN_BUS.OTH_PURP.OVR12MTHS_24MTHS.ALL",{"$f":"'Public Sector PDLs by Sector'!$H$59","v":0}]
[".PUB_LN_BUS.OTH_PURP.OVR24MTHS.ALL",{"$f":"'Public Sector PDLs by Sector'!$I$59","v":0}]
[".PUB_LN_BUS.LEASING.CURR.ALL",{"$f":"'Public Sector PDLs by Sector'!$C$60","v":0}]
[".PUB_LN_BUS.LEASING.1MTH.ALL",{"$f":"'Public Sector PDLs by Sector'!$D$60","v":0}]
[".PUB_LN_BUS.LEASING.OVR1_3MTHS.ALL",{"$f":"'Public Sector PDLs by Sector'!$E$60","v":0}]
[".PUB_LN_BUS.LEASING.OVR3_6MTHS.ALL",{"$f":"'Public Sector PDLs by Sector'!$F$60","v":0}]
[".PUB_LN_BUS.LEASING.OVR6_12MTHS.ALL",{"$f":"'Public Sector PDLs by Sector'!$G$60","v":0}]
[".PUB_LN_BUS.LEASING.OVR12MTHS_24MTHS.ALL",{"$f":"'Public Sector PDLs by Sector'!$H$60","v":0}]
[".PUB_LN_BUS.LEASING.OVR24MTHS.ALL",{"$f":"'Public Sector PDLs by Sector'!$I$60","v":0}]
[".PUB_LN_BUS.REM.CURR.ALL",{"$f":"'Public Sector PDLs by Sector'!$C$61","v":0}]
[".PUB_LN_BUS.REM.1MTH.ALL",{"$f":"'Public Sector PDLs by Sector'!$D$61","v":0}]
[".PUB_LN_BUS.REM.OVR1_3MTHS.ALL",{"$f":"'Public Sector PDLs by Sector'!$E$61","v":0}]
[".PUB_LN_BUS.REM.OVR3_6MTHS.ALL",{"$f":"'Public Sector PDLs by Sector'!$F$61","v":0}]
[".PUB_LN_BUS.REM.OVR6_12MTHS.ALL",{"$f":"'Public Sector PDLs by Sector'!$G$61","v":0}]
[".PUB_LN_BUS.REM.OVR12MTHS_24MTHS.ALL",{"$f":"'Public Sector PDLs by Sector'!$H$61","v":0}]
[".PUB_LN_BUS.REM.OVR24MTHS.ALL",{"$f":"'Public Sector PDLs by Sector'!$I$61","v":0}]
[".ln_consm.brdg_fin.CURR.ALL",{"$f":"'Consumer PDLs by Purpose'!$C$10","v":0}]
[".ln_consm.brdg_fin.1MTH.ALL",{"$f":"'Consumer PDLs by Purpose'!$D$10","v":0}]
[".ln_consm.brdg_fin.OVR1_3MTHS.ALL",{"$f":"'Consumer PDLs by Purpose'!$E$10","v":0}]
[".ln_consm.brdg_fin.OVR3_6MTHS.ALL",{"$f":"'Consumer PDLs by Purpose'!$F$10","v":0}]
[".ln_consm.brdg_fin.OVR6_12MTHS.ALL",{"$f":"'Consumer PDLs by Purpose'!$G$10","v":0}]
[".ln_consm.brdg_fin.OVR12MTHS_24MTHS.ALL",{"$f":"'Consumer PDLs by Purpose'!$H$10","v":0}]
[".ln_consm.brdg_fin.OVR24MTHS.ALL",{"$f":"'Consumer PDLs by Purpose'!$I$10","v":0}]
[".ln_consm.land_re.CURR.ALL",{"$f":"'Consumer PDLs by Purpose'!$C$11","v":0}]
[".ln_consm.land_re.1MTH.ALL",{"$f":"'Consumer PDLs by Purpose'!$D$11","v":0}]
[".ln_consm.land_re.OVR1_3MTHS.ALL",{"$f":"'Consumer PDLs by Purpose'!$E$11","v":0}]
[".ln_consm.land_re.OVR3_6MTHS.ALL",{"$f":"'Consumer PDLs by Purpose'!$F$11","v":0}]
[".ln_consm.land_re.OVR6_12MTHS.ALL",{"$f":"'Consumer PDLs by Purpose'!$G$11","v":0}]
[".ln_consm.land_re.OVR12MTHS_24MTHS.ALL",{"$f":"'Consumer PDLs by Purpose'!$H$11","v":0}]
[".ln_consm.land_re.OVR24MTHS.ALL",{"$f":"'Consumer PDLs by Purpose'!$I$11","v":0}]
[".ln_consm.home_imp.CURR.ALL",{"$f":"'Consumer PDLs by Purpose'!$C$12","v":0}]
[".ln_consm.home_imp.1MTH.ALL",{"$f":"'Consumer PDLs by Purpose'!$D$12","v":0}]
[".ln_consm.home_imp.OVR1_3MTHS.ALL",{"$f":"'Consumer PDLs by Purpose'!$E$12","v":0}]
[".ln_consm.home_imp.OVR3_6MTHS.ALL",{"$f":"'Consumer PDLs by Purpose'!$F$12","v":0}]
[".ln_consm.home_imp.OVR6_12MTHS.ALL",{"$f":"'Consumer PDLs by Purpose'!$G$12","v":0}]
[".ln_consm.home_imp.OVR12MTHS_24MTHS.ALL",{"$f":"'Consumer PDLs by Purpose'!$H$12","v":0}]
[".ln_consm.home_imp.OVR24MTHS.ALL",{"$f":"'Consumer PDLs by Purpose'!$I$12","v":0}]
[".ln_consm.pvt_cars_new.CURR.ALL",{"$f":"'Consumer PDLs by Purpose'!$C$13","v":0}]
[".ln_consm.pvt_cars_new.1MTH.ALL",{"$f":"'Consumer PDLs by Purpose'!$D$13","v":0}]
[".ln_consm.pvt_cars_new.OVR1_3MTHS.ALL",{"$f":"'Consumer PDLs by Purpose'!$E$13","v":0}]
[".ln_consm.pvt_cars_new.OVR3_6MTHS.ALL",{"$f":"'Consumer PDLs by Purpose'!$F$13","v":0}]
[".ln_consm.pvt_cars_new.OVR6_12MTHS.ALL",{"$f":"'Consumer PDLs by Purpose'!$G$13","v":0}]
[".ln_consm.pvt_cars_new.OVR12MTHS_24MTHS.ALL",{"$f":"'Consumer PDLs by Purpose'!$H$13","v":0}]
[".ln_consm.pvt_cars_new.OVR24MTHS.ALL",{"$f":"'Consumer PDLs by Purpose'!$I$13","v":0}]
[".ln_consm.pvt_cars_used.CURR.ALL",{"$f":"'Consumer PDLs by Purpose'!$C$14","v":0}]
[".ln_consm.pvt_cars_used.1MTH.ALL",{"$f":"'Consumer PDLs by Purpose'!$D$14","v":0}]
[".ln_consm.pvt_cars_used.OVR1_3MTHS.ALL",{"$f":"'Consumer PDLs by Purpose'!$E$14","v":0}]
[".ln_consm.pvt_cars_used.OVR3_6MTHS.ALL",{"$f":"'Consumer PDLs by Purpose'!$F$14","v":0}]
[".ln_consm.pvt_cars_used.OVR6_12MTHS.ALL",{"$f":"'Consumer PDLs by Purpose'!$G$14","v":0}]
[".ln_consm.pvt_cars_used.OVR12MTHS_24MTHS.ALL",{"$f":"'Consumer PDLs by Purpose'!$H$14","v":0}]
[".ln_consm.pvt_cars_used.OVR24MTHS.ALL",{"$f":"'Consumer PDLs by Purpose'!$I$14","v":0}]
[".ln_consm.oth_veh.CURR.ALL",{"$f":"'Consumer PDLs by Purpose'!$C$15","v":0}]
[".ln_consm.oth_veh.1MTH.ALL",{"$f":"'Consumer PDLs by Purpose'!$D$15","v":0}]
[".ln_consm.oth_veh.OVR1_3MTHS.ALL",{"$f":"'Consumer PDLs by Purpose'!$E$15","v":0}]
[".ln_consm.oth_veh.OVR3_6MTHS.ALL",{"$f":"'Consumer PDLs by Purpose'!$F$15","v":0}]
[".ln_consm.oth_veh.OVR6_12MTHS.ALL",{"$f":"'Consumer PDLs by Purpose'!$G$15","v":0}]
[".ln_consm.oth_veh.OVR12MTHS_24MTHS.ALL",{"$f":"'Consumer PDLs by Purpose'!$H$15","v":0}]
[".ln_consm.oth_veh.OVR24MTHS.ALL",{"$f":"'Consumer PDLs by Purpose'!$I$15","v":0}]
[".ln_consm.elec_nelec_appl.CURR.ALL",{"$f":"'Consumer PDLs by Purpose'!$C$16","v":0}]
[".ln_consm.elec_nelec_appl.1MTH.ALL",{"$f":"'Consumer PDLs by Purpose'!$D$16","v":0}]
[".ln_consm.elec_nelec_appl.OVR1_3MTHS.ALL",{"$f":"'Consumer PDLs by Purpose'!$E$16","v":0}]
[".ln_consm.elec_nelec_appl.OVR3_6MTHS.ALL",{"$f":"'Consumer PDLs by Purpose'!$F$16","v":0}]
[".ln_consm.elec_nelec_appl.OVR6_12MTHS.ALL",{"$f":"'Consumer PDLs by Purpose'!$G$16","v":0}]
[".ln_consm.elec_nelec_appl.OVR12MTHS_24MTHS.ALL",{"$f":"'Consumer PDLs by Purpose'!$H$16","v":0}]
[".ln_consm.elec_nelec_appl.OVR24MTHS.ALL",{"$f":"'Consumer PDLs by Purpose'!$I$16","v":0}]
[".ln_consm.radio_mus_inst.CURR.ALL",{"$f":"'Consumer PDLs by Purpose'!$C$17","v":0}]
[".ln_consm.radio_mus_inst.1MTH.ALL",{"$f":"'Consumer PDLs by Purpose'!$D$17","v":0}]
[".ln_consm.radio_mus_inst.OVR1_3MTHS.ALL",{"$f":"'Consumer PDLs by Purpose'!$E$17","v":0}]
[".ln_consm.radio_mus_inst.OVR3_6MTHS.ALL",{"$f":"'Consumer PDLs by Purpose'!$F$17","v":0}]
[".ln_consm.radio_mus_inst.OVR6_12MTHS.ALL",{"$f":"'Consumer PDLs by Purpose'!$G$17","v":0}]
[".ln_consm.radio_mus_inst.OVR12MTHS_24MTHS.ALL",{"$f":"'Consumer PDLs by Purpose'!$H$17","v":0}]
[".ln_consm.radio_mus_inst.OVR24MTHS.ALL",{"$f":"'Consumer PDLs by Purpose'!$I$17","v":0}]
[".ln_consm.oth_furn.CURR.ALL",{"$f":"'Consumer PDLs by Purpose'!$C$18","v":0}]
[".ln_consm.oth_furn.1MTH.ALL",{"$f":"'Consumer PDLs by Purpose'!$D$18","v":0}]
[".ln_consm.oth_furn.OVR1_3MTHS.ALL",{"$f":"'Consumer PDLs by Purpose'!$E$18","v":0}]
[".ln_consm.oth_furn.OVR3_6MTHS.ALL",{"$f":"'Consumer PDLs by Purpose'!$F$18","v":0}]
[".ln_consm.oth_furn.OVR6_12MTHS.ALL",{"$f":"'Consumer PDLs by Purpose'!$G$18","v":0}]
[".ln_consm.oth_furn.OVR12MTHS_24MTHS.ALL",{"$f":"'Consumer PDLs by Purpose'!$H$18","v":0}]
[".ln_consm.oth_furn.OVR24MTHS.ALL",{"$f":"'Consumer PDLs by Purpose'!$I$18","v":0}]
[".ln_consm.purch_new_shares.CURR.ALL",{"$f":"'Consumer PDLs by Purpose'!$C$19","v":0}]
[".ln_consm.purch_new_shares.1MTH.ALL",{"$f":"'Consumer PDLs by Purpose'!$D$19","v":0}]
[".ln_consm.purch_new_shares.OVR1_3MTHS.ALL",{"$f":"'Consumer PDLs by Purpose'!$E$19","v":0}]
[".ln_consm.purch_new_shares.OVR3_6MTHS.ALL",{"$f":"'Consumer PDLs by Purpose'!$F$19","v":0}]
[".ln_consm.purch_new_shares.OVR6_12MTHS.ALL",{"$f":"'Consumer PDLs by Purpose'!$G$19","v":0}]
[".ln_consm.purch_new_shares.OVR12MTHS_24MTHS.ALL",{"$f":"'Consumer PDLs by Purpose'!$H$19","v":0}]
[".ln_consm.purch_new_shares.OVR24MTHS.ALL",{"$f":"'Consumer PDLs by Purpose'!$I$19","v":0}]
[".ln_consm.purch_oth_fin_asst.CURR.ALL",{"$f":"'Consumer PDLs by Purpose'!$C$20","v":0}]
[".ln_consm.purch_oth_fin_asst.1MTH.ALL",{"$f":"'Consumer PDLs by Purpose'!$D$20","v":0}]
[".ln_consm.purch_oth_fin_asst.OVR1_3MTHS.ALL",{"$f":"'Consumer PDLs by Purpose'!$E$20","v":0}]
[".ln_consm.purch_oth_fin_asst.OVR3_6MTHS.ALL",{"$f":"'Consumer PDLs by Purpose'!$F$20","v":0}]
[".ln_consm.purch_oth_fin_asst.OVR6_12MTHS.ALL",{"$f":"'Consumer PDLs by Purpose'!$G$20","v":0}]
[".ln_consm.purch_oth_fin_asst.OVR12MTHS_24MTHS.ALL",{"$f":"'Consumer PDLs by Purpose'!$H$20","v":0}]
[".ln_consm.purch_oth_fin_asst.OVR24MTHS.ALL",{"$f":"'Consumer PDLs by Purpose'!$I$20","v":0}]
[".ln_consm.educ.CURR.ALL",{"$f":"'Consumer PDLs by Purpose'!$C$21","v":0}]
[".ln_consm.educ.1MTH.ALL",{"$f":"'Consumer PDLs by Purpose'!$D$21","v":0}]
[".ln_consm.educ.OVR1_3MTHS.ALL",{"$f":"'Consumer PDLs by Purpose'!$E$21","v":0}]
[".ln_consm.educ.OVR3_6MTHS.ALL",{"$f":"'Consumer PDLs by Purpose'!$F$21","v":0}]
[".ln_consm.educ.OVR6_12MTHS.ALL",{"$f":"'Consumer PDLs by Purpose'!$G$21","v":0}]
[".ln_consm.educ.OVR12MTHS_24MTHS.ALL",{"$f":"'Consumer PDLs by Purpose'!$H$21","v":0}]
[".ln_consm.educ.OVR24MTHS.ALL",{"$f":"'Consumer PDLs by Purpose'!$I$21","v":0}]
[".ln_consm.medical.CURR.ALL",{"$f":"'Consumer PDLs by Purpose'!$C$22","v":0}]
[".ln_consm.medical.1MTH.ALL",{"$f":"'Consumer PDLs by Purpose'!$D$22","v":0}]
[".ln_consm.medical.OVR1_3MTHS.ALL",{"$f":"'Consumer PDLs by Purpose'!$E$22","v":0}]
[".ln_consm.medical.OVR3_6MTHS.ALL",{"$f":"'Consumer PDLs by Purpose'!$F$22","v":0}]
[".ln_consm.medical.OVR6_12MTHS.ALL",{"$f":"'Consumer PDLs by Purpose'!$G$22","v":0}]
[".ln_consm.medical.OVR12MTHS_24MTHS.ALL",{"$f":"'Consumer PDLs by Purpose'!$H$22","v":0}]
[".ln_consm.medical.OVR24MTHS.ALL",{"$f":"'Consumer PDLs by Purpose'!$I$22","v":0}]
[".ln_consm.travel.CURR.ALL",{"$f":"'Consumer PDLs by Purpose'!$C$23","v":0}]
[".ln_consm.travel.1MTH.ALL",{"$f":"'Consumer PDLs by Purpose'!$D$23","v":0}]
[".ln_consm.travel.OVR1_3MTHS.ALL",{"$f":"'Consumer PDLs by Purpose'!$E$23","v":0}]
[".ln_consm.travel.OVR3_6MTHS.ALL",{"$f":"'Consumer PDLs by Purpose'!$F$23","v":0}]
[".ln_consm.travel.OVR6_12MTHS.ALL",{"$f":"'Consumer PDLs by Purpose'!$G$23","v":0}]
[".ln_consm.travel.OVR12MTHS_24MTHS.ALL",{"$f":"'Consumer PDLs by Purpose'!$H$23","v":0}]
[".ln_consm.travel.OVR24MTHS.ALL",{"$f":"'Consumer PDLs by Purpose'!$I$23","v":0}]
[".ln_consm.insur.CURR.ALL",{"$f":"'Consumer PDLs by Purpose'!$C$24","v":0}]
[".ln_consm.insur.1MTH.ALL",{"$f":"'Consumer PDLs by Purpose'!$D$24","v":0}]
[".ln_consm.insur.OVR1_3MTHS.ALL",{"$f":"'Consumer PDLs by Purpose'!$E$24","v":0}]
[".ln_consm.insur.OVR3_6MTHS.ALL",{"$f":"'Consumer PDLs by Purpose'!$F$24","v":0}]
[".ln_consm.insur.OVR6_12MTHS.ALL",{"$f":"'Consumer PDLs by Purpose'!$G$24","v":0}]
[".ln_consm.insur.OVR12MTHS_24MTHS.ALL",{"$f":"'Consumer PDLs by Purpose'!$H$24","v":0}]
[".ln_consm.insur.OVR24MTHS.ALL",{"$f":"'Consumer PDLs by Purpose'!$I$24","v":0}]
[".ln_consm.prof_serv.CURR.ALL",{"$f":"'Consumer PDLs by Purpose'!$C$25","v":0}]
[".ln_consm.prof_serv.1MTH.ALL",{"$f":"'Consumer PDLs by Purpose'!$D$25","v":0}]
[".ln_consm.prof_serv.OVR1_3MTHS.ALL",{"$f":"'Consumer PDLs by Purpose'!$E$25","v":0}]
[".ln_consm.prof_serv.OVR3_6MTHS.ALL",{"$f":"'Consumer PDLs by Purpose'!$F$25","v":0}]
[".ln_consm.prof_serv.OVR6_12MTHS.ALL",{"$f":"'Consumer PDLs by Purpose'!$G$25","v":0}]
[".ln_consm.prof_serv.OVR12MTHS_24MTHS.ALL",{"$f":"'Consumer PDLs by Purpose'!$H$25","v":0}]
[".ln_consm.prof_serv.OVR24MTHS.ALL",{"$f":"'Consumer PDLs by Purpose'!$I$25","v":0}]
[".ln_consm.refin.CURR.ALL",{"$f":"'Consumer PDLs by Purpose'!$C$26","v":0}]
[".ln_consm.refin.1MTH.ALL",{"$f":"'Consumer PDLs by Purpose'!$D$26","v":0}]
[".ln_consm.refin.OVR1_3MTHS.ALL",{"$f":"'Consumer PDLs by Purpose'!$E$26","v":0}]
[".ln_consm.refin.OVR3_6MTHS.ALL",{"$f":"'Consumer PDLs by Purpose'!$F$26","v":0}]
[".ln_consm.refin.OVR6_12MTHS.ALL",{"$f":"'Consumer PDLs by Purpose'!$G$26","v":0}]
[".ln_consm.refin.OVR12MTHS_24MTHS.ALL",{"$f":"'Consumer PDLs by Purpose'!$H$26","v":0}]
[".ln_consm.refin.OVR24MTHS.ALL",{"$f":"'Consumer PDLs by Purpose'!$I$26","v":0}]
[".ln_consm.cons_debt.CURR.ALL",{"$f":"'Consumer PDLs by Purpose'!$C$27","v":0}]
[".ln_consm.cons_debt.1MTH.ALL",{"$f":"'Consumer PDLs by Purpose'!$D$27","v":0}]
[".ln_consm.cons_debt.OVR1_3MTHS.ALL",{"$f":"'Consumer PDLs by Purpose'!$E$27","v":0}]
[".ln_consm.cons_debt.OVR3_6MTHS.ALL",{"$f":"'Consumer PDLs by Purpose'!$F$27","v":0}]
[".ln_consm.cons_debt.OVR6_12MTHS.ALL",{"$f":"'Consumer PDLs by Purpose'!$G$27","v":0}]
[".ln_consm.cons_debt.OVR12MTHS_24MTHS.ALL",{"$f":"'Consumer PDLs by Purpose'!$H$27","v":0}]
[".ln_consm.cons_debt.OVR24MTHS.ALL",{"$f":"'Consumer PDLs by Purpose'!$I$27","v":0}]
[".ln_consm.oth_purp.CURR.ALL",{"$f":"'Consumer PDLs by Purpose'!$C$28","v":0}]
[".ln_consm.oth_purp.1MTH.ALL",{"$f":"'Consumer PDLs by Purpose'!$D$28","v":0}]
[".ln_consm.oth_purp.OVR1_3MTHS.ALL",{"$f":"'Consumer PDLs by Purpose'!$E$28","v":0}]
[".ln_consm.oth_purp.OVR3_6MTHS.ALL",{"$f":"'Consumer PDLs by Purpose'!$F$28","v":0}]
[".ln_consm.oth_purp.OVR6_12MTHS.ALL",{"$f":"'Consumer PDLs by Purpose'!$G$28","v":0}]
[".ln_consm.oth_purp.OVR12MTHS_24MTHS.ALL",{"$f":"'Consumer PDLs by Purpose'!$H$28","v":0}]
[".ln_consm.oth_purp.OVR24MTHS.ALL",{"$f":"'Consumer PDLs by Purpose'!$I$28","v":0}]
[".ln_consm.LEASING.CURR.ALL",{"$f":"'Consumer PDLs by Purpose'!$C$29","v":0}]
[".ln_consm.LEASING.1MTH.ALL",{"$f":"'Consumer PDLs by Purpose'!$D$29","v":0}]
[".ln_consm.LEASING.OVR1_3MTHS.ALL",{"$f":"'Consumer PDLs by Purpose'!$E$29","v":0}]
[".ln_consm.LEASING.OVR3_6MTHS.ALL",{"$f":"'Consumer PDLs by Purpose'!$F$29","v":0}]
[".ln_consm.LEASING.OVR6_12MTHS.ALL",{"$f":"'Consumer PDLs by Purpose'!$G$29","v":0}]
[".ln_consm.LEASING.OVR12MTHS_24MTHS.ALL",{"$f":"'Consumer PDLs by Purpose'!$H$29","v":0}]
[".ln_consm.LEASING.OVR24MTHS.ALL",{"$f":"'Consumer PDLs by Purpose'!$I$29","v":0}]
[".ln_consm.REM.CURR.ALL",{"$f":"'Consumer PDLs by Purpose'!$C$30","v":0}]
[".ln_consm.REM.1MTH.ALL",{"$f":"'Consumer PDLs by Purpose'!$D$30","v":0}]
[".ln_consm.REM.OVR1_3MTHS.ALL",{"$f":"'Consumer PDLs by Purpose'!$E$30","v":0}]
[".ln_consm.REM.OVR3_6MTHS.ALL",{"$f":"'Consumer PDLs by Purpose'!$F$30","v":0}]
[".ln_consm.REM.OVR6_12MTHS.ALL",{"$f":"'Consumer PDLs by Purpose'!$G$30","v":0}]
[".ln_consm.REM.OVR12MTHS_24MTHS.ALL",{"$f":"'Consumer PDLs by Purpose'!$H$30","v":0}]
[".ln_consm.REM.OVR24MTHS.ALL",{"$f":"'Consumer PDLs by Purpose'!$I$30","v":0}]

{"sheet":"Codes","index":9,"n_rows":32,"n_cols":5,"rows_kept":32,"cut":false,"hidden":true,"merged":[]}
["        Select Institution","xxx",null,"Select Year","Select Month"]
["ANSA Bank Limited","BBDA",null,"2020","March"]
["Citibank (Trinidad & Tobago) Limited","CITI",null,"2021","June"]
["First Citizens Bank Limited ","FCB",null,"2022","September"]
["CIBC Caribbean Bank (Trinidad and Tobago) Limited ","FCIB",null,"2023","December"]
["JMMB Bank (T&T) Limited ","ICBL",null,"2024"]
["RBC Royal Bank (Trinidad and Tobago) Limited","RBTT",null,"2025"]
["Republic Bank Limited ","RBL",null,"2026"]
["Scotiabank Trinidad and Tobago Limited ","BNS",null,"2027"]
[null,null,null,"2028"]
[null,null,null,"2029"]
[null,null,null,"2030"]
[null,null,null,"2031"]
[null,null,null,"2032"]
[null,null,null,"2033"]
[null,null,null,"2034"]
[null,null,null,"2035"]
[null,null,null,"2036"]
[null,null,null,"2037"]
[null,null,null,"2038"]
[null,null,null,"2039"]
[null,null,null,"2040"]
[null,null,null,"2041"]
[null,null,null,"2042"]
[null,null,null,"2043"]
[null,null,null,"2044"]
[null,null,null,"2045"]
[null,null,null,"2046"]
[null,null,null,"2047"]
[null,null,null,"2048"]
[null,null,null,"2049"]
[null,null,null,"2050"]

{"sheet":"SIGNATURE ","index":10,"n_rows":31,"n_cols":4,"rows_kept":31,"cut":false,"hidden":false,"merged":[]}
[]
[]
[]
[]
[]
[null,"Name of Person Completing Form ",null,"Signature of Person Completing Form "]
[null,"(Block Letters)"]
[]
[]
[]
[]
[null,"Name of Authorised Official ",null,"Signature of Authorised Official "]
[null,"(Block Letters)"]
[]
[]
[]
[]
[null,"Position/Office Held ",null,"Date"]
[null,"(Place Company Stamp)"]
[]
[]
[null,"I hereby certify that data submitted in the e-copy submission are the exact values in the hard-copy return for this period."]
[]
[]
[null,"Name of Authorised Official "]
[]
[]
[null,"Position/Office Held "]
[]
[]
[null,"Date"]